Workbook

Sheet 1_aciklikli
B2: SAPLAMA KİRİŞLİ ÇERÇEVE CROSS (1 AÇIKLIKLI) (inş.müh. Gürcan BERBEROĞLU tel: 0532 366 02 04 www.betoncelik.com )
I3: pas payı d ' = | N3: 0.03 | P3: m | U3: dikkat sadece sarı hücrelere rakam giriniz.
G4: 0.5 | I4: m | Q4: 0.5 | S4: m
I5: m | S5: m
I6: 0.6 | S6: 0.6
D10: =SUM(D11:E15) -> -9.038663252 | G10: dm4 | Q10: dm4 | S10: =SUM(S11:T15) -> 7.971099979
D11: =-I29*G21 -> -0.0001130892012
D12: =-I27*G21 -> -0.002777399608 | G12: =I6*G4^3/12*10000 -> 62.5 | I12: =SUM(I13:J17) -> -8.325084574 | N12: =SUM(N13:O17) -> 8.65433712 | Q12: =S6*Q4^3/12*10000 -> 62.5 | S12: =-(O28)*Q17 -> 0.0005161954841
D13: =-I25*G21 -> -0.06821118641 | I13: =-I29*G17 -> -0.0001041611063 | S13: =-(O26)*Q17 -> 0.01267743622 | Y13: m
D14: =-I23*G21 -> -1.67522381 | I14: =-I27*G17 -> -0.002558131218 | N14: =-(O28)*Q21 -> 0.0005604408113 | S14: =-(O24)*Q17 -> 0.3113498551 | Y14: 3.8
D15: =-(E21+I21)*G21 -> -7.292337767 | G15: I = | I15: =-I25*G17 -> -0.06282609275 | N15: =-(O26)*Q21 -> 0.01376407361 | Q15: I = | S15: =-(O21+O22+S21)*Q17 -> 7.646556492
I16: =-I23*G17 -> -1.542969298 | N16: =-(O24)*Q21 -> 0.3380369855
D17: 12 | F17: KN | G17: =(4*G12/Y14)/((4*G12/Y14)+(4*L20/L36)+(4*G26/Y25)) -> 0.2859584734 | I17: =-(E21+I21)*G17 -> -6.716626891 | K17: 12 | M17: KN | N17: =-(O21+O22+S21)*Q21 -> 8.30197562 | Q17: =(4*Q12/Y14)/((4*Q12/Y14)+(4*Q26/Y25)+(4*L20/L36)) -> 0.2859584734 | T17: 12 | V17: KN
B19: q = | C19: 10 | E19: KN/m | K19: q = | L19: 15 | N19: KN/m | S19: q = | T19: 10 | V19: KN/m
F20: 0 | H20: =(4*L20/L36)/((4*G12/Y14)+(4*L20/L36)+(4*G26/Y25)) -> 0.4035723269 | K20: I = | L20: =(L43*H45^3/12+H45*L43*(((H45*L43*H45/2+L50*(O46-H45)*((O46-H45)/2+H45))/(L43*H45+(O46-H45)*L50))-H45/2)^2+L50*(O46-H45)^3/12+L50*(O46-H45)*(O46-((H45*L43*H45/2+L50*(O46-H45)*((O46-H45)/2+H45))/(L43*H45+(O46-H45)*L50))-(O46-H45)/2)^2)*10000 -> 127.6666667 | N20: dm4 | P20: =(4*L20/L36)/((4*Q12/Y14)+(4*Q26/Y25)+(4*L20/L36)) -> 0.4035723269 | R20: 0
E21: =IF(OR(D36=0,D36=""),0,-C19*D36*D36/2-D17*F34) -> -23.25 | G21: =(4*G26/Y25)/((4*G12/Y14)+(4*L20/L36)+(4*G26/Y25)) -> 0.3104691997 | I21: =L19*L36^2/12+K17*I34*N34^2/L36^2 -> 46.73811983 | O21: =-L19*L36^2/12-K17*N34*I34^2/L36^2 -> -45.25051653 | Q21: =(4*Q26/Y25)/((4*Q12/Y14)+(4*Q26/Y25)+(4*L20/L36)) -> 0.3104691997 | S21: =IF(OR(S36=0,S36=""),0,T19*S36*S36/2+T17*R34) -> 23.25
I22: =-(E21+I21)*H20 -> -9.479155177 | O22: =+I22/2 -> -4.739577589
I23: =+O23/2 -> 5.395781003 | O23: =-(O21+O22+S21)*P20 -> 10.79156201
G24: dm4 | I24: =-I23*H20 -> -2.177587895 | O24: =+I24/2 -> -1.088793948 | Q24: dm4 | Y24: m
I25: =+O25/2 -> 0.2197035535 | O25: =-(O24)*P20 -> 0.439407107 | Y25: 3.5
G26: =I40*G38^3/12*10000 -> 62.5 | I26: =-I25*H20 -> -0.08866627432 | O26: =+I26/2 -> -0.04433313716 | Q26: =S40*Q38^3/12*10000 -> 62.5
I27: =+O27/2 -> 0.008945813662 | O27: =-(O26)*P20 -> 0.01789162732
I28: =-I27*H20 -> -0.003610282836 | O28: =+I28/2 -> -0.001805141418
G29: I = | I29: =+O29/2 -> 0.0003642525613 | O29: =-(O28)*P20 -> 0.0007285051225 | Q29: I =
I30: =-I29*H20 -> -0.0001470022537
I31: =SUM(I21:J30) -> 40.61374783 | O31: =SUM(O21:P30) -> -39.8754371
C34: 0.5 | E34: m | F34: =+D36-C34 -> 1 | H34: m | I34: 2.5 | N34: =+L36-I34 -> 3 | P34: m | R34: =+S36-U34 -> 1 | T34: m | U34: 0.5 | W34: m
D36: 1.5 | F36: m | L36: 5.5 | N36: m | S36: 1.5 | U36: m
G38: 0.5 | I38: m | Q38: 0.5 | S38: m
I39: m | S39: m
I40: 0.6 | S40: 0.6
L43: 1.2 | N43: m
H45: 0.1 | J45: m | O45: m
O46: 0.7
L50: 0.25 | N50: m
D52: =IF(I12<0,I12/2,"") -> -4.162542287 | J52: =IF(I12>0,I12/2,"") ->  | N52: =IF(S10<0,S10/2,"") ->  | T52: =IF(S10>0,S10/2,"") -> 3.985549989
J55: moment diyagramı (KNm)
H57: =-I31 -> -40.61374783
P58: =O31 -> -39.8754371
F59: =IF(E21=0,"",+E21) -> -23.25 | R59: =IF(S21=0,"",-S21) -> -23.25
E61: =IF(I12>0,-I12,"") ->  | I61: =IF(I12<0,-I12,"") -> 8.325084574 | O61: =IF(S10>0,-S10,"") -> -7.971099979 | S61: =IF(S10<0,-S10,"") -> 
E62: =IF(D10<0,D10,"") -> -9.038663252 | I62: =IF(D10>0,D10,"") ->  | O62: =IF(N12<0,N12,"") ->  | S62: =IF(N12>0,N12,"") -> 8.65433712
L65: =+M116 -> 32.33548432
D74: =IF(D10>0,-D10/2,"") ->  | J74: =IF(D10<0,-D10/2,"") -> 4.519331626 | N74: =IF(N12>0,-N12/2,"") -> -4.32716856 | T74: =IF(N12<0,-N12/2,"") -> 
D77: =IF(I12<0,(I12+I12/2)/$Y$14,"") -> -3.286217595 | J77: =IF(I12>0,(I12+I12/2)/$Y$14,"") ->  | N77: =IF(S10<0,(S10+S10/2)/$Y$14,"") ->  | T77: =IF(S10>0,(S10+S10/2)/$Y$14,"") -> 3.146486834
J80: kesme kuvveti diyagramı (KN)
H84: =+M112 -> 47.92969286 | R84: =IF(S21=0,"",T19*S36+T17) -> 27
D86: =IF(D77<0,D77,"") -> -3.286217595 | J86: =IF(J77>0,J77,"") ->  | N86: =IF(N77<0,N77,"") ->  | T86: =IF(T77>0,T77,"") -> 3.146486834
D87: =IF(D99<0,D99,"") -> -3.873712822 | J87: =IF(J99>0,J99,"") ->  | N87: =IF(N99<0,N99,"") ->  | T87: =IF(T99>0,T99,"") -> 3.709001623
P89: =-M113 -> -46.57030714
F90: =IF(E21=0,"",-C19*D36-D17) -> -27
I91: =+M114 -> 2.5 | K91: m
D99: =IF(D10<0,(D10+D10/2)/$Y$25,"") -> -3.873712822 | J99: =IF(D10>0,(D10+D10/2)/$Y$25,"") ->  | N99: =IF(N12<0,(N12+N12/2)/$Y$25,"") ->  | T99: =IF(N12>0,(N12+N12/2)/$Y$25,"") -> 3.709001623
B101: kiriş faydalı yükseklik d = h - d' (m) | H101: =O46-N3 -> 0.67
D105: =IF(OR(C19=0,C19="",D36=0,D36=""),0,IF(OR(D17=0,D17="",C34=0,C34=""),1,2)) -> 2 | L105: sol moment M1= | M105: =+I31 -> 40.61374783 | N105: =IF(M110=0,0,IF(M117="durum 1",1,IF(M117="durum 2",2,IF(M117="durum 3",3)))) -> 2 | U105: =IF(OR(S36=0,S36="",T19=0,T19=""),0,IF(OR(T17=0,T17="",U34=0,U34=""),1,2)) -> 2
L106: sağ moment M2= | M106: =-O31 -> 39.8754371
L107: tekil yük K= | M107: =+K17 -> 12
L108: yayılı yük Pd= | M108: =+L19 -> 15
L109: L= | M109: =+L36 -> 5.5
L110: (K=0 ise a=0 alınacak) a= | M110: =IF(OR(K17=0,K17="",I34=0,I34=""),0,I34) -> 2.5
L111: b= | M111: =M109-M110 -> 3
L112: (sol eksen kesme kuvveti) A= | M112: =IF(M107>0,M108*M109+M107-M113,M108*M109-M113) -> 47.92969286
L113: (sağ eksen kesme kuvveti) B= | M113: =IF(M107>0,(M108*M109^2*0.5+M107*M110+M106-M105)/M109,(0.5*M108*M109^2+M106-M105)/M109) -> 46.57030714
L114: (max mom yeri A'dan mesafesi) x= | M114: =IF(M108*M110>M112,(M112*M110)/(M110*M108),IF(AND(M108*M110<M112,M107>M112-M108*M110),M110,IF(AND(M108*M110<M112,M107<M112-M108*M110),((M109-M110)*(M112-M108*M110-M107)/(M112-M108*M110-M107+M113))+M110,"HATALI"))) -> 2.5
L115: açıklık momenti Mmax= | M115: =IF(M108*M110>M112,(M112*M114/2)-M105,IF(AND(M108*M110<M112,M107>M112-M108*M110),(((M112+M112-M110*M108)/2)*M110)-M105,IF(AND(M108*M110<M112,M107<M112-M108*M110),(((M109-M110)*(M112-M108*M110-M107)/(M112-M108*M110-M107+M113))*(M112-M110*M108-M107)/2+(M112+M112-M110*M108)*M110/2)-M105,"HATALI"))) -> 32.33548432
L116: x'den bağımsız hesap Mmax= | M116: =IF(M108*M110>M112,(M112*(IF(M108*M110>M112,(M112*M110)/(M110*M108),IF(AND(M108*M110<M112,M107>M112-M108*M110),M110,IF(AND(M108*M110<M112,M107<M112-M108*M110),((M109-M110)*(M112-M108*M110-M107)/(M112-M108*M110-M107+M113))+M110,"HATALI"))))/2)-M105,IF(AND(M108*M110<M112,M107>M112-M108*M110),(((M112+M112-M110*M108)/2)*M110)-M105,IF(AND(M108*M110<M112,M107<M112-M108*M110),(((M109-M110)*(M112-M108*M110-M107)/(M112-M108*M110-M107+M113))*(M112-M110*M108-M107)/2+(M112+M112-M110*M108)*M110/2)-M105,"HATALI"))) -> 32.33548432
L117: durum | M117: =IF(M108*M110>M112,"durum 1",IF(AND(M108*M110<M112,M107>M112-M108*M110),"durum 2",IF(AND(M108*M110<M112,M107<M112-M108*M110),"durum 3","HATALI"))) -> durum 2
L118: sol mesnet (kolon genişliği) s1= | M118: =+G38 -> 0.5
L119: sağ mesnet (kolon genişliği) s2= | M119: =+Q38 -> 0.5
L120: kiriş d yüksekliği= | M120: =+H101 -> 0.67
L121: kiriş h yüksekliği= | M121: =+O46 -> 0.7
L122: sol kolon yüzünden d mesafede kesme kuvveti
L123: durum 1 için | M123: =IF(M114>(M120+M118/2),M112-M108*(M118/2+M120),IF(AND(M114<(M120+M118/2),(M120+M118/2)<M110),M108*(M120+M118/2)-M112,IF((M120+M118/2)=M110,M113-M108*M111,M108*M110-M112+M107+(M120+M118/2-M110)*M108))) -> 34.12969286
L124: durum 2 için | M124: =IF(M120+M118/2<M110,M112-(M120+M118/2)*M108,IF((M118/2+M120)=M110,M112-M108*M110,IF(M120+M118/2>M110,M107-M112+M108*M110+(M120+M118/2-M110)*M108,0))) -> 34.12969286
L125: durum 3 için | M125: =IF((M120+M118/2)<M110,M112-(M120+M118/2)*M108,IF(AND(M110<(M120+M118/2),(M120+M118/2)<M114),M112-M108*M110-M107-(M120+M118/2-M110)*M108,IF((M120+M118/2)>M114,(M120+M118/2-M114)*M108,IF((M120+M118/2)=M110,M112-M108*M110,0)))) -> 34.12969286
L126: sağ kolon yüzünden d mesafede kesme kuvveti
L127: durum 1 için | M127: =IF((M120+M119/2)<M111,M113-(M120+M119/2)*M108,IF(AND((M120+M119/2)>M111,(M120+M119/2)<(M109-M114)),M113-M111*M108-M107-(M120+M119/2-M111)*M108,IF((M120+M119/2)=(M109-M110),M107+M108*M110-M112,((M120+M119/2)-(M109-M114))*M108))) -> 32.77030714
L128: durum 2 için | M128: =IF((M120+M119/2)<M111,M113-(M120+M119/2)*M108,IF((M120+M119/2)=M111,M107-M112+M108*M110,IF((M120+M119/2)>M111,M112-(M109-(M120+M119/2))*M108,0))) -> 32.77030714
L129: durum 3 için | M129: =IF((M109-M114)>(M120+M119/2),M113-(M120+M119/2)*M108,IF(AND((M120+M119/2)>(M109-M114),(M109-M110)>(M120+M119/2)),((M120+M119/2)-(M109-M114))*M108,IF(M120+M119/2>(M109-M110),M112-(M109-(M120+M119/2))*M108,IF((M120+M119/2)=(M109-M110),M112-M108*M110-M107,0)))) -> 32.77030714
L130: sol kolon yüzünden 2h mesafede kesme kuvveti
L131: durum 1 için | M131: =IF(M114>(M121*2+M118/2),M112-M108*(M118/2+M121*2),IF(AND(M114<(M121*2+M118/2),(M121*2+M118/2)<M110),M108*(M121*2+M118/2)-M112,IF((M121*2+M118/2)=M110,M113-M108*M111,M108*M110-M112+M107+(M121*2+M118/2-M110)*M108))) -> 23.17969286
L132: durum 2 için | M132: =IF(M121*2+M118/2<M110,M112-(M121*2+M118/2)*M108,IF((M118/2+M121*2)=M110,M112-M108*M110,IF(M121*2+M118/2>M110,M107-M112+M108*M110+(M121*2+M118/2-M110)*M108,0))) -> 23.17969286
L133: durum 3 için | M133: =IF((M121*2+M118/2)<M110,M112-(M121*2+M118/2)*M108,IF(AND(M110<(M121*2+M118/2),(M121*2+M118/2)<M114),M112-M108*M110-M107-(M121*2+M118/2-M110)*M108,IF((M121*2+M118/2)>M114,(M121*2+M118/2-M114)*M108,IF((M121*2+M118/2)=M110,M112-M108*M110,0)))) -> 23.17969286
L134: sağ kolon yüzünden 2h mesafede kesme kuvveti
L135: durum 1 için | M135: =IF((M121*2+M119/2)<M111,M113-(M121*2+M119/2)*M108,IF(AND((M121*2+M119/2)>M111,(M121*2+M119/2)<(M109-M114)),M113-M111*M108-M107-(M121*2+M119/2-M111)*M108,IF((M121*2+M119/2)=(M109-M110),M107+M108*M110-M112,((M121*2+M119/2)-(M109-M114))*M108))) -> 21.82030714
L136: durum 2 için | M136: =IF((M121*2+M119/2)<M111,M113-(M121*2+M119/2)*M108,IF((M121*2+M119/2)=M111,M107-M112+M108*M110,IF((M121*2+M119/2)>M111,M112-(M109-(M121*2+M119/2))*M108,0))) -> 21.82030714
L137: durum 3 için | M137: =IF((M109-M114)>(M121*2+M119/2),M113-(M121*2+M119/2)*M108,IF(AND((M121*2+M119/2)>(M109-M114),(M109-M110)>(M121*2+M119/2)),((M121*2+M119/2)-(M109-M114))*M108,IF(M121*2+M119/2>(M109-M110),M112-(M109-(M121*2+M119/2))*M108,IF((M121*2+M119/2)=(M109-M110),M112-M108*M110,0)))) -> 21.82030714
L138: sol kolon yüzünden d mesafede kesme kuvveti= | M138: =IF(M117="durum 1",M123,IF(M117="durum 2",M124,IF(M117="durum 3",M125,"hatalı"))) -> 34.12969286
L139: sağ kolon yüzünden d mesafede kesme kuvveti= | M139: =IF(M117="durum 1",M127,IF(M117="durum 2",M128,IF(M117="durum 3",M129,"hatalı"))) -> 32.77030714
L140: sol kolon yüzünden 2h mesafede kesme kuvveti= | M140: =IF(M117="durum 1",M131,IF(M117="durum 2",M132,IF(M117="durum 3",M133,"hatalı"))) -> 23.17969286
L141: sağ kolon yüzünden 2h mesafede kesme kuvveti= | M141: =IF(M117="durum 1",M135,IF(M117="durum 2",M136,IF(M117="durum 3",M137,"hatalı"))) -> 21.82030714
B142: kiriş kolon yüzünden d mesafede kesme kuvveti (KN) | H142: =+M138 -> 34.12969286 | O142: =+M139 -> 32.77030714
B147: kiriş kolon yüzünden 2*h mesafede kesme kuvveti (KN) | H147: =+M140 -> 23.17969286 | O147: =+M141 -> 21.82030714
B152: kiriş kolon yüzü kesme kuvveti (KN) | H152: =+M112-L19*G38/2 -> 44.17969286 | O152: =+M113-Q38/2*L19 -> 42.82030714
B155: kiriş kolon yüzü moment (KNm) | H155: =+M105-(M112+H152)/2*G38/2 -> 29.10007461 | O155: =+M106-(O152+M113)/2*Q38/2 -> 28.70161031

Sheet 2_aciklikli
B2: SAPLAMA KİRİŞLİ ÇERÇEVE CROSS (2 AÇIKLIKLI) (inş.müh. Gürcan BERBEROĞLU tel: 0532 366 02 04 www.betoncelik.com )
I3: pas payı d ' = | N3: 0.03 | P3: m | V3: dikkat sadece sarı hücrelere rakam giriniz.
G4: 0.3 | I4: m | Q4: 0.3 | S4: m | AA4: 0.3 | AC4: m
I5: m | S5: m | AC5: m
I6: 0.25 | S6: 0.4 | AC6: 0.25
D10: =SUM(D11:E15) -> -1.34867088 | G10: dm4 | Q10: dm4 | AA10: dm4 | AC10: =SUM(AC11:AD15) -> 4.167890045
D11: =-I29*G21 -> 0.002059911158 | AC11: =-Y29*AA17 -> 0.0009960632659
D12: =-I27*G21 -> 0.01662968203 | G12: =I6*G4^3/12*10000 -> 5.625 | I12: =SUM(I13:J17) -> -0.7077573133 | N12: =SUM(N13:O17) -> -5.288774015 | Q12: =S6*Q4^3/12*10000 -> 9 | S12: =SUM(S13:T17) -> -2.960479915 | X12: =SUM(X13:Y17) -> 7.942146029 | AA12: =AC6*AA4^3/12*10000 -> 5.625 | AC12: =-Y27*AA17 -> 0.008041228054
D13: =-I25*G21 -> 0.1342515784 | I13: =-I29*G17 -> 0.00108100294 | X13: =-Y29*AA21 -> 0.00189805389 | AC13: =-Y25*AA17 -> 0.06491690923 | AH13: m
D14: =-I23*G21 -> 1.083814247 | I14: =-I27*G17 -> 0.008726946837 | N14: =-(O28+S28)*Q21 -> -0.008808859407 | S14: =-(O28+S28)*Q17 -> -0.004930906723 | X14: =-Y27*AA21 -> 0.01532300679 | AC14: =-Y23*AA17 -> 0.5240748149 | AH14: 3.3
D15: =-(E21+I21)*G21 -> -2.585426299 | G15: I = | I15: =-I25*G17 -> 0.07045272337 | N15: =-(O26+S26)*Q21 -> -0.07111400431 | Q15: I = | S15: =-(O26+S26)*Q17 -> -0.03980725606 | X15: =-Y25*AA21 -> 0.123702777 | AA15: I = | AC15: =-(Y21+AC21)*AA17 -> 3.569861029
I16: =-I23*G17 -> 0.5687654942 | N16: =-(O24+S24)*Q21 -> -0.5741040214 | S16: =-(O24+S24)*Q17 -> -0.3213643502 | X16: =-Y23*AA21 -> 0.9986536751
D17: 12 | F17: KN | G17: =(4*G12/AH14)/((4*G12/AH14)+(4*L20/L36)+(4*G26/AH25)) -> 0.1027217777 | I17: =-(E21+I21)*G17 -> -1.356783481 | K17: 25 | M17: KN | N17: =-(O21+O22+S21+S22)*Q21 -> -4.63474713 | Q17: =(4*Q12/AH14)/((4*Q12/AH14)+(4*V20/V36)+(4*Q26/AH25)+(4*L20/L36)) -> 0.09638770003 | S17: =-(O21+O22+S21+S22)*Q17 -> -2.594377402 | U17: 25 | W17: KN | X17: =-(Y21+AC21)*AA21 -> 6.802568517 | AA17: =(4*AA12/AH14)/((4*AA12/AH14)+(4*AA26/AH25)+(4*V20/V36)) -> 0.1216934056 | AD17: 12 | AF17: KN
B19: q = | C19: 10 | E19: KN/m | K19: q = | L19: 25 | N19: KN/m | U19: q = | V19: 25 | X19: KN/m | AC19: q = | AD19: 10 | AF19: KN/m
F20: 0 | H20: =(4*L20/L36)/((4*G12/AH14)+(4*L20/L36)+(4*G26/AH25)) -> 0.7015361681 | K20: I = | L20: =(L43*H45^3/12+H45*L43*(((H45*L43*H45/2+L50*(O46-H45)*((O46-H45)/2+H45))/(L43*H45+(O46-H45)*L50))-H45/2)^2+L50*(O46-H45)^3/12+L50*(O46-H45)*(O46-((H45*L43*H45/2+L50*(O46-H45)*((O46-H45)/2+H45))/(L43*H45+(O46-H45)*L50))-(O46-H45)/2)^2)*10000 -> 40.74404762 | N20: dm4 | P20: =(4*L20/L36)/((4*Q12/AH14)+(4*V20/V36)+(4*Q26/AH25)+(4*L20/L36)) -> 0.4114235756 | R20: =(4*V20/V36)/((4*Q12/AH14)+(4*V20/V36)+(4*Q26/AH25)+(4*L20/L36)) -> 0.3199961144 | U20: I = | V20: =(V43*R45^3/12+R45*V43*(((R45*V43*R45/2+V50*(Y46-R45)*((Y46-R45)/2+R45))/(V43*R45+(Y46-R45)*V50))-R45/2)^2+V50*(Y46-R45)^3/12+V50*(Y46-R45)*(Y46-((R45*V43*R45/2+V50*(Y46-R45)*((Y46-R45)/2+R45))/(V43*R45+(Y46-R45)*V50))-(Y46-R45)/2)^2)*10000 -> 40.74404762 | X20: dm4 | Z20: =(4*V20/V36)/((4*AA12/AH14)+(4*AA26/AH25)+(4*V20/V36)) -> 0.6464130493 | AB20: 0
E21: =IF(OR(D36=0,D36=""),0,-C19*D36*D36/2-D17*F34) -> -23.25 | G21: =(4*G26/AH25)/((4*G12/AH14)+(4*L20/L36)+(4*G26/AH25)) -> 0.1957420542 | I21: =L19*L36^2/12+K17*I34*N34^2/L36^2 -> 36.45833333 | O21: =-L19*L36^2/12-K17*N34*I34^2/L36^2 -> -36.45833333 | Q21: =(4*Q26/AH25)/((4*Q12/AH14)+(4*V20/V36)+(4*Q26/AH25)+(4*L20/L36)) -> 0.17219261 | S21: =V19*V36^2/12+U17*S34*X34^2/V36^2 -> 58.52623457 | Y21: =-V19*V36^2/12-U17*X34*S34^2/V36^2 -> -52.58487654 | AA21: =(4*AA26/AH25)/((4*AA12/AH14)+(4*AA26/AH25)+(4*V20/V36)) -> 0.2318935451 | AC21: =IF(OR(AC36=0,AC36=""),0,AD19*AC36*AC36/2+AD17*AB34) -> 23.25
I22: =-(E21+I21)*H20 -> -9.266123553 | O22: =+I22/2 -> -4.633061777 | S22: =+Y22/2 -> 9.481223499 | Y22: =-(Y21+AC21)*Z20 -> 18.962447
I23: =+O23/2 -> -5.536951432 | O23: =-(O21+O22+S21+S22)*P20 -> -11.07390286 | S23: =-(O21+O22+S21+S22)*R20 -> -8.61303556 | Y23: =+S23/2 -> -4.30651778
G24: dm4 | I24: =-I23*H20 -> 3.88437169 | O24: =+I24/2 -> 1.942185845 | Q24: dm4 | S24: =+Y24/2 -> 1.391894645 | Y24: =-Y23*Z20 -> 2.78378929 | AA24: dm4 | AH24: m
I25: =+O25/2 -> -0.6858596584 | O25: =-(O24+S24)*P20 -> -1.371719317 | S25: =-(O24+S24)*R20 -> -1.066892802 | Y25: =+S25/2 -> -0.533446401 | AH25: 3.3
G26: =I40*G38^3/12*10000 -> 10.71875 | I26: =-I25*H20 -> 0.4811553566 | O26: =+I26/2 -> 0.2405776783 | Q26: =S40*Q38^3/12*10000 -> 16.078125 | S26: =+Y26/2 -> 0.1724133573 | Y26: =-Y25*Z20 -> 0.3448267147 | AA26: =AC40*AA38^3/12*10000 -> 10.71875
I27: =+O27/2 -> -0.08495712429 | O27: =-(O26+S26)*P20 -> -0.1699142486 | S27: =-(O26+S26)*R20 -> -0.1321555267 | Y27: =+S27/2 -> -0.06607776334
I28: =-I27*H20 -> 0.05960049543 | O28: =+I28/2 -> 0.02980024771 | S28: =+Y28/2 -> 0.02135676425 | Y28: =-Y27*Z20 -> 0.04271352849
G29: I = | I29: =+O29/2 -> -0.01052360039 | O29: =-(O28+S28)*P20 -> -0.02104720078 | Q29: I = | S29: =-(O28+S28)*R20 -> -0.01637004505 | Y29: =+S29/2 -> -0.008185022525 | AA29: I =
I30: =-I29*H20 -> 0.007382686291 | Y30: =-Y29*Z20 -> 0.005290905369
I31: =SUM(I21:J30) -> 25.30642819 | O31: =SUM(O21:P30) -> -51.51541497 | S31: =SUM(S21:T30) -> 59.7646689 | Y31: =SUM(Y21:Z30) -> -35.36003607
C34: 0.5 | E34: m | F34: =+D36-C34 -> 1 | H34: m | I34: 1.75 | K34: m | N34: =+L36-I34 -> 1.75 | P34: m | S34: 1.75 | U34: m | X34: =+V36-S34 -> 2.75 | Z34: m | AB34: =+AC36-AE34 -> 1 | AD34: m | AE34: 0.5 | AG34: m
D36: 1.5 | F36: m | L36: 3.5 | N36: m | V36: 4.5 | X36: m | AC36: 1.5 | AE36: m
G38: 0.35 | I38: m | Q38: 0.35 | S38: m | AA38: 0.35 | AC38: m
I39: m | S39: m | AC39: m
I40: 0.3 | S40: 0.45 | AC40: 0.3
L43: 0.75 | N43: m | V43: 0.75 | X43: m
H45: 0.1 | J45: m | O45: m | R45: 0.1 | T45: m | Y45: m
O46: 0.5 | Y46: 0.5
L50: 0.25 | N50: m | V50: 0.25 | X50: m
D52: =IF(I12<0,I12/2,"") -> -0.3538786567 | J52: =IF(I12>0,I12/2,"") ->  | N52: =IF(S12<0,S12/2,"") -> -1.480239958 | T52: =IF(S12>0,S12/2,"") ->  | X52: =IF(AC10<0,AC10/2,"") ->  | AD52: =IF(AC10>0,AC10/2,"") -> 2.083945022
J55: moment diyagramı (KNm)
R56: =-S31 -> -59.7646689
H57: =-I31 -> -25.30642819 | Z57: =Y31 -> -35.36003607
P58: =O31 -> -51.51541497
F59: =IF(E21=0,"",+E21) -> -23.25 | AB59: =IF(AC21=0,"",-AC21) -> -23.25
E61: =IF(I12>0,-I12,"") ->  | I61: =IF(I12<0,-I12,"") -> 0.7077573133 | O61: =IF(S12>0,-S12,"") ->  | S61: =IF(S12<0,-S12,"") -> 2.960479915 | Y61: =IF(AC10>0,-AC10,"") -> -4.167890045 | AC61: =IF(AC10<0,-AC10,"") -> 
E62: =IF(D10<0,D10,"") -> -1.34867088 | I62: =IF(D10>0,D10,"") ->  | O62: =IF(N12<0,N12,"") -> -5.288774015 | S62: =IF(N12>0,N12,"") ->  | Y62: =IF(X12<0,X12,"") ->  | AC62: =IF(X12>0,X12,"") -> 7.942146029
L65: =+M116 -> 21.74532842 | V65: =+W116 -> 37.96352046
D74: =IF(D10>0,-D10/2,"") ->  | J74: =IF(D10<0,-D10/2,"") -> 0.6743354402 | N74: =IF(N12>0,-N12/2,"") ->  | T74: =IF(N12<0,-N12/2,"") -> 2.644387008 | X74: =IF(X12>0,-X12/2,"") -> -3.971073015 | AD74: =IF(X12<0,-X12/2,"") -> 
D77: =IF(I12<0,(I12+I12/2)/$AH$14,"") -> -0.3217078697 | J77: =IF(I12>0,(I12+I12/2)/$AH$14,"") ->  | N77: =IF(S12<0,(S12+S12/2)/$AH$14,"") -> -1.345672689 | T77: =IF(S12>0,(S12+S12/2)/$AH$14,"") ->  | X77: =IF(AC10<0,(AC10+AC10/2)/$AH$14,"") ->  | AD77: =IF(AC10>0,(AC10+AC10/2)/$AH$14,"") -> 1.894495475
J80: kesme kuvveti diyagramı (KN)
H84: =+M112 -> 48.76171806 | R84: =+W112 -> 76.95102952 | AB84: =IF(AC21=0,"",AD19*AC36+AD17) -> 27
D86: =IF(D77<0,D77,"") -> -0.3217078697 | J86: =IF(J77>0,J77,"") ->  | N86: =IF(N77<0,N77,"") -> -1.345672689 | T86: =IF(T77>0,T77,"") ->  | X86: =IF(X77<0,X77,"") ->  | AD86: =IF(AD77>0,AD77,"") -> 1.894495475
D87: =IF(D99<0,D99,"") -> -0.6130322184 | J87: =IF(J99>0,J99,"") ->  | N87: =IF(N99<0,N99,"") -> -2.403988189 | T87: =IF(T99>0,T99,"") ->  | X87: =IF(X99<0,X99,"") ->  | AD87: =IF(AD99>0,AD99,"") -> 3.610066377
P89: =-M113 -> -63.73828194 | Z89: =-W113 -> -60.54897048
F90: =IF(E21=0,"",-C19*D36-D17) -> -27
I91: =+M114 -> 1.75 | K91: m | S91: =+W114 -> 2.078041181 | U91: m
D99: =IF(D10<0,(D10+D10/2)/$AH$25,"") -> -0.6130322184 | J99: =IF(D10>0,(D10+D10/2)/$AH$25,"") ->  | N99: =IF(N12<0,(N12+N12/2)/$AH$25,"") -> -2.403988189 | T99: =IF(N12>0,(N12+N12/2)/$AH$25,"") ->  | X99: =IF(X12<0,(X12+X12/2)/$AH$25,"") ->  | AD99: =IF(X12>0,(X12+X12/2)/$AH$25,"") -> 3.610066377
B101: kiriş faydalı yükseklik d = h - d' (m) | H101: =O46-N3 -> 0.47 | R101: =Y46-N3 -> 0.47
D105: =IF(OR(C19=0,C19="",D36=0,D36=""),0,IF(OR(D17=0,D17="",C34=0,C34=""),1,2)) -> 2 | L105: sol moment M1= | M105: =+I31 -> 25.30642819 | N105: =IF(M110=0,0,IF(M117="durum 1",1,IF(M117="durum 2",2,IF(M117="durum 3",3)))) -> 2 | V105: sol moment M1= | W105: =+S31 -> 59.7646689 | X105: =IF(W110=0,0,IF(W117="durum 1",1,IF(W117="durum 2",2,IF(W117="durum 3",3)))) -> 3 | AE105: =IF(OR(AC36=0,AC36="",AD19=0,AD19=""),0,IF(OR(AD17=0,AD17="",AE34=0,AE34=""),1,2)) -> 2
L106: sağ moment M2= | M106: =-O31 -> 51.51541497 | V106: sağ moment M2= | W106: =-Y31 -> 35.36003607
L107: tekil yük K= | M107: =+K17 -> 25 | V107: tekil yük K= | W107: =+U17 -> 25
L108: yayılı yük Pd= | M108: =+L19 -> 25 | V108: yayılı yük Pd= | W108: =+V19 -> 25
L109: L= | M109: =+L36 -> 3.5 | V109: L= | W109: =+V36 -> 4.5
L110: (K=0 ise a=0 alınacak) a= | M110: =IF(OR(K17=0,K17="",I34=0,I34=""),0,I34) -> 1.75 | V110: (K=0 ise a=0 alınacak) a= | W110: =IF(OR(U17=0,U17="",S34=0,S34=""),0,S34) -> 1.75
L111: b= | M111: =M109-M110 -> 1.75 | V111: b= | W111: =W109-W110 -> 2.75
L112: (sol eksen kesme kuvveti) A= | M112: =IF(M107>0,M108*M109+M107-M113,M108*M109-M113) -> 48.76171806 | V112: (sol eksen kesme kuvveti) A= | W112: =IF(W107>0,W108*W109+W107-W113,W108*W109-W113) -> 76.95102952
L113: (sağ eksen kesme kuvveti) B= | M113: =IF(M107>0,(M108*M109^2*0.5+M107*M110+M106-M105)/M109,(0.5*M108*M109^2+M106-M105)/M109) -> 63.73828194 | V113: (sağ eksen kesme kuvveti) B= | W113: =IF(W107>0,(W108*W109^2*0.5+W107*W110+W106-W105)/W109,(0.5*W108*W109^2+W106-W105)/W109) -> 60.54897048
L114: (max mom yeri A'dan mesafesi) x= | M114: =IF(M108*M110>M112,(M112*M110)/(M110*M108),IF(AND(M108*M110<M112,M107>M112-M108*M110),M110,IF(AND(M108*M110<M112,M107<M112-M108*M110),((M109-M110)*(M112-M108*M110-M107)/(M112-M108*M110-M107+M113))+M110,"HATALI"))) -> 1.75 | V114: (max mom yeri A'dan mesafesi) x= | W114: =IF(W108*W110>W112,(W112*W110)/(W110*W108),IF(AND(W108*W110<W112,W107>W112-W108*W110),W110,IF(AND(W108*W110<W112,W107<W112-W108*W110),((W109-W110)*(W112-W108*W110-W107)/(W112-W108*W110-W107+W113))+W110,"HATALI"))) -> 2.078041181
L115: açıklık momenti Mmax= | M115: =IF(M108*M110>M112,(M112*M114/2)-M105,IF(AND(M108*M110<M112,M107>M112-M108*M110),(((M112+M112-M110*M108)/2)*M110)-M105,IF(AND(M108*M110<M112,M107<M112-M108*M110),(((M109-M110)*(M112-M108*M110-M107)/(M112-M108*M110-M107+M113))*(M112-M110*M108-M107)/2+(M112+M112-M110*M108)*M110/2)-M105,"HATALI"))) -> 21.74532842 | V115: açıklık momenti Mmax= | W115: =IF(W108*W110>W112,(W112*W114/2)-W105,IF(AND(W108*W110<W112,W107>W112-W108*W110),(((W112+W112-W110*W108)/2)*W110)-W105,IF(AND(W108*W110<W112,W107<W112-W108*W110),(((W109-W110)*(W112-W108*W110-W107)/(W112-W108*W110-W107+W113))*(W112-W110*W108-W107)/2+(W112+W112-W110*W108)*W110/2)-W105,"HATALI"))) -> 37.96352046
L116: x'den bağımsız hesap Mmax= | M116: =IF(M108*M110>M112,(M112*(IF(M108*M110>M112,(M112*M110)/(M110*M108),IF(AND(M108*M110<M112,M107>M112-M108*M110),M110,IF(AND(M108*M110<M112,M107<M112-M108*M110),((M109-M110)*(M112-M108*M110-M107)/(M112-M108*M110-M107+M113))+M110,"HATALI"))))/2)-M105,IF(AND(M108*M110<M112,M107>M112-M108*M110),(((M112+M112-M110*M108)/2)*M110)-M105,IF(AND(M108*M110<M112,M107<M112-M108*M110),(((M109-M110)*(M112-M108*M110-M107)/(M112-M108*M110-M107+M113))*(M112-M110*M108-M107)/2+(M112+M112-M110*M108)*M110/2)-M105,"HATALI"))) -> 21.74532842 | V116: x'den bağımsız hesap Mmax= | W116: =IF(W108*W110>W112,(W112*(IF(W108*W110>W112,(W112*W110)/(W110*W108),IF(AND(W108*W110<W112,W107>W112-W108*W110),W110,IF(AND(W108*W110<W112,W107<W112-W108*W110),((W109-W110)*(W112-W108*W110-W107)/(W112-W108*W110-W107+W113))+W110,"HATALI"))))/2)-W105,IF(AND(W108*W110<W112,W107>W112-W108*W110),(((W112+W112-W110*W108)/2)*W110)-W105,IF(AND(W108*W110<W112,W107<W112-W108*W110),(((W109-W110)*(W112-W108*W110-W107)/(W112-W108*W110-W107+W113))*(W112-W110*W108-W107)/2+(W112+W112-W110*W108)*W110/2)-W105,"HATALI"))) -> 37.96352046
L117: durum | M117: =IF(M108*M110>M112,"durum 1",IF(AND(M108*M110<M112,M107>M112-M108*M110),"durum 2",IF(AND(M108*M110<M112,M107<M112-M108*M110),"durum 3","HATALI"))) -> durum 2 | V117: durum | W117: =IF(W108*W110>W112,"durum 1",IF(AND(W108*W110<W112,W107>W112-W108*W110),"durum 2",IF(AND(W108*W110<W112,W107<W112-W108*W110),"durum 3","HATALI"))) -> durum 3
L118: sol mesnet (kolon genişliği) s1= | M118: =+G38 -> 0.35 | V118: sol mesnet (kolon genişliği) s1= | W118: =+Q38 -> 0.35
L119: sağ mesnet (kolon genişliği) s2= | M119: =+Q38 -> 0.35 | V119: sağ mesnet (kolon genişliği) s2= | W119: =+AA38 -> 0.35
L120: kiriş d yüksekliği= | M120: =+H101 -> 0.47 | V120: kiriş d yüksekliği= | W120: =+R101 -> 0.47
L121: kiriş h yüksekliği= | M121: =+O46 -> 0.5 | V121: kiriş h yüksekliği= | W121: =+Y46 -> 0.5
L122: sol kolon yüzünden d mesafede kesme kuvveti | V122: sol kolon yüzünden d mesafede kesme kuvveti
L123: durum 1 için | M123: =IF(M114>(M120+M118/2),M112-M108*(M118/2+M120),IF(AND(M114<(M120+M118/2),(M120+M118/2)<M110),M108*(M120+M118/2)-M112,IF((M120+M118/2)=M110,M113-M108*M111,M108*M110-M112+M107+(M120+M118/2-M110)*M108))) -> 32.63671806 | V123: durum 1 için | W123: =IF(W114>(W120+W118/2),W112-W108*(W118/2+W120),IF(AND(W114<(W120+W118/2),(W120+W118/2)<W110),W108*(W120+W118/2)-W112,IF((W120+W118/2)=W110,W113-W108*W111,W108*W110-W112+W107+(W120+W118/2-W110)*W108))) -> 60.82602952
L124: durum 2 için | M124: =IF(M120+M118/2<M110,M112-(M120+M118/2)*M108,IF((M118/2+M120)=M110,M112-M108*M110,IF(M120+M118/2>M110,M107-M112+M108*M110+(M120+M118/2-M110)*M108,0))) -> 32.63671806 | V124: durum 2 için | W124: =IF(W120+W118/2<W110,W112-(W120+W118/2)*W108,IF((W118/2+W120)=W110,W112-W108*W110,IF(W120+W118/2>W110,W107-W112+W108*W110+(W120+W118/2-W110)*W108,0))) -> 60.82602952
L125: durum 3 için | M125: =IF((M120+M118/2)<M110,M112-(M120+M118/2)*M108,IF(AND(M110<(M120+M118/2),(M120+M118/2)<M114),M112-M108*M110-M107-(M120+M118/2-M110)*M108,IF((M120+M118/2)>M114,(M120+M118/2-M114)*M108,IF((M120+M118/2)=M110,M112-M108*M110,0)))) -> 32.63671806 | V125: durum 3 için | W125: =IF((W120+W118/2)<W110,W112-(W120+W118/2)*W108,IF(AND(W110<(W120+W118/2),(W120+W118/2)<W114),W112-W108*W110-W107-(W120+W118/2-W110)*W108,IF((W120+W118/2)>W114,(W120+W118/2-W114)*W108,IF((W120+W118/2)=W110,W112-W108*W110,0)))) -> 60.82602952
L126: sağ kolon yüzünden d mesafede kesme kuvveti | V126: sağ kolon yüzünden d mesafede kesme kuvveti
L127: durum 1 için | M127: =IF((M120+M119/2)<M111,M113-(M120+M119/2)*M108,IF(AND((M120+M119/2)>M111,(M120+M119/2)<(M109-M114)),M113-M111*M108-M107-(M120+M119/2-M111)*M108,IF((M120+M119/2)=(M109-M110),M107+M108*M110-M112,((M120+M119/2)-(M109-M114))*M108))) -> 47.61328194 | V127: durum 1 için | W127: =IF((W120+W119/2)<W111,W113-(W120+W119/2)*W108,IF(AND((W120+W119/2)>W111,(W120+W119/2)<(W109-W114)),W113-W111*W108-W107-(W120+W119/2-W111)*W108,IF((W120+W119/2)=(W109-W110),W107+W108*W110-W112,((W120+W119/2)-(W109-W114))*W108))) -> 44.42397048
L128: durum 2 için | M128: =IF((M120+M119/2)<M111,M113-(M120+M119/2)*M108,IF((M120+M119/2)=M111,M107-M112+M108*M110,IF((M120+M119/2)>M111,M112-(M109-(M120+M119/2))*M108,0))) -> 47.61328194 | V128: durum 2 için | W128: =IF((W120+W119/2)<W111,W113-(W120+W119/2)*W108,IF((W120+W119/2)=W111,W107-W112+W108*W110,IF((W120+W119/2)>W111,W112-(W109-(W120+W119/2))*W108,0))) -> 44.42397048
L129: durum 3 için | M129: =IF((M109-M114)>(M120+M119/2),M113-(M120+M119/2)*M108,IF(AND((M120+M119/2)>(M109-M114),(M109-M110)>(M120+M119/2)),((M120+M119/2)-(M109-M114))*M108,IF(M120+M119/2>(M109-M110),M112-(M109-(M120+M119/2))*M108,IF((M120+M119/2)=(M109-M110),M112-M108*M110-M107,0)))) -> 47.61328194 | V129: durum 3 için | W129: =IF((W109-W114)>(W120+W119/2),W113-(W120+W119/2)*W108,IF(AND((W120+W119/2)>(W109-W114),(W109-W110)>(W120+W119/2)),((W120+W119/2)-(W109-W114))*W108,IF(W120+W119/2>(W109-W110),W112-(W109-(W120+W119/2))*W108,IF((W120+W119/2)=(W109-W110),W112-W108*W110-W107,0)))) -> 44.42397048
L130: sol kolon yüzünden 2h mesafede kesme kuvveti | V130: sol kolon yüzünden 2h mesafede kesme kuvveti
L131: durum 1 için | M131: =IF(M114>(M121*2+M118/2),M112-M108*(M118/2+M121*2),IF(AND(M114<(M121*2+M118/2),(M121*2+M118/2)<M110),M108*(M121*2+M118/2)-M112,IF((M121*2+M118/2)=M110,M113-M108*M111,M108*M110-M112+M107+(M121*2+M118/2-M110)*M108))) -> 19.38671806 | V131: durum 1 için | W131: =IF(W114>(W121*2+W118/2),W112-W108*(W118/2+W121*2),IF(AND(W114<(W121*2+W118/2),(W121*2+W118/2)<W110),W108*(W121*2+W118/2)-W112,IF((W121*2+W118/2)=W110,W113-W108*W111,W108*W110-W112+W107+(W121*2+W118/2-W110)*W108))) -> 47.57602952
L132: durum 2 için | M132: =IF(M121*2+M118/2<M110,M112-(M121*2+M118/2)*M108,IF((M118/2+M121*2)=M110,M112-M108*M110,IF(M121*2+M118/2>M110,M107-M112+M108*M110+(M121*2+M118/2-M110)*M108,0))) -> 19.38671806 | V132: durum 2 için | W132: =IF(W121*2+W118/2<W110,W112-(W121*2+W118/2)*W108,IF((W118/2+W121*2)=W110,W112-W108*W110,IF(W121*2+W118/2>W110,W107-W112+W108*W110+(W121*2+W118/2-W110)*W108,0))) -> 47.57602952
L133: durum 3 için | M133: =IF((M121*2+M118/2)<M110,M112-(M121*2+M118/2)*M108,IF(AND(M110<(M121*2+M118/2),(M121*2+M118/2)<M114),M112-M108*M110-M107-(M121*2+M118/2-M110)*M108,IF((M121*2+M118/2)>M114,(M121*2+M118/2-M114)*M108,IF((M121*2+M118/2)=M110,M112-M108*M110,0)))) -> 19.38671806 | V133: durum 3 için | W133: =IF((W121*2+W118/2)<W110,W112-(W121*2+W118/2)*W108,IF(AND(W110<(W121*2+W118/2),(W121*2+W118/2)<W114),W112-W108*W110-W107-(W121*2+W118/2-W110)*W108,IF((W121*2+W118/2)>W114,(W121*2+W118/2-W114)*W108,IF((W121*2+W118/2)=W110,W112-W108*W110,0)))) -> 47.57602952
L134: sağ kolon yüzünden 2h mesafede kesme kuvveti | V134: sağ kolon yüzünden 2h mesafede kesme kuvveti
L135: durum 1 için | M135: =IF((M121*2+M119/2)<M111,M113-(M121*2+M119/2)*M108,IF(AND((M121*2+M119/2)>M111,(M121*2+M119/2)<(M109-M114)),M113-M111*M108-M107-(M121*2+M119/2-M111)*M108,IF((M121*2+M119/2)=(M109-M110),M107+M108*M110-M112,((M121*2+M119/2)-(M109-M114))*M108))) -> 34.36328194 | V135: durum 1 için | W135: =IF((W121*2+W119/2)<W111,W113-(W121*2+W119/2)*W108,IF(AND((W121*2+W119/2)>W111,(W121*2+W119/2)<(W109-W114)),W113-W111*W108-W107-(W121*2+W119/2-W111)*W108,IF((W121*2+W119/2)=(W109-W110),W107+W108*W110-W112,((W121*2+W119/2)-(W109-W114))*W108))) -> 31.17397048
L136: durum 2 için | M136: =IF((M121*2+M119/2)<M111,M113-(M121*2+M119/2)*M108,IF((M121*2+M119/2)=M111,M107-M112+M108*M110,IF((M121*2+M119/2)>M111,M112-(M109-(M121*2+M119/2))*M108,0))) -> 34.36328194 | V136: durum 2 için | W136: =IF((W121*2+W119/2)<W111,W113-(W121*2+W119/2)*W108,IF((W121*2+W119/2)=W111,W107-W112+W108*W110,IF((W121*2+W119/2)>W111,W112-(W109-(W121*2+W119/2))*W108,0))) -> 31.17397048
L137: durum 3 için | M137: =IF((M109-M114)>(M121*2+M119/2),M113-(M121*2+M119/2)*M108,IF(AND((M121*2+M119/2)>(M109-M114),(M109-M110)>(M121*2+M119/2)),((M121*2+M119/2)-(M109-M114))*M108,IF(M121*2+M119/2>(M109-M110),M112-(M109-(M121*2+M119/2))*M108,IF((M121*2+M119/2)=(M109-M110),M112-M108*M110,0)))) -> 34.36328194 | V137: durum 3 için | W137: =IF((W109-W114)>(W121*2+W119/2),W113-(W121*2+W119/2)*W108,IF(AND((W121*2+W119/2)>(W109-W114),(W109-W110)>(W121*2+W119/2)),((W121*2+W119/2)-(W109-W114))*W108,IF(W121*2+W119/2>(W109-W110),W112-(W109-(W121*2+W119/2))*W108,IF((W121*2+W119/2)=(W109-W110),W112-W108*W110,0)))) -> 31.17397048
L138: sol kolon yüzünden d mesafede kesme kuvveti= | M138: =IF(M117="durum 1",M123,IF(M117="durum 2",M124,IF(M117="durum 3",M125,"hatalı"))) -> 32.63671806 | V138: sol kolon yüzünden d mesafede kesme kuvveti= | W138: =IF(W117="durum 1",W123,IF(W117="durum 2",W124,IF(W117="durum 3",W125,"hatalı"))) -> 60.82602952
L139: sağ kolon yüzünden d mesafede kesme kuvveti= | M139: =IF(M117="durum 1",M127,IF(M117="durum 2",M128,IF(M117="durum 3",M129,"hatalı"))) -> 47.61328194 | V139: sağ kolon yüzünden d mesafede kesme kuvveti= | W139: =IF(W117="durum 1",W127,IF(W117="durum 2",W128,IF(W117="durum 3",W129,"hatalı"))) -> 44.42397048
L140: sol kolon yüzünden 2h mesafede kesme kuvveti= | M140: =IF(M117="durum 1",M131,IF(M117="durum 2",M132,IF(M117="durum 3",M133,"hatalı"))) -> 19.38671806 | V140: sol kolon yüzünden 2h mesafede kesme kuvveti= | W140: =IF(W117="durum 1",W131,IF(W117="durum 2",W132,IF(W117="durum 3",W133,"hatalı"))) -> 47.57602952
L141: sağ kolon yüzünden 2h mesafede kesme kuvveti= | M141: =IF(M117="durum 1",M135,IF(M117="durum 2",M136,IF(M117="durum 3",M137,"hatalı"))) -> 34.36328194 | V141: sağ kolon yüzünden 2h mesafede kesme kuvveti= | W141: =IF(W117="durum 1",W135,IF(W117="durum 2",W136,IF(W117="durum 3",W137,"hatalı"))) -> 31.17397048
B142: kiriş kolon yüzünden d mesafede kesme kuvveti (KN) | H142: =+M138 -> 32.63671806 | O142: =+M139 -> 47.61328194 | R142: =+W138 -> 60.82602952 | Y142: =+W139 -> 44.42397048
B147: kiriş kolon yüzünden 2*h mesafede kesme kuvveti (KN) | H147: =+M140 -> 19.38671806 | O147: =+M141 -> 34.36328194 | R147: =+W140 -> 47.57602952 | Y147: =+W141 -> 31.17397048
B152: kiriş kolon yüzü kesme kuvveti (KN) | H152: =+M112-L19*G38/2 -> 44.38671806 | O152: =+M113-Q38/2*L19 -> 59.36328194 | R152: =+W112-V19*Q38/2 -> 72.57602952 | Y152: =+W113-AA38/2*V19 -> 56.17397048
B155: kiriş kolon yüzü moment (KNm) | H155: =+M105-(M112+H152)/2*G38/2 -> 17.15594003 | O155: =+M106-(O152+M113)/2*Q38/2 -> 40.74402813 | R155: =+W105-(W112+R152)/2*Q38/2 -> 46.68105123 | Y155: =+W106-(Y152+W113)/2*AA38/2 -> 25.14677874

Sheet 3_aciklikli
B2: SAPLAMA KİRİŞLİ ÇERÇEVE CROSS (3 AÇIKLIKLI) (inş.müh. Gürcan BERBEROĞLU tel: 0532 366 02 04 www.betoncelik.com )
I3: pas payı d ' = | N3: 0.03 | P3: m | V3: dikkat sadece sarı hücrelere rakam giriniz.
G4: 0.35 | I4: m | Q4: 0.25 | S4: m | AA4: 0.25 | AC4: m | AK4: 0.35 | AM4: m
I5: m | S5: m | AC5: m | AM5: m
I6: 0.25 | S6: 0.35 | AC6: 0.35 | AM6: 0.25
D10: =SUM(D11:E15) -> -24.36457367 | G10: dm4 | Q10: dm4 | AA10: dm4 | AK10: dm4 | AM10: =SUM(AM11:AN15) -> 4.414522268
D11: =-I29*G21 -> -0.007174981072
D12: =-I27*G21 -> -0.04591616732 | G12: =I6*G4^3/12*10000 -> 8.932291667 | I12: =SUM(I13:J17) -> -8.357048768 | N12: =SUM(N13:O17) -> 0.9686345098 | Q12: =S6*Q4^3/12*10000 -> 4.557291667 | S12: =SUM(S13:T17) -> 0.7533823965 | X12: =SUM(X13:Y17) -> 0.6237536875 | AA12: =AC6*AA4^3/12*10000 -> 4.557291667 | AC12: =SUM(AC13:AD17) -> 0.4851417569 | AH12: =SUM(AH13:AI17) -> 12.87032731 | AK12: =AM6*AK4^3/12*10000 -> 8.932291667 | AM12: =-AI28*AK17 -> 0.006955173398
D13: =-I25*G21 -> -0.2744509898 | I13: =-I29*G17 -> -0.002461018508 | X13: =-(Y29+AC29)*AA21 -> -0.002361707061 | AC13: =-(Y29+AC29)*AA17 -> -0.00183688327 | AM13: =-AI26*AK17 -> 0.046192681 | AR13: m
D14: =-I23*G21 -> -0.8569513862 | I14: =-I27*G17 -> -0.01574924539 | N14: =-(O28+S28)*Q21 -> 0.00586743121 | S14: =-(O28+S28)*Q17 -> 0.004563557608 | X14: =-(Y27+AC27)*AA21 -> -0.01536629596 | AC14: =-(Y27+AC27)*AA17 -> -0.01195156353 | AH14: =-AI28*AK21 -> 0.02027747346 | AM14: =-AI24*AK17 -> 0.3441209611 | AR14: 3
D15: =-(E21+I21)*G21 -> -23.18008014 | G15: I = | I15: =-I25*G17 -> -0.0941366895 | N15: =-(O26+S26)*Q21 -> 0.03754852459 | Q15: I = | S15: =-(O26+S26)*Q17 -> 0.02920440801 | X15: =-(Y25+AC25)*AA21 -> -0.1020550268 | AA15: I = | AC15: =-(Y25+AC25)*AA17 -> -0.07937613197 | AH15: =-AI26*AK21 -> 0.1346725394 | AK15: I = | AM15: =-(AI21+AM21+AI22)*AK17 -> 4.017253452
I16: =-I23*G17 -> -0.2939343255 | N16: =-(O24+S24)*Q21 -> 0.2244357563 | S16: =-(O24+S24)*Q17 -> 0.1745611438 | X16: =-(Y23+AC23)*AA21 -> -0.7602778872 | AC16: =-(Y23+AC23)*AA17 -> -0.5913272456 | AH16: =-AI24*AK21 -> 1.003268108
D17: 12 | F17: KN | G17: =(4*G12/AR14)/((4*G12/AR14)+(4*L20/L36)+(4*G26/AR25)) -> 0.1148572535 | I17: =-(E21+I21)*G17 -> -7.950767489 | K17: 25 | M17: KN | N17: =-(O21+O22+S21+S22)*Q21 -> 0.7007827977 | Q17: =(4*Q12/AR14)/((4*Q12/AR14)+(4*V20/V36)+(4*Q26/AR25)+(4*L20/L36)) -> 0.04406812981 | S17: =-(O21+O22+S21+S22)*Q17 -> 0.5450532871 | U17: 15 | W17: KN | X17: =-(Y21+AC21)*AA21 -> 1.503814605 | AA17: =(4*AA12/AR14)/((4*AA12/AR14)+(4*AA26/AR25)+(4*V20/V36)+(4*AF20/AF36)) -> 0.0407806562 | AC17: =-(Y21+AC21)*AA17 -> 1.169633581 | AE17: 25 | AG17: KN | AH17: =-(AI21+AM21+AI22)*AK21 -> 11.71210919 | AK17: =(4*AK12/AR14)/((4*AK12/AR14)+(4*AK26/AR25)+(4*AF20/AF36)) -> 0.1037368891 | AN17: 12 | AP17: KN
B19: q = | C19: 10 | E19: KN/m | K19: q = | L19: 44.29 | N19: KN/m | U19: q = | V19: 40 | X19: KN/m | AE19: q = | AF19: 44.29 | AH19: KN/m | AM19: q = | AN19: 10 | AP19: KN/m
F20: 0 | H20: =(4*L20/L36)/((4*G12/AR14)+(4*L20/L36)+(4*G26/AR25)) -> 0.5502819491 | K20: I = | L20: =(L43*H45^3/12+H45*L43*(((H45*L43*H45/2+L50*(O46-H45)*((O46-H45)/2+H45))/(L43*H45+(O46-H45)*L50))-H45/2)^2+L50*(O46-H45)^3/12+L50*(O46-H45)*(O46-((H45*L43*H45/2+L50*(O46-H45)*((O46-H45)/2+H45))/(L43*H45+(O46-H45)*L50))-(O46-H45)/2)^2)*10000 -> 65.6185021 | N20: dm4 | P20: =(4*L20/L36)/((4*Q12/AR14)+(4*V20/V36)+(4*Q26/AR25)+(4*L20/L36)) -> 0.4138162407 | R20: =(4*V20/V36)/((4*Q12/AR14)+(4*V20/V36)+(4*Q26/AR25)+(4*L20/L36)) -> 0.4854566055 | U20: I = | V20: =(V43*R45^3/12+R45*V43*(((R45*V43*R45/2+V50*(Y46-R45)*((Y46-R45)/2+R45))/(V43*R45+(Y46-R45)*V50))-R45/2)^2+V50*(Y46-R45)^3/12+V50*(Y46-R45)*(Y46-((R45*V43*R45/2+V50*(Y46-R45)*((Y46-R45)/2+R45))/(V43*R45+(Y46-R45)*V50))-(Y46-R45)/2)^2)*10000 -> 83.6722348 | X20: dm4 | Z20: =(4*V20/V36)/((4*AA12/AR14)+(4*AA26/AR25)+(4*V20/V36)+(4*AF20/AF36)) -> 0.4492416405 | AB20: =(4*AF20/AF36)/((4*AA12/AR14)+(4*AA26/AR25)+(4*V20/V36)+(4*AF20/AF36)) -> 0.457545431 | AE20: I = | AF20: =(AF43*AB45^3/12+AB45*AF43*(((AB45*AF43*AB45/2+AF50*(AI46-AB45)*((AI46-AB45)/2+AB45))/(AF43*AB45+(AI46-AB45)*AF50))-AB45/2)^2+AF50*(AI46-AB45)^3/12+AF50*(AI46-AB45)*(AI46-((AB45*AF43*AB45/2+AF50*(AI46-AB45)*((AI46-AB45)/2+AB45))/(AF43*AB45+(AI46-AB45)*AF50))-(AI46-AB45)/2)^2)*10000 -> 65.6185021 | AH20: dm4 | AJ20: =(4*AF20/AF36)/((4*AK12/AR14)+(4*AK26/AR25)+(4*AF20/AF36)) -> 0.5938232011 | AL20: 0
E21: =IF(OR(D36=0,D36=""),0,-C19*D36*D36/2-D17*F34) -> -23.25 | G21: =(4*G26/AR25)/((4*G12/AR14)+(4*L20/L36)+(4*G26/AR25)) -> 0.3348607974 | I21: =L19*L36^2/12+K17*I34*N34^2/L36^2 -> 92.47303333 | O21: =-L19*L36^2/12-K17*N34*I34^2/L36^2 -> -92.47303333 | Q21: =(4*Q26/AR25)/((4*Q12/AR14)+(4*V20/V36)+(4*Q26/AR25)+(4*L20/L36)) -> 0.05665902404 | S21: =V19*V36^2/12+U17*S34*X34^2/V36^2 -> 92.70833333 | Y21: =-V19*V36^2/12-U17*X34*S34^2/V36^2 -> -92.70833333 | AA21: =(4*AA26/AR25)/((4*AA12/AR14)+(4*AA26/AR25)+(4*V20/V36)+(4*AF20/AF36)) -> 0.05243227226 | AC21: =AF19*AF36^2/12+AE17*AC34*AH34^2/AF36^2 -> 64.02724553 | AI21: =-AF19*AF36^2/12-AE17*AH34*AC34^2/AF36^2 -> -68.53685929 | AK21: =(4*AK26/AR25)/((4*AK12/AR14)+(4*AK26/AR25)+(4*AF20/AF36)) -> 0.3024399098 | AM21: =IF(OR(AM36=0,AM36=""),0,AN19*AM36*AM36/2+AN17*AL34) -> 23.25
I22: =-(E21+I21)*H20 -> -38.0921857 | O22: =+I22/2 -> -19.04609285 | S22: =+Y22/2 -> 6.442369469 | Y22: =-(Y21+AC21)*Z20 -> 12.88473894 | AC22: =-(Y21+AC21)*AB20 -> 13.12290068 | AI22: =+AC22/2 -> 6.561450342
I23: =+O23/2 -> 2.559127234 | O23: =-(O21+O22+S21+S22)*P20 -> 5.118254467 | S23: =-(O21+O22+S21+S22)*R20 -> 6.00433283 | Y23: =+S23/2 -> 3.002166415 | AC23: =+AI23/2 -> 11.49802315 | AI23: =-(AI21+AM21+AI22)*AJ20 -> 22.99604631
G24: dm4 | I24: =-I23*H20 -> -1.408241522 | O24: =+I24/2 -> -0.704120761 | Q24: dm4 | S24: =+Y24/2 -> -3.257044474 | Y24: =-(Y23+AC23)*Z20 -> -6.514088949 | AA24: dm4 | AC24: =-(Y23+AC23)*AB20 -> -6.634495486 | AI24: =+AC24/2 -> -3.317247743 | AK24: dm4 | AR24: m
I25: =+O25/2 -> 0.8195972533 | O25: =-(O24+S24)*P20 -> 1.639194507 | S25: =-(O24+S24)*R20 -> 1.922973829 | Y25: =+S25/2 -> 0.9614869145 | AC25: =+AI25/2 -> 0.9849293368 | AI25: =-AI24*AJ20 -> 1.969858674 | AR25: 3
G26: =I40*G38^3/12*10000 -> 26.04166667 | I26: =-I25*H20 -> -0.451009574 | O26: =+I26/2 -> -0.225504787 | Q26: =S40*Q38^3/12*10000 -> 5.859375 | S26: =+Y26/2 -> -0.4372056149 | Y26: =-(Y25+AC25)*Z20 -> -0.8744112298 | AA26: =AC40*AA38^3/12*10000 -> 5.859375 | AC26: =-(Y25+AC25)*AB20 -> -0.8905738627 | AI26: =+AC26/2 -> -0.4452869313 | AK26: =AM40*AK38^3/12*10000 -> 26.04166667
I27: =+O27/2 -> 0.1371201636 | O27: =-(O26+S26)*P20 -> 0.2742403272 | S27: =-(O26+S26)*R20 -> 0.3217171421 | Y27: =+S27/2 -> 0.1608585711 | AC27: =+AI27/2 -> 0.1322108555 | AI27: =-AI26*AJ20 -> 0.264421711
I28: =-I27*H20 -> -0.07545475088 | O28: =+I28/2 -> -0.03772737544 | S28: =+Y28/2 -> -0.06582949498 | Y28: =-(Y27+AC27)*Z20 -> -0.13165899 | AC28: =-(Y27+AC27)*AB20 -> -0.1340925771 | AI28: =+AC28/2 -> -0.06704628855
G29: I = | I29: =+O29/2 -> 0.02142675741 | O29: =-(O28+S28)*P20 -> 0.04285351481 | Q29: I = | S29: =-(O28+S28)*R20 -> 0.05027236679 | Y29: =+S29/2 -> 0.02513618339 | AA29: I = | AC29: =+AI29/2 -> 0.01990682084 | AI29: =-AI28*AJ20 -> 0.03981364169 | AK29: I =
I30: =-I29*H20 -> -0.01179075783 | Y30: =-(Y29+AC29)*Z20 -> -0.02023519312 | AC30: =-(Y29+AC29)*AB20 -> -0.02060922079
I31: =SUM(I21:J30) -> 55.97162243 | O31: =SUM(O21:P30) -> -105.4119363 | S31: =SUM(S21:T30) -> 103.6899194 | Y31: =SUM(Y21:Z30) -> -83.21434067 | AC31: =SUM(AC21:AD30) -> 82.10544523 | AI31: =SUM(AI21:AJ30) -> -40.53484958
C34: 0.5 | E34: m | F34: =+D36-C34 -> 1 | H34: m | I34: 2.3 | K34: m | N34: =+L36-I34 -> 2.3 | P34: m | S34: 2.5 | U34: m | X34: =+V36-S34 -> 2.5 | Z34: m | AC34: 2.3 | AE34: m | AH34: =+AF36-AC34 -> 1.55 | AJ34: m | AL34: =+AM36-AO34 -> 1 | AN34: m | AO34: 0.5 | AQ34: m
D36: 1.5 | F36: m | L36: 4.6 | N36: m | V36: 5 | X36: m | AF36: 3.85 | AH36: m | AM36: 1.5 | AO36: m
G38: 0.5 | I38: m | Q38: 0.25 | S38: m | AA38: 0.25 | AC38: m | AK38: 0.5 | AM38: m
I39: m | S39: m | AC39: m | AM39: m
I40: 0.25 | S40: 0.45 | AC40: 0.45 | AM40: 0.25
L43: 0.616 | N43: m | V43: 1.18 | X43: m | AF43: 0.616 | AH43: m
H45: 0.13 | J45: m | O45: m | R45: 0.13 | T45: m | Y45: m | AB45: 0.13 | AD45: m | AI45: m
O46: 0.6 | Y46: 0.6 | AI46: 0.6
L50: 0.25 | N50: m | V50: 0.25 | X50: m | AF50: 0.25 | AH50: m
D52: =IF(I12<0,I12/2,"") -> -4.178524384 | J52: =IF(I12>0,I12/2,"") ->  | N52: =IF(S12<0,S12/2,"") ->  | T52: =IF(S12>0,S12/2,"") -> 0.3766911983 | X52: =IF(AC12<0,AC12/2,"") ->  | AD52: =IF(AC12>0,AC12/2,"") -> 0.2425708785 | AH52: =IF(AM10<0,AM10/2,"") ->  | AN52: =IF(AM10>0,AM10/2,"") -> 2.207261134
J55: moment diyagramı (KNm)
R56: =-S31 -> -103.6899194
H57: =-I31 -> -55.97162243 | Z57: =Y31 -> -83.21434067 | AB57: =-AC31 -> -82.10544523 | AJ57: =AI31 -> -40.53484958
P58: =O31 -> -105.4119363
F59: =IF(E21=0,"",+E21) -> -23.25 | AL59: =IF(AM21=0,"",-AM21) -> -23.25
E61: =IF(I12>0,-I12,"") ->  | I61: =IF(I12<0,-I12,"") -> 8.357048768 | O61: =IF(S12>0,-S12,"") -> -0.7533823965 | S61: =IF(S12<0,-S12,"") ->  | Y61: =IF(AC12>0,-AC12,"") -> -0.4851417569 | AC61: =IF(AC12<0,-AC12,"") ->  | AI61: =IF(AM10>0,-AM10,"") -> -4.414522268 | AM61: =IF(AM10<0,-AM10,"") -> 
E62: =IF(D10<0,D10,"") -> -24.36457367 | I62: =IF(D10>0,D10,"") ->  | O62: =IF(N12<0,N12,"") ->  | S62: =IF(N12>0,N12,"") -> 0.9686345098 | Y62: =IF(X12<0,X12,"") ->  | AC62: =IF(X12>0,X12,"") -> 0.6237536875 | AI62: =IF(AH12<0,AH12,"") ->  | AM62: =IF(AH12>0,AH12,"") -> 12.87032731
L65: =+M116 -> 65.20527064 | V65: =+W116 -> 50.29786997 | AF65: =+AG116 -> 44.82521224
D74: =IF(D10>0,-D10/2,"") ->  | J74: =IF(D10<0,-D10/2,"") -> 12.18228683 | N74: =IF(N12>0,-N12/2,"") -> -0.4843172549 | T74: =IF(N12<0,-N12/2,"") ->  | X74: =IF(X12>0,-X12/2,"") -> -0.3118768437 | AD74: =IF(X12<0,-X12/2,"") ->  | AH74: =IF(AH12>0,-AH12/2,"") -> -6.435163655 | AN74: =IF(AH12<0,-AH12/2,"") -> 
D77: =IF(I12<0,(I12+I12/2)/$AR$14,"") -> -4.178524384 | J77: =IF(I12>0,(I12+I12/2)/$AR$14,"") ->  | N77: =IF(S12<0,(S12+S12/2)/$AR$14,"") ->  | T77: =IF(S12>0,(S12+S12/2)/$AR$14,"") -> 0.3766911983 | X77: =IF(AC12<0,(AC12+AC12/2)/$AR$14,"") ->  | AD77: =IF(AC12>0,(AC12+AC12/2)/$AR$14,"") -> 0.2425708785 | AH77: =IF(AM10<0,(AM10+AM10/2)/$AR$14,"") ->  | AN77: =IF(AM10>0,(AM10+AM10/2)/$AR$14,"") -> 2.207261134
J80: kesme kuvveti diyagramı (KN)
H84: =+M112 -> 103.6191057 | R84: =+W112 -> 111.5951157 | AB84: =+AG112 -> 106.1207424 | AL84: =IF(AM21=0,"",AN19*AM36+AN17) -> 27
D86: =IF(D77<0,D77,"") -> -4.178524384 | J86: =IF(J77>0,J77,"") ->  | N86: =IF(N77<0,N77,"") ->  | T86: =IF(T77>0,T77,"") -> 0.3766911983 | X86: =IF(X77<0,X77,"") ->  | AD86: =IF(AD77>0,AD77,"") -> 0.2425708785 | AH86: =IF(AH77<0,AH77,"") ->  | AN86: =IF(AN77>0,AN77,"") -> 2.207261134
D87: =IF(D99<0,D99,"") -> -12.18228683 | J87: =IF(J99>0,J99,"") ->  | N87: =IF(N99<0,N99,"") ->  | T87: =IF(T99>0,T99,"") -> 0.4843172549 | X87: =IF(X99<0,X99,"") ->  | AD87: =IF(AD99>0,AD99,"") -> 0.3118768437 | AH87: =IF(AH99<0,AH99,"") ->  | AN87: =IF(AN99>0,AN99,"") -> 6.435163655
P89: =-M113 -> -125.1148943 | Z89: =-W113 -> -103.4048843 | AJ89: =-AG113 -> -89.39575762
F90: =IF(E21=0,"",-C19*D36-D17) -> -27
I91: =+M114 -> 2.3 | K91: m | S91: =+W114 -> 2.5 | U91: m | AC91: =+AG114 -> 2.3 | AE91: m
D99: =IF(D10<0,(D10+D10/2)/$AR$25,"") -> -12.18228683 | J99: =IF(D10>0,(D10+D10/2)/$AR$25,"") ->  | N99: =IF(N12<0,(N12+N12/2)/$AR$25,"") ->  | T99: =IF(N12>0,(N12+N12/2)/$AR$25,"") -> 0.4843172549 | X99: =IF(X12<0,(X12+X12/2)/$AR$25,"") ->  | AD99: =IF(X12>0,(X12+X12/2)/$AR$25,"") -> 0.3118768437 | AH99: =IF(AH12<0,(AH12+AH12/2)/$AR$25,"") ->  | AN99: =IF(AH12>0,(AH12+AH12/2)/$AR$25,"") -> 6.435163655
B101: kiriş faydalı yükseklik d = h - d' (m) | H101: =O46-N3 -> 0.57 | R101: =Y46-N3 -> 0.57 | AB101: =AI46-N3 -> 0.57
D105: =IF(OR(C19=0,C19="",D36=0,D36=""),0,IF(OR(D17=0,D17="",C34=0,C34=""),1,2)) -> 2 | L105: sol moment M1= | M105: =+I31 -> 55.97162243 | N105: =IF(M110=0,0,IF(M117="durum 1",1,IF(M117="durum 2",2,IF(M117="durum 3",3)))) -> 2 | V105: sol moment M1= | W105: =+S31 -> 103.6899194 | X105: =IF(W110=0,0,IF(W117="durum 1",1,IF(W117="durum 2",2,IF(W117="durum 3",3)))) -> 2 | AF105: sol moment M1= | AG105: =+AC31 -> 82.10544523 | AH105: =IF(AG110=0,0,IF(AG117="durum 1",1,IF(AG117="durum 2",2,IF(AG117="durum 3",3)))) -> 2 | AO105: =IF(OR(AM36=0,AM36="",AN19=0,AN19=""),0,IF(OR(AN17=0,AN17="",AO34=0,AO34=""),1,2)) -> 2
L106: sağ moment M2= | M106: =-O31 -> 105.4119363 | V106: sağ moment M2= | W106: =-Y31 -> 83.21434067 | AF106: sağ moment M2= | AG106: =-AI31 -> 40.53484958
L107: tekil yük K= | M107: =+K17 -> 25 | V107: tekil yük K= | W107: =+U17 -> 15 | AF107: tekil yük K= | AG107: =+AE17 -> 25
L108: yayılı yük Pd= | M108: =+L19 -> 44.29 | V108: yayılı yük Pd= | W108: =+V19 -> 40 | AF108: yayılı yük Pd= | AG108: =+AF19 -> 44.29
L109: L= | M109: =+L36 -> 4.6 | V109: L= | W109: =+V36 -> 5 | AF109: L= | AG109: =+AF36 -> 3.85
L110: (K=0 ise a=0 alınacak) a= | M110: =IF(OR(K17=0,K17="",I34=0,I34=""),0,I34) -> 2.3 | V110: (K=0 ise a=0 alınacak) a= | W110: =IF(OR(U17=0,U17="",S34=0,S34=""),0,S34) -> 2.5 | AF110: (K=0 ise a=0 alınacak) a= | AG110: =IF(OR(AE17=0,AE17="",AC34=0,AC34=""),0,AC34) -> 2.3
L111: b= | M111: =M109-M110 -> 2.3 | V111: b= | W111: =W109-W110 -> 2.5 | AF111: b= | AG111: =AG109-AG110 -> 1.55
L112: (sol eksen kesme kuvveti) A= | M112: =IF(M107>0,M108*M109+M107-M113,M108*M109-M113) -> 103.6191057 | V112: (sol eksen kesme kuvveti) A= | W112: =IF(W107>0,W108*W109+W107-W113,W108*W109-W113) -> 111.5951157 | AF112: (sol eksen kesme kuvveti) A= | AG112: =IF(AG107>0,AG108*AG109+AG107-AG113,AG108*AG109-AG113) -> 106.1207424
L113: (sağ eksen kesme kuvveti) B= | M113: =IF(M107>0,(M108*M109^2*0.5+M107*M110+M106-M105)/M109,(0.5*M108*M109^2+M106-M105)/M109) -> 125.1148943 | V113: (sağ eksen kesme kuvveti) B= | W113: =IF(W107>0,(W108*W109^2*0.5+W107*W110+W106-W105)/W109,(0.5*W108*W109^2+W106-W105)/W109) -> 103.4048843 | AF113: (sağ eksen kesme kuvveti) B= | AG113: =IF(AG107>0,(AG108*AG109^2*0.5+AG107*AG110+AG106-AG105)/AG109,(0.5*AG108*AG109^2+AG106-AG105)/AG109) -> 89.39575762
L114: (max mom yeri A'dan mesafesi) x= | M114: =IF(M108*M110>M112,(M112*M110)/(M110*M108),IF(AND(M108*M110<M112,M107>M112-M108*M110),M110,IF(AND(M108*M110<M112,M107<M112-M108*M110),((M109-M110)*(M112-M108*M110-M107)/(M112-M108*M110-M107+M113))+M110,"HATALI"))) -> 2.3 | V114: (max mom yeri A'dan mesafesi) x= | W114: =IF(W108*W110>W112,(W112*W110)/(W110*W108),IF(AND(W108*W110<W112,W107>W112-W108*W110),W110,IF(AND(W108*W110<W112,W107<W112-W108*W110),((W109-W110)*(W112-W108*W110-W107)/(W112-W108*W110-W107+W113))+W110,"HATALI"))) -> 2.5 | AF114: (max mom yeri A'dan mesafesi) x= | AG114: =IF(AG108*AG110>AG112,(AG112*AG110)/(AG110*AG108),IF(AND(AG108*AG110<AG112,AG107>AG112-AG108*AG110),AG110,IF(AND(AG108*AG110<AG112,AG107<AG112-AG108*AG110),((AG109-AG110)*(AG112-AG108*AG110-AG107)/(AG112-AG108*AG110-AG107+AG113))+AG110,"HATALI"))) -> 2.3
L115: açıklık momenti Mmax= | M115: =IF(M108*M110>M112,(M112*M114/2)-M105,IF(AND(M108*M110<M112,M107>M112-M108*M110),(((M112+M112-M110*M108)/2)*M110)-M105,IF(AND(M108*M110<M112,M107<M112-M108*M110),(((M109-M110)*(M112-M108*M110-M107)/(M112-M108*M110-M107+M113))*(M112-M110*M108-M107)/2+(M112+M112-M110*M108)*M110/2)-M105,"HATALI"))) -> 65.20527064 | V115: açıklık momenti Mmax= | W115: =IF(W108*W110>W112,(W112*W114/2)-W105,IF(AND(W108*W110<W112,W107>W112-W108*W110),(((W112+W112-W110*W108)/2)*W110)-W105,IF(AND(W108*W110<W112,W107<W112-W108*W110),(((W109-W110)*(W112-W108*W110-W107)/(W112-W108*W110-W107+W113))*(W112-W110*W108-W107)/2+(W112+W112-W110*W108)*W110/2)-W105,"HATALI"))) -> 50.29786997 | AF115: açıklık momenti Mmax= | AG115: =IF(AG108*AG110>AG112,(AG112*AG114/2)-AG105,IF(AND(AG108*AG110<AG112,AG107>AG112-AG108*AG110),(((AG112+AG112-AG110*AG108)/2)*AG110)-AG105,IF(AND(AG108*AG110<AG112,AG107<AG112-AG108*AG110),(((AG109-AG110)*(AG112-AG108*AG110-AG107)/(AG112-AG108*AG110-AG107+AG113))*(AG112-AG110*AG108-AG107)/2+(AG112+AG112-AG110*AG108)*AG110/2)-AG105,"HATALI"))) -> 44.82521224
L116: x'den bağımsız hesap Mmax= | M116: =IF(M108*M110>M112,(M112*(IF(M108*M110>M112,(M112*M110)/(M110*M108),IF(AND(M108*M110<M112,M107>M112-M108*M110),M110,IF(AND(M108*M110<M112,M107<M112-M108*M110),((M109-M110)*(M112-M108*M110-M107)/(M112-M108*M110-M107+M113))+M110,"HATALI"))))/2)-M105,IF(AND(M108*M110<M112,M107>M112-M108*M110),(((M112+M112-M110*M108)/2)*M110)-M105,IF(AND(M108*M110<M112,M107<M112-M108*M110),(((M109-M110)*(M112-M108*M110-M107)/(M112-M108*M110-M107+M113))*(M112-M110*M108-M107)/2+(M112+M112-M110*M108)*M110/2)-M105,"HATALI"))) -> 65.20527064 | V116: x'den bağımsız hesap Mmax= | W116: =IF(W108*W110>W112,(W112*(IF(W108*W110>W112,(W112*W110)/(W110*W108),IF(AND(W108*W110<W112,W107>W112-W108*W110),W110,IF(AND(W108*W110<W112,W107<W112-W108*W110),((W109-W110)*(W112-W108*W110-W107)/(W112-W108*W110-W107+W113))+W110,"HATALI"))))/2)-W105,IF(AND(W108*W110<W112,W107>W112-W108*W110),(((W112+W112-W110*W108)/2)*W110)-W105,IF(AND(W108*W110<W112,W107<W112-W108*W110),(((W109-W110)*(W112-W108*W110-W107)/(W112-W108*W110-W107+W113))*(W112-W110*W108-W107)/2+(W112+W112-W110*W108)*W110/2)-W105,"HATALI"))) -> 50.29786997 | AF116: x'den bağımsız hesap Mmax= | AG116: =IF(AG108*AG110>AG112,(AG112*(IF(AG108*AG110>AG112,(AG112*AG110)/(AG110*AG108),IF(AND(AG108*AG110<AG112,AG107>AG112-AG108*AG110),AG110,IF(AND(AG108*AG110<AG112,AG107<AG112-AG108*AG110),((AG109-AG110)*(AG112-AG108*AG110-AG107)/(AG112-AG108*AG110-AG107+AG113))+AG110,"HATALI"))))/2)-AG105,IF(AND(AG108*AG110<AG112,AG107>AG112-AG108*AG110),(((AG112+AG112-AG110*AG108)/2)*AG110)-AG105,IF(AND(AG108*AG110<AG112,AG107<AG112-AG108*AG110),(((AG109-AG110)*(AG112-AG108*AG110-AG107)/(AG112-AG108*AG110-AG107+AG113))*(AG112-AG110*AG108-AG107)/2+(AG112+AG112-AG110*AG108)*AG110/2)-AG105,"HATALI"))) -> 44.82521224
L117: durum | M117: =IF(M108*M110>M112,"durum 1",IF(AND(M108*M110<M112,M107>M112-M108*M110),"durum 2",IF(AND(M108*M110<M112,M107<M112-M108*M110),"durum 3","HATALI"))) -> durum 2 | V117: durum | W117: =IF(W108*W110>W112,"durum 1",IF(AND(W108*W110<W112,W107>W112-W108*W110),"durum 2",IF(AND(W108*W110<W112,W107<W112-W108*W110),"durum 3","HATALI"))) -> durum 2 | AF117: durum | AG117: =IF(AG108*AG110>AG112,"durum 1",IF(AND(AG108*AG110<AG112,AG107>AG112-AG108*AG110),"durum 2",IF(AND(AG108*AG110<AG112,AG107<AG112-AG108*AG110),"durum 3","HATALI"))) -> durum 2
L118: sol mesnet (kolon genişliği) s1= | M118: =+G38 -> 0.5 | V118: sol mesnet (kolon genişliği) s1= | W118: =+Q38 -> 0.25 | AF118: sol mesnet (kolon genişliği) s1= | AG118: =+AA38 -> 0.25
L119: sağ mesnet (kolon genişliği) s2= | M119: =+Q38 -> 0.25 | V119: sağ mesnet (kolon genişliği) s2= | W119: =+AA38 -> 0.25 | AF119: sağ mesnet (kolon genişliği) s2= | AG119: =+AK38 -> 0.5
L120: kiriş d yüksekliği= | M120: =+H101 -> 0.57 | V120: kiriş d yüksekliği= | W120: =+R101 -> 0.57 | AF120: kiriş d yüksekliği= | AG120: =+AB101 -> 0.57
L121: kiriş h yüksekliği= | M121: =+O46 -> 0.6 | V121: kiriş h yüksekliği= | W121: =+Y46 -> 0.6 | AF121: kiriş h yüksekliği= | AG121: =+AI46 -> 0.6
L122: sol kolon yüzünden d mesafede kesme kuvveti | V122: sol kolon yüzünden d mesafede kesme kuvveti | AF122: sol kolon yüzünden d mesafede kesme kuvveti
L123: durum 1 için | M123: =IF(M114>(M120+M118/2),M112-M108*(M118/2+M120),IF(AND(M114<(M120+M118/2),(M120+M118/2)<M110),M108*(M120+M118/2)-M112,IF((M120+M118/2)=M110,M113-M108*M111,M108*M110-M112+M107+(M120+M118/2-M110)*M108))) -> 67.30130568 | V123: durum 1 için | W123: =IF(W114>(W120+W118/2),W112-W108*(W118/2+W120),IF(AND(W114<(W120+W118/2),(W120+W118/2)<W110),W108*(W120+W118/2)-W112,IF((W120+W118/2)=W110,W113-W108*W111,W108*W110-W112+W107+(W120+W118/2-W110)*W108))) -> 83.79511574 | AF123: durum 1 için | AG123: =IF(AG114>(AG120+AG118/2),AG112-AG108*(AG118/2+AG120),IF(AND(AG114<(AG120+AG118/2),(AG120+AG118/2)<AG110),AG108*(AG120+AG118/2)-AG112,IF((AG120+AG118/2)=AG110,AG113-AG108*AG111,AG108*AG110-AG112+AG107+(AG120+AG118/2-AG110)*AG108))) -> 75.33919238
L124: durum 2 için | M124: =IF(M120+M118/2<M110,M112-(M120+M118/2)*M108,IF((M118/2+M120)=M110,M112-M108*M110,IF(M120+M118/2>M110,M107-M112+M108*M110+(M120+M118/2-M110)*M108,0))) -> 67.30130568 | V124: durum 2 için | W124: =IF(W120+W118/2<W110,W112-(W120+W118/2)*W108,IF((W118/2+W120)=W110,W112-W108*W110,IF(W120+W118/2>W110,W107-W112+W108*W110+(W120+W118/2-W110)*W108,0))) -> 83.79511574 | AF124: durum 2 için | AG124: =IF(AG120+AG118/2<AG110,AG112-(AG120+AG118/2)*AG108,IF((AG118/2+AG120)=AG110,AG112-AG108*AG110,IF(AG120+AG118/2>AG110,AG107-AG112+AG108*AG110+(AG120+AG118/2-AG110)*AG108,0))) -> 75.33919238
L125: durum 3 için | M125: =IF((M120+M118/2)<M110,M112-(M120+M118/2)*M108,IF(AND(M110<(M120+M118/2),(M120+M118/2)<M114),M112-M108*M110-M107-(M120+M118/2-M110)*M108,IF((M120+M118/2)>M114,(M120+M118/2-M114)*M108,IF((M120+M118/2)=M110,M112-M108*M110,0)))) -> 67.30130568 | V125: durum 3 için | W125: =IF((W120+W118/2)<W110,W112-(W120+W118/2)*W108,IF(AND(W110<(W120+W118/2),(W120+W118/2)<W114),W112-W108*W110-W107-(W120+W118/2-W110)*W108,IF((W120+W118/2)>W114,(W120+W118/2-W114)*W108,IF((W120+W118/2)=W110,W112-W108*W110,0)))) -> 83.79511574 | AF125: durum 3 için | AG125: =IF((AG120+AG118/2)<AG110,AG112-(AG120+AG118/2)*AG108,IF(AND(AG110<(AG120+AG118/2),(AG120+AG118/2)<AG114),AG112-AG108*AG110-AG107-(AG120+AG118/2-AG110)*AG108,IF((AG120+AG118/2)>AG114,(AG120+AG118/2-AG114)*AG108,IF((AG120+AG118/2)=AG110,AG112-AG108*AG110,0)))) -> 75.33919238
L126: sağ kolon yüzünden d mesafede kesme kuvveti | V126: sağ kolon yüzünden d mesafede kesme kuvveti | AF126: sağ kolon yüzünden d mesafede kesme kuvveti
L127: durum 1 için | M127: =IF((M120+M119/2)<M111,M113-(M120+M119/2)*M108,IF(AND((M120+M119/2)>M111,(M120+M119/2)<(M109-M114)),M113-M111*M108-M107-(M120+M119/2-M111)*M108,IF((M120+M119/2)=(M109-M110),M107+M108*M110-M112,((M120+M119/2)-(M109-M114))*M108))) -> 94.33334432 | V127: durum 1 için | W127: =IF((W120+W119/2)<W111,W113-(W120+W119/2)*W108,IF(AND((W120+W119/2)>W111,(W120+W119/2)<(W109-W114)),W113-W111*W108-W107-(W120+W119/2-W111)*W108,IF((W120+W119/2)=(W109-W110),W107+W108*W110-W112,((W120+W119/2)-(W109-W114))*W108))) -> 75.60488426 | AF127: durum 1 için | AG127: =IF((AG120+AG119/2)<AG111,AG113-(AG120+AG119/2)*AG108,IF(AND((AG120+AG119/2)>AG111,(AG120+AG119/2)<(AG109-AG114)),AG113-AG111*AG108-AG107-(AG120+AG119/2-AG111)*AG108,IF((AG120+AG119/2)=(AG109-AG110),AG107+AG108*AG110-AG112,((AG120+AG119/2)-(AG109-AG114))*AG108))) -> 53.07795762
L128: durum 2 için | M128: =IF((M120+M119/2)<M111,M113-(M120+M119/2)*M108,IF((M120+M119/2)=M111,M107-M112+M108*M110,IF((M120+M119/2)>M111,M112-(M109-(M120+M119/2))*M108,0))) -> 94.33334432 | V128: durum 2 için | W128: =IF((W120+W119/2)<W111,W113-(W120+W119/2)*W108,IF((W120+W119/2)=W111,W107-W112+W108*W110,IF((W120+W119/2)>W111,W112-(W109-(W120+W119/2))*W108,0))) -> 75.60488426 | AF128: durum 2 için | AG128: =IF((AG120+AG119/2)<AG111,AG113-(AG120+AG119/2)*AG108,IF((AG120+AG119/2)=AG111,AG107-AG112+AG108*AG110,IF((AG120+AG119/2)>AG111,AG112-(AG109-(AG120+AG119/2))*AG108,0))) -> 53.07795762
L129: durum 3 için | M129: =IF((M109-M114)>(M120+M119/2),M113-(M120+M119/2)*M108,IF(AND((M120+M119/2)>(M109-M114),(M109-M110)>(M120+M119/2)),((M120+M119/2)-(M109-M114))*M108,IF(M120+M119/2>(M109-M110),M112-(M109-(M120+M119/2))*M108,IF((M120+M119/2)=(M109-M110),M112-M108*M110-M107,0)))) -> 94.33334432 | V129: durum 3 için | W129: =IF((W109-W114)>(W120+W119/2),W113-(W120+W119/2)*W108,IF(AND((W120+W119/2)>(W109-W114),(W109-W110)>(W120+W119/2)),((W120+W119/2)-(W109-W114))*W108,IF(W120+W119/2>(W109-W110),W112-(W109-(W120+W119/2))*W108,IF((W120+W119/2)=(W109-W110),W112-W108*W110-W107,0)))) -> 75.60488426 | AF129: durum 3 için | AG129: =IF((AG109-AG114)>(AG120+AG119/2),AG113-(AG120+AG119/2)*AG108,IF(AND((AG120+AG119/2)>(AG109-AG114),(AG109-AG110)>(AG120+AG119/2)),((AG120+AG119/2)-(AG109-AG114))*AG108,IF(AG120+AG119/2>(AG109-AG110),AG112-(AG109-(AG120+AG119/2))*AG108,IF((AG120+AG119/2)=(AG109-AG110),AG112-AG108*AG110-AG107,0)))) -> 53.07795762
L130: sol kolon yüzünden 2h mesafede kesme kuvveti | V130: sol kolon yüzünden 2h mesafede kesme kuvveti | AF130: sol kolon yüzünden 2h mesafede kesme kuvveti
L131: durum 1 için | M131: =IF(M114>(M121*2+M118/2),M112-M108*(M118/2+M121*2),IF(AND(M114<(M121*2+M118/2),(M121*2+M118/2)<M110),M108*(M121*2+M118/2)-M112,IF((M121*2+M118/2)=M110,M113-M108*M111,M108*M110-M112+M107+(M121*2+M118/2-M110)*M108))) -> 39.39860568 | V131: durum 1 için | W131: =IF(W114>(W121*2+W118/2),W112-W108*(W118/2+W121*2),IF(AND(W114<(W121*2+W118/2),(W121*2+W118/2)<W110),W108*(W121*2+W118/2)-W112,IF((W121*2+W118/2)=W110,W113-W108*W111,W108*W110-W112+W107+(W121*2+W118/2-W110)*W108))) -> 58.59511574 | AF131: durum 1 için | AG131: =IF(AG114>(AG121*2+AG118/2),AG112-AG108*(AG118/2+AG121*2),IF(AND(AG114<(AG121*2+AG118/2),(AG121*2+AG118/2)<AG110),AG108*(AG121*2+AG118/2)-AG112,IF((AG121*2+AG118/2)=AG110,AG113-AG108*AG111,AG108*AG110-AG112+AG107+(AG121*2+AG118/2-AG110)*AG108))) -> 47.43649238
L132: durum 2 için | M132: =IF(M121*2+M118/2<M110,M112-(M121*2+M118/2)*M108,IF((M118/2+M121*2)=M110,M112-M108*M110,IF(M121*2+M118/2>M110,M107-M112+M108*M110+(M121*2+M118/2-M110)*M108,0))) -> 39.39860568 | V132: durum 2 için | W132: =IF(W121*2+W118/2<W110,W112-(W121*2+W118/2)*W108,IF((W118/2+W121*2)=W110,W112-W108*W110,IF(W121*2+W118/2>W110,W107-W112+W108*W110+(W121*2+W118/2-W110)*W108,0))) -> 58.59511574 | AF132: durum 2 için | AG132: =IF(AG121*2+AG118/2<AG110,AG112-(AG121*2+AG118/2)*AG108,IF((AG118/2+AG121*2)=AG110,AG112-AG108*AG110,IF(AG121*2+AG118/2>AG110,AG107-AG112+AG108*AG110+(AG121*2+AG118/2-AG110)*AG108,0))) -> 47.43649238
L133: durum 3 için | M133: =IF((M121*2+M118/2)<M110,M112-(M121*2+M118/2)*M108,IF(AND(M110<(M121*2+M118/2),(M121*2+M118/2)<M114),M112-M108*M110-M107-(M121*2+M118/2-M110)*M108,IF((M121*2+M118/2)>M114,(M121*2+M118/2-M114)*M108,IF((M121*2+M118/2)=M110,M112-M108*M110,0)))) -> 39.39860568 | V133: durum 3 için | W133: =IF((W121*2+W118/2)<W110,W112-(W121*2+W118/2)*W108,IF(AND(W110<(W121*2+W118/2),(W121*2+W118/2)<W114),W112-W108*W110-W107-(W121*2+W118/2-W110)*W108,IF((W121*2+W118/2)>W114,(W121*2+W118/2-W114)*W108,IF((W121*2+W118/2)=W110,W112-W108*W110,0)))) -> 58.59511574 | AF133: durum 3 için | AG133: =IF((AG121*2+AG118/2)<AG110,AG112-(AG121*2+AG118/2)*AG108,IF(AND(AG110<(AG121*2+AG118/2),(AG121*2+AG118/2)<AG114),AG112-AG108*AG110-AG107-(AG121*2+AG118/2-AG110)*AG108,IF((AG121*2+AG118/2)>AG114,(AG121*2+AG118/2-AG114)*AG108,IF((AG121*2+AG118/2)=AG110,AG112-AG108*AG110,0)))) -> 47.43649238
L134: sağ kolon yüzünden 2h mesafede kesme kuvveti | V134: sağ kolon yüzünden 2h mesafede kesme kuvveti | AF134: sağ kolon yüzünden 2h mesafede kesme kuvveti
L135: durum 1 için | M135: =IF((M121*2+M119/2)<M111,M113-(M121*2+M119/2)*M108,IF(AND((M121*2+M119/2)>M111,(M121*2+M119/2)<(M109-M114)),M113-M111*M108-M107-(M121*2+M119/2-M111)*M108,IF((M121*2+M119/2)=(M109-M110),M107+M108*M110-M112,((M121*2+M119/2)-(M109-M114))*M108))) -> 66.43064432 | V135: durum 1 için | W135: =IF((W121*2+W119/2)<W111,W113-(W121*2+W119/2)*W108,IF(AND((W121*2+W119/2)>W111,(W121*2+W119/2)<(W109-W114)),W113-W111*W108-W107-(W121*2+W119/2-W111)*W108,IF((W121*2+W119/2)=(W109-W110),W107+W108*W110-W112,((W121*2+W119/2)-(W109-W114))*W108))) -> 50.40488426 | AF135: durum 1 için | AG135: =IF((AG121*2+AG119/2)<AG111,AG113-(AG121*2+AG119/2)*AG108,IF(AND((AG121*2+AG119/2)>AG111,(AG121*2+AG119/2)<(AG109-AG114)),AG113-AG111*AG108-AG107-(AG121*2+AG119/2-AG111)*AG108,IF((AG121*2+AG119/2)=(AG109-AG110),AG107+AG108*AG110-AG112,((AG121*2+AG119/2)-(AG109-AG114))*AG108))) -> 25.17525762
L136: durum 2 için | M136: =IF((M121*2+M119/2)<M111,M113-(M121*2+M119/2)*M108,IF((M121*2+M119/2)=M111,M107-M112+M108*M110,IF((M121*2+M119/2)>M111,M112-(M109-(M121*2+M119/2))*M108,0))) -> 66.43064432 | V136: durum 2 için | W136: =IF((W121*2+W119/2)<W111,W113-(W121*2+W119/2)*W108,IF((W121*2+W119/2)=W111,W107-W112+W108*W110,IF((W121*2+W119/2)>W111,W112-(W109-(W121*2+W119/2))*W108,0))) -> 50.40488426 | AF136: durum 2 için | AG136: =IF((AG121*2+AG119/2)<AG111,AG113-(AG121*2+AG119/2)*AG108,IF((AG121*2+AG119/2)=AG111,AG107-AG112+AG108*AG110,IF((AG121*2+AG119/2)>AG111,AG112-(AG109-(AG121*2+AG119/2))*AG108,0))) -> 25.17525762
L137: durum 3 için | M137: =IF((M109-M114)>(M121*2+M119/2),M113-(M121*2+M119/2)*M108,IF(AND((M121*2+M119/2)>(M109-M114),(M109-M110)>(M121*2+M119/2)),((M121*2+M119/2)-(M109-M114))*M108,IF(M121*2+M119/2>(M109-M110),M112-(M109-(M121*2+M119/2))*M108,IF((M121*2+M119/2)=(M109-M110),M112-M108*M110,0)))) -> 66.43064432 | V137: durum 3 için | W137: =IF((W109-W114)>(W121*2+W119/2),W113-(W121*2+W119/2)*W108,IF(AND((W121*2+W119/2)>(W109-W114),(W109-W110)>(W121*2+W119/2)),((W121*2+W119/2)-(W109-W114))*W108,IF(W121*2+W119/2>(W109-W110),W112-(W109-(W121*2+W119/2))*W108,IF((W121*2+W119/2)=(W109-W110),W112-W108*W110,0)))) -> 50.40488426 | AF137: durum 3 için | AG137: =IF((AG109-AG114)>(AG121*2+AG119/2),AG113-(AG121*2+AG119/2)*AG108,IF(AND((AG121*2+AG119/2)>(AG109-AG114),(AG109-AG110)>(AG121*2+AG119/2)),((AG121*2+AG119/2)-(AG109-AG114))*AG108,IF(AG121*2+AG119/2>(AG109-AG110),AG112-(AG109-(AG121*2+AG119/2))*AG108,IF((AG121*2+AG119/2)=(AG109-AG110),AG112-AG108*AG110,0)))) -> 25.17525762
L138: sol kolon yüzünden d mesafede kesme kuvveti= | M138: =IF(M117="durum 1",M123,IF(M117="durum 2",M124,IF(M117="durum 3",M125,"hatalı"))) -> 67.30130568 | V138: sol kolon yüzünden d mesafede kesme kuvveti= | W138: =IF(W117="durum 1",W123,IF(W117="durum 2",W124,IF(W117="durum 3",W125,"hatalı"))) -> 83.79511574 | AF138: sol kolon yüzünden d mesafede kesme kuvveti= | AG138: =IF(AG117="durum 1",AG123,IF(AG117="durum 2",AG124,IF(AG117="durum 3",AG125,"hatalı"))) -> 75.33919238
L139: sağ kolon yüzünden d mesafede kesme kuvveti= | M139: =IF(M117="durum 1",M127,IF(M117="durum 2",M128,IF(M117="durum 3",M129,"hatalı"))) -> 94.33334432 | V139: sağ kolon yüzünden d mesafede kesme kuvveti= | W139: =IF(W117="durum 1",W127,IF(W117="durum 2",W128,IF(W117="durum 3",W129,"hatalı"))) -> 75.60488426 | AF139: sağ kolon yüzünden d mesafede kesme kuvveti= | AG139: =IF(AG117="durum 1",AG127,IF(AG117="durum 2",AG128,IF(AG117="durum 3",AG129,"hatalı"))) -> 53.07795762
L140: sol kolon yüzünden 2h mesafede kesme kuvveti= | M140: =IF(M117="durum 1",M131,IF(M117="durum 2",M132,IF(M117="durum 3",M133,"hatalı"))) -> 39.39860568 | V140: sol kolon yüzünden 2h mesafede kesme kuvveti= | W140: =IF(W117="durum 1",W131,IF(W117="durum 2",W132,IF(W117="durum 3",W133,"hatalı"))) -> 58.59511574 | AF140: sol kolon yüzünden 2h mesafede kesme kuvveti= | AG140: =IF(AG117="durum 1",AG131,IF(AG117="durum 2",AG132,IF(AG117="durum 3",AG133,"hatalı"))) -> 47.43649238
L141: sağ kolon yüzünden 2h mesafede kesme kuvveti= | M141: =IF(M117="durum 1",M135,IF(M117="durum 2",M136,IF(M117="durum 3",M137,"hatalı"))) -> 66.43064432 | V141: sağ kolon yüzünden 2h mesafede kesme kuvveti= | W141: =IF(W117="durum 1",W135,IF(W117="durum 2",W136,IF(W117="durum 3",W137,"hatalı"))) -> 50.40488426 | AF141: sağ kolon yüzünden 2h mesafede kesme kuvveti= | AG141: =IF(AG117="durum 1",AG135,IF(AG117="durum 2",AG136,IF(AG117="durum 3",AG137,"hatalı"))) -> 25.17525762
B142: kiriş kolon yüzünden d mesafede kesme kuvveti (KN) | H142: =+M138 -> 67.30130568 | O142: =+M139 -> 94.33334432 | R142: =+W138 -> 83.79511574 | Y142: =+W139 -> 75.60488426 | AB142: =+AG138 -> 75.33919238 | AI142: =+AG139 -> 53.07795762
B147: kiriş kolon yüzünden 2*h mesafede kesme kuvveti (KN) | H147: =+M140 -> 39.39860568 | O147: =+M141 -> 66.43064432 | R147: =+W140 -> 58.59511574 | Y147: =+W141 -> 50.40488426 | AB147: =+AG140 -> 47.43649238 | AI147: =+AG141 -> 25.17525762
B152: kiriş kolon yüzü kesme kuvveti (KN) | H152: =+M112-L19*G38/2 -> 92.54660568 | O152: =+M113-Q38/2*L19 -> 119.5786443 | R152: =+W112-V19*Q38/2 -> 106.5951157 | Y152: =+W113-AA38/2*V19 -> 98.40488426 | AB152: =+AG112-AF19*AA38/2 -> 100.5844924 | AI152: =+AG113-AK38/2*AF19 -> 78.32325762
B155: kiriş kolon yüzü moment (KNm) | H155: =+M105-(M112+H152)/2*G38/2 -> 31.45090851 | O155: =+M106-(O152+M113)/2*Q38/2 -> 90.11859013 | R155: =+W105-(W112+R152)/2*Q38/2 -> 90.05302992 | Y155: =+W106-(Y152+W113)/2*AA38/2 -> 70.60123014 | AB155: =+AG105-(AG112+AB152)/2*AA38/2 -> 69.18636806 | AI155: =+AG106-(AI152+AG113)/2*AK38/2 -> 19.56997267

Sheet 4_aciklikli
B2: SAPLAMA KİRİŞLİ ÇERÇEVE CROSS (4 AÇIKLIKLI) (inş.müh. Gürcan BERBEROĞLU tel: 0532 366 02 04 www.betoncelik.com )
I3: pas payı d ' = | N3: 0.03 | P3: m | V3: dikkat sadece sarı hücrelere rakam giriniz.
G4: 0.5 | I4: m | Q4: 0.5 | S4: m | AA4: 0.5 | AC4: m | AK4: 0.5 | AM4: m | AU4: 0.5 | AW4: m
I5: m | S5: m | AC5: m | AM5: m | AW5: m
I6: 0.6 | S6: 0.6 | AC6: 0.6 | AM6: 0.6 | AW6: 0.6
D10: =SUM(D11:E15) -> -2.247054012 | G10: dm4 | Q10: dm4 | AA10: dm4 | AK10: dm4 | AU10: dm4 | AW10: =SUM(AW11:AX15) -> -0.4457626471
D11: =-I29*G21 -> -7.024802897e-06 | AW11: =-AS29*AU17 -> -1.218725246e-05
D12: =-I27*G21 -> -0.0001030631878 | G12: =I6*G4^3/12*10000 -> 62.5 | I12: =SUM(I13:J17) -> -2.247054012 | N12: =SUM(N13:O17) -> 0.3628349037 | Q12: =S6*Q4^3/12*10000 -> 62.5 | S12: =SUM(S13:T17) -> 0.3628349037 | X12: =SUM(X13:Y17) -> 0.7412932505 | AA12: =AC6*AA4^3/12*10000 -> 62.5 | AC12: =SUM(AC13:AD17) -> 0.7412932505 | AH12: =SUM(AH13:AI17) -> -0.06163968722 | AK12: =AM6*AK4^3/12*10000 -> 62.5 | AM12: =SUM(AM13:AN17) -> -0.06163968722 | AR12: =SUM(AR13:AS17) -> -0.4457626471 | AU12: =AW6*AU4^3/12*10000 -> 62.5 | AW12: =-AS27*AU17 -> -0.0001331984635
D13: =-I25*G21 -> -0.001988962809 | I13: =-I29*G17 -> -7.024802897e-06 | X13: =-(Y29+AC29)*AA21 -> -1.546599889e-05 | AC13: =-(Y29+AC29)*AA17 -> -1.546599889e-05 | AR13: =-AS29*AU21 -> -1.218725246e-05 | AW13: =-AS25*AU17 -> -0.000975777525 | BB13: m
D14: =-I23*G21 -> -0.05506027767 | I14: =-I27*G17 -> -0.0001030631878 | N14: =-(O28+S28)*Q21 -> 4.459191092e-05 | S14: =-(O28+S28)*Q17 -> 4.459191092e-05 | X14: =-(Y27+AC27)*AA21 -> -0.0001934163694 | AC14: =-(Y27+AC27)*AA17 -> -0.0001934163694 | AH14: =-(AI28+AM28)*AK21 -> 5.267202323e-05 | AM14: =-(AI28+AM28)*AK17 -> 5.267202323e-05 | AR14: =-AS27*AU21 -> -0.0001331984635 | AW14: =-AS23*AU17 -> 0.01538335375 | BB14: 3.5
D15: =-(E21+I21)*G21 -> -2.189894684 | G15: I = | I15: =-I25*G17 -> -0.001988962809 | N15: =-(O26+S26)*Q21 -> 0.0006542225535 | Q15: I = | S15: =-(O26+S26)*Q17 -> 0.0006542225535 | X15: =-(Y25+AC25)*AA21 -> -0.002561517679 | AA15: I = | AC15: =-(Y25+AC25)*AA17 -> -0.002561517679 | AH15: =-(AI26+AM26)*AK21 -> 0.0005756697487 | AK15: I = | AM15: =-(AI26+AM26)*AK17 -> 0.0005756697487 | AR15: =-AS25*AU21 -> -0.000975777525 | AU15: I = | AW15: =-(AS21+AW21)*AU17 -> -0.4600248376
I16: =-I23*G17 -> -0.05506027767 | N16: =-(O24+S24)*Q21 -> 0.01262550049 | S16: =-(O24+S24)*Q17 -> 0.01262550049 | X16: =-(Y23+AC23)*AA21 -> -0.03977645682 | AC16: =-(Y23+AC23)*AA17 -> -0.03977645682 | AH16: =-(AI24+AM24)*AK21 -> 0.004217207826 | AM16: =-(AI24+AM24)*AK17 -> 0.004217207826 | AR16: =-AS23*AU21 -> 0.01538335375
D17: 12 | F17: KN | G17: =(4*G12/BB14)/((4*G12/BB14)+(4*L20/L36)+(4*G26/BB25)) -> 0.3424646364 | I17: =-(E21+I21)*G17 -> -2.189894684 | K17: 12 | M17: KN | N17: =-(O21+O22+S21+S22)*Q21 -> 0.3495105888 | Q17: =(4*Q12/BB14)/((4*Q12/BB14)+(4*V20/V36)+(4*Q26/BB25)+(4*L20/L36)) -> 0.221790949 | S17: =-(O21+O22+S21+S22)*Q17 -> 0.3495105888 | U17: 12 | W17: KN | X17: =-(Y21+AC21)*AA21 -> 0.7838401074 | AA17: =(4*AA12/BB14)/((4*AA12/BB14)+(4*AA26/BB25)+(4*V20/V36)+(4*AF20/AF36)) -> 0.1839549458 | AC17: =-(Y21+AC21)*AA17 -> 0.7838401074 | AE17: 12 | AG17: KN | AH17: =-(AI21+AM21+AI22+AM22)*AK21 -> -0.06648523682 | AK17: =(4*AK12/BB14)/((4*AK12/BB14)+(4*AK26/BB25)+(4*AF20/AF36)+(4*AP20/AP36)) -> 0.1795298655 | AM17: =-(AI21+AM21+AI22+AM22)*AK17 -> -0.06648523682 | AO17: 12 | AQ17: KN | AR17: =-(AS21+AW21)*AU21 -> -0.4600248376 | AU17: =(4*AU12/BB14)/((4*AU12/BB14)+(4*AU26/BB25)+(4*AP20/AP36)) -> 0.2686200052 | AX17: 12 | AZ17: KN
B19: q = | C19: 10 | E19: KN/m | K19: q = | L19: 10 | N19: KN/m | U19: q = | V19: 10 | X19: KN/m | AE19: q = | AF19: 10 | AH19: KN/m | AO19: q = | AP19: 10 | AR19: KN/m | AW19: q = | AX19: 10 | AZ19: KN/m
F20: 0 | H20: =(4*L20/L36)/((4*G12/BB14)+(4*L20/L36)+(4*G26/BB25)) -> 0.3150707271 | K20: I = | L20: =(L43*H45^3/12+H45*L43*(((H45*L43*H45/2+L50*(O46-H45)*((O46-H45)/2+H45))/(L43*H45+(O46-H45)*L50))-H45/2)^2+L50*(O46-H45)^3/12+L50*(O46-H45)*(O46-((H45*L43*H45/2+L50*(O46-H45)*((O46-H45)/2+H45))/(L43*H45+(O46-H45)*L50))-(O46-H45)/2)^2)*10000 -> 82.14370748 | N20: dm4 | P20: =(4*L20/L36)/((4*Q12/BB14)+(4*V20/V36)+(4*Q26/BB25)+(4*L20/L36)) -> 0.2040497854 | R20: =(4*V20/V36)/((4*Q12/BB14)+(4*V20/V36)+(4*Q26/BB25)+(4*L20/L36)) -> 0.3523683166 | U20: I = | V20: =(V43*R45^3/12+R45*V43*(((R45*V43*R45/2+V50*(Y46-R45)*((Y46-R45)/2+R45))/(V43*R45+(Y46-R45)*V50))-R45/2)^2+V50*(Y46-R45)^3/12+V50*(Y46-R45)*(Y46-((R45*V43*R45/2+V50*(Y46-R45)*((Y46-R45)/2+R45))/(V43*R45+(Y46-R45)*V50))-(Y46-R45)/2)^2)*10000 -> 127.6666667 | X20: dm4 | Z20: =(4*V20/V36)/((4*AA12/BB14)+(4*AA26/BB25)+(4*V20/V36)+(4*AF20/AF36)) -> 0.2922567168 | AB20: =(4*AF20/AF36)/((4*AA12/BB14)+(4*AA26/BB25)+(4*V20/V36)+(4*AF20/AF36)) -> 0.3398333916 | AE20: I = | AF20: =(AF43*AB45^3/12+AB45*AF43*(((AB45*AF43*AB45/2+AF50*(AI46-AB45)*((AI46-AB45)/2+AB45))/(AF43*AB45+(AI46-AB45)*AF50))-AB45/2)^2+AF50*(AI46-AB45)^3/12+AF50*(AI46-AB45)*(AI46-((AB45*AF43*AB45/2+AF50*(AI46-AB45)*((AI46-AB45)/2+AB45))/(AF43*AB45+(AI46-AB45)*AF50))-(AI46-AB45)/2)^2)*10000 -> 127.6666667 | AH20: dm4 | AJ20: =(4*AF20/AF36)/((4*AK12/BB14)+(4*AK26/BB25)+(4*AF20/AF36)+(4*AP20/AP36)) -> 0.331658618 | AL20: =(4*AP20/AP36)/((4*AK12/BB14)+(4*AK26/BB25)+(4*AF20/AF36)+(4*AP20/AP36)) -> 0.309281651 | AO20: I = | AP20: =(AP43*AL45^3/12+AL45*AP43*(((AL45*AP43*AL45/2+AP50*(AS46-AL45)*((AS46-AL45)/2+AL45))/(AP43*AL45+(AS46-AL45)*AP50))-AL45/2)^2+AP50*(AS46-AL45)^3/12+AP50*(AS46-AL45)*(AS46-((AL45*AP43*AL45/2+AP50*(AS46-AL45)*((AS46-AL45)/2+AL45))/(AP43*AL45+(AS46-AL45)*AP50))-(AS46-AL45)/2)^2)*10000 -> 127.6666667 | AR20: dm4 | AT20: =(4*AP20/AP36)/((4*AU12/BB14)+(4*AU26/BB25)+(4*AP20/AP36)) -> 0.4627599896 | AV20: 0
E21: =IF(OR(D36=0,D36=""),0,-C19*D36*D36/2-D17*F34) -> -23.25 | G21: =(4*G26/BB25)/((4*G12/BB14)+(4*L20/L36)+(4*G26/BB25)) -> 0.3424646364 | I21: =L19*L36^2/12+K17*I34*N34^2/L36^2 -> 29.64451333 | O21: =-L19*L36^2/12-K17*N34*I34^2/L36^2 -> -26.00815333 | Q21: =(4*Q26/BB25)/((4*Q12/BB14)+(4*V20/V36)+(4*Q26/BB25)+(4*L20/L36)) -> 0.221790949 | S21: =V19*V36^2/12+U17*S34*X34^2/V36^2 -> 24.817 | Y21: =-V19*V36^2/12-U17*X34*S34^2/V36^2 -> -21.473 | AA21: =(4*AA26/BB25)/((4*AA12/BB14)+(4*AA26/BB25)+(4*V20/V36)+(4*AF20/AF36)) -> 0.1839549458 | AC21: =AF19*AF36^2/12+AE17*AC34*AH34^2/AF36^2 -> 17.21195606 | AI21: =-AF19*AF36^2/12-AE17*AH34*AC34^2/AF36^2 -> -19.05186952 | AK21: =(4*AK26/BB25)/((4*AK12/BB14)+(4*AK26/BB25)+(4*AF20/AF36)+(4*AP20/AP36)) -> 0.1795298655 | AM21: =AP19*AP36^2/12+AO17*AM34*AR34^2/AP36^2 -> 19.0944262 | AS21: =-AP19*AP36^2/12-AO17*AR34*AM34^2/AP36^2 -> -21.53745131 | AU21: =(4*AU26/BB25)/((4*AU12/BB14)+(4*AU26/BB25)+(4*AP20/AP36)) -> 0.2686200052 | AW21: =IF(OR(AW36=0,AW36=""),0,AX19*AW36*AW36/2+AX17*AV34) -> 23.25
I22: =-(E21+I21)*H20 -> -2.014723965 | O22: =+I22/2 -> -1.007361983 | S22: =+Y22/2 -> 0.6226593564 | Y22: =-(Y21+AC21)*Z20 -> 1.245318713 | AC22: =-(Y21+AC21)*AB20 -> 1.448045015 | AI22: =+AC22/2 -> 0.7240225075 | AM22: =+AS22/2 -> -0.3962495067 | AS22: =-(AS21+AW21)*AT20 -> -0.7924990135
I23: =+O23/2 -> 0.1607765352 | O23: =-(O21+O22+S21+S22)*P20 -> 0.3215530703 | S23: =-(O21+O22+S21+S22)*R20 -> 0.5552817117 | Y23: =+S23/2 -> 0.2776408559 | AC23: =+AI23/2 -> -0.06141151418 | AI23: =-(AI21+AM21+AI22+AM22)*AJ20 -> -0.1228230284 | AM23: =-(AI21+AI22+AM21+AM22)*AL20 -> -0.1145361734 | AS23: =+AM23/2 -> -0.05726808672
G24: dm4 | I24: =-I23*H20 -> -0.05065597984 | O24: =+I24/2 -> -0.02532798992 | Q24: dm4 | S24: =+Y24/2 -> -0.03159723874 | Y24: =-(Y23+AC23)*Z20 -> -0.06319447747 | AA24: dm4 | AC24: =-(Y23+AC23)*AB20 -> -0.07348195055 | AI24: =+AC24/2 -> -0.03674097528 | AK24: dm4 | AM24: =+AS24/2 -> 0.01325068961 | AS24: =-AS23*AT20 -> 0.02650137922 | AU24: dm4 | BB24: m
I25: =+O25/2 -> 0.005807790345 | O25: =-(O24+S24)*P20 -> 0.01161558069 | S25: =-(O24+S24)*R20 -> 0.02005864699 | Y25: =+S25/2 -> 0.0100293235 | AC25: =+AI25/2 -> 0.00389537784 | AI25: =-(AI24+AM24)*AJ20 -> 0.007790755681 | AM25: =-(AI24+AM24)*AL20 -> 0.007265114334 | AS25: =+AM25/2 -> 0.003632557167 | BB25: 3.5
G26: =I40*G38^3/12*10000 -> 62.5 | I26: =-I25*H20 -> -0.001829864727 | O26: =+I26/2 -> -0.0009149323634 | Q26: =S40*Q38^3/12*10000 -> 62.5 | S26: =+Y26/2 -> -0.002034793748 | Y26: =-(Y25+AC25)*Z20 -> -0.004069587495 | AA26: =AC40*AA38^3/12*10000 -> 62.5 | AC26: =-(Y25+AC25)*AB20 -> -0.004732078483 | AI26: =+AC26/2 -> -0.002366039242 | AK26: =AM40*AK38^3/12*10000 -> 62.5 | AM26: =+AS26/2 -> -0.0008405010584 | AS26: =-AS25*AT20 -> -0.001681002117 | AU26: =AW40*AU38^3/12*10000 -> 62.5
I27: =+O27/2 -> 0.00030094549 | O27: =-(O26+S26)*P20 -> 0.0006018909799 | S27: =-(O26+S26)*R20 -> 0.001039390024 | Y27: =+S27/2 -> 0.0005196950121 | AC27: =+AI27/2 -> 0.0005317383622 | AI27: =-(AI26+AM26)*AJ20 -> 0.001063476724 | AM27: =-(AI26+AM26)*AL20 -> 0.000991724078 | AS27: =+AM27/2 -> 0.000495862039
I28: =-I27*H20 -> -9.481911434e-05 | O28: =+I28/2 -> -4.740955717e-05 | S28: =+Y28/2 -> -0.000153644233 | Y28: =-(Y27+AC27)*Z20 -> -0.0003072884659 | AC28: =-(Y27+AC27)*AB20 -> -0.0003573121697 | AI28: =+AC28/2 -> -0.0001786560848 | AM28: =+AS28/2 -> -0.000114732556 | AS28: =-AS27*AT20 -> -0.000229465112
G29: I = | I29: =+O29/2 -> 2.051249136e-05 | O29: =-(O28+S28)*P20 -> 4.102498273e-05 | Q29: I = | S29: =-(O28+S28)*R20 -> 7.084498558e-05 | Y29: =+S29/2 -> 3.542249279e-05 | AA29: I = | AC29: =+AI29/2 -> 4.865243558e-05 | AI29: =-(AI28+AM28)*AJ20 -> 9.730487117e-05 | AK29: I = | AM29: =-(AI28+AM28)*AL20 -> 9.073972323e-05 | AS29: =+AM29/2 -> 4.536986162e-05 | AU29: I =
I30: =-I29*H20 -> -6.462885569e-06 | Y30: =-(Y29+AC29)*Z20 -> -2.457146253e-05 | AC30: =-(Y29+AC29)*AB20 -> -2.857146806e-05 | AS30: =-AS29*AT20 -> -2.099535669e-05
I31: =SUM(I21:J30) -> 27.74410802 | O31: =SUM(O21:P30) -> -26.70799408 | S31: =SUM(S21:T30) -> 25.98232427 | Y31: =SUM(Y21:Z30) -> -20.00705192 | AC31: =SUM(AC21:AD30) -> 18.52446541 | AI31: =SUM(AI21:AJ30) -> -18.48100418 | AM31: =SUM(AM21:AN30) -> 18.60428355 | AS31: =SUM(AS21:AT30) -> -22.35847471
C34: 0.5 | E34: m | F34: =+D36-C34 -> 1 | H34: m | I34: 1.85 | K34: m | N34: =+L36-I34 -> 3.15 | P34: m | S34: 1.65 | U34: m | X34: =+V36-S34 -> 2.85 | Z34: m | AC34: 2.25 | AE34: m | AH34: =+AF36-AC34 -> 1.62 | AJ34: m | AM34: 2.5 | AO34: m | AR34: =+AP36-AM34 -> 1.65 | AT34: m | AV34: =+AW36-AY34 -> 1 | AX34: m | AY34: 0.5 | BA34: m
D36: 1.5 | F36: m | L36: 5 | N36: m | V36: 4.5 | X36: m | AF36: 3.87 | AH36: m | AP36: 4.15 | AR36: m | AW36: 1.5 | AY36: m
G38: 0.5 | I38: m | Q38: 0.5 | S38: m | AA38: 0.5 | AC38: m | AK38: 0.5 | AM38: m | AU38: 0.5 | AW38: m
I39: m | S39: m | AC39: m | AM39: m | AW39: m
I40: 0.6 | S40: 0.6 | AC40: 0.6 | AM40: 0.6 | AW40: 0.6
L43: 1.2 | N43: m | V43: 1.2 | X43: m | AF43: 1.2 | AH43: m | AP43: 1.2 | AR43: m
H45: 0.1 | J45: m | O45: m | R45: 0.1 | T45: m | Y45: m | AB45: 0.1 | AD45: m | AI45: m | AL45: 0.1 | AN45: m | AS45: m
O46: 0.6 | Y46: 0.7 | AI46: 0.7 | AS46: 0.7
L50: 0.25 | N50: m | V50: 0.25 | X50: m | AF50: 0.25 | AH50: m | AP50: 0.25 | AR50: m
D52: =IF(I12<0,I12/2,"") -> -1.123527006 | J52: =IF(I12>0,I12/2,"") ->  | N52: =IF(S12<0,S12/2,"") ->  | T52: =IF(S12>0,S12/2,"") -> 0.1814174519 | X52: =IF(AC12<0,AC12/2,"") ->  | AD52: =IF(AC12>0,AC12/2,"") -> 0.3706466253 | AH52: =IF(AM12<0,AM12/2,"") -> -0.03081984361 | AN52: =IF(AM12>0,AM12/2,"") ->  | AR52: =IF(AW10<0,AW10/2,"") -> -0.2228813236 | AX52: =IF(AW10>0,AW10/2,"") -> 
J55: moment diyagramı (KNm)
R56: =-S31 -> -25.98232427
H57: =-I31 -> -27.74410802 | Z57: =Y31 -> -20.00705192 | AB57: =-AC31 -> -18.52446541 | AJ57: =AI31 -> -18.48100418 | AL57: =-AM31 -> -18.60428355 | AT57: =AS31 -> -22.35847471
P58: =O31 -> -26.70799408
F59: =IF(E21=0,"",+E21) -> -23.25 | AV59: =IF(AW21=0,"",-AW21) -> -23.25
E61: =IF(I12>0,-I12,"") ->  | I61: =IF(I12<0,-I12,"") -> 2.247054012 | O61: =IF(S12>0,-S12,"") -> -0.3628349037 | S61: =IF(S12<0,-S12,"") ->  | Y61: =IF(AC12>0,-AC12,"") -> -0.7412932505 | AC61: =IF(AC12<0,-AC12,"") ->  | AI61: =IF(AM12>0,-AM12,"") ->  | AM61: =IF(AM12<0,-AM12,"") -> 0.06163968722 | AS61: =IF(AW10>0,-AW10,"") ->  | AW61: =IF(AW10<0,-AW10,"") -> 0.4457626471
E62: =IF(D10<0,D10,"") -> -2.247054012 | I62: =IF(D10>0,D10,"") ->  | O62: =IF(N12<0,N12,"") ->  | S62: =IF(N12>0,N12,"") -> 0.3628349037 | Y62: =IF(X12<0,X12,"") ->  | AC62: =IF(X12>0,X12,"") -> 0.7412932505 | AI62: =IF(AH12<0,AH12,"") -> -0.06163968722 | AM62: =IF(AH12>0,AH12,"") ->  | AS62: =IF(AR12<0,AR12,"") -> -0.4457626471 | AW62: =IF(AR12>0,AR12,"") -> 
L65: =+M116 -> 16.01976909 | V65: =+W116 -> 12.68972078 | AF65: =+AG116 -> 11.02812833 | AP65: =+AQ116 -> 11.6942215
D74: =IF(D10>0,-D10/2,"") ->  | J74: =IF(D10<0,-D10/2,"") -> 1.123527006 | N74: =IF(N12>0,-N12/2,"") -> -0.1814174519 | T74: =IF(N12<0,-N12/2,"") ->  | X74: =IF(X12>0,-X12/2,"") -> -0.3706466253 | AD74: =IF(X12<0,-X12/2,"") ->  | AH74: =IF(AH12>0,-AH12/2,"") ->  | AN74: =IF(AH12<0,-AH12/2,"") -> 0.03081984361 | AR74: =IF(AR12>0,-AR12/2,"") ->  | AX74: =IF(AR12<0,-AR12/2,"") -> 0.2228813236
D77: =IF(I12<0,(I12+I12/2)/$BB$14,"") -> -0.9630231482 | J77: =IF(I12>0,(I12+I12/2)/$BB$14,"") ->  | N77: =IF(S12<0,(S12+S12/2)/$BB$14,"") ->  | T77: =IF(S12>0,(S12+S12/2)/$BB$14,"") -> 0.155500673 | X77: =IF(AC12<0,(AC12+AC12/2)/$BB$14,"") ->  | AD77: =IF(AC12>0,(AC12+AC12/2)/$BB$14,"") -> 0.3176971074 | AH77: =IF(AM12<0,(AM12+AM12/2)/$BB$14,"") -> -0.02641700881 | AN77: =IF(AM12>0,(AM12+AM12/2)/$BB$14,"") ->  | AR77: =IF(AW10<0,(AW10+AW10/2)/$BB$14,"") -> -0.1910411345 | AX77: =IF(AW10>0,(AW10+AW10/2)/$BB$14,"") -> 
J80: kesme kuvveti diyagramı (KN)
H84: =+M112 -> 32.76722279 | R84: =+W112 -> 31.4278383 | AB84: =+AG112 -> 24.38448611 | AL84: =+AQ112 -> 24.61645996 | AV84: =IF(AW21=0,"",AX19*AW36+AX17) -> 27
D86: =IF(D77<0,D77,"") -> -0.9630231482 | J86: =IF(J77>0,J77,"") ->  | N86: =IF(N77<0,N77,"") ->  | T86: =IF(T77>0,T77,"") -> 0.155500673 | X86: =IF(X77<0,X77,"") ->  | AD86: =IF(AD77>0,AD77,"") -> 0.3176971074 | AH86: =IF(AH77<0,AH77,"") -> -0.02641700881 | AN86: =IF(AN77>0,AN77,"") ->  | AR86: =IF(AR77<0,AR77,"") -> -0.1910411345 | AX86: =IF(AX77>0,AX77,"") -> 
D87: =IF(D99<0,D99,"") -> -0.9630231482 | J87: =IF(J99>0,J99,"") ->  | N87: =IF(N99<0,N99,"") ->  | T87: =IF(T99>0,T99,"") -> 0.155500673 | X87: =IF(X99<0,X99,"") ->  | AD87: =IF(AD99>0,AD99,"") -> 0.3176971074 | AH87: =IF(AH99<0,AH99,"") -> -0.02641700881 | AN87: =IF(AN99>0,AN99,"") ->  | AR87: =IF(AR99<0,AR99,"") -> -0.1910411345 | AX87: =IF(AX99>0,AX99,"") -> 
P89: =-M113 -> -29.23277721 | Z89: =-W113 -> -25.5721617 | AJ89: =-AG113 -> -26.31551389 | AT89: =-AQ113 -> -28.88354004
F90: =IF(E21=0,"",-C19*D36-D17) -> -27
I91: =+M114 -> 2.076722279 | K91: m | S91: =+W114 -> 1.94278383 | U91: m | AC91: =+AG114 -> 2.25 | AE91: m | AM91: =+AQ114 -> 2.461645996 | AO91: m
D99: =IF(D10<0,(D10+D10/2)/$BB$25,"") -> -0.9630231482 | J99: =IF(D10>0,(D10+D10/2)/$BB$25,"") ->  | N99: =IF(N12<0,(N12+N12/2)/$BB$25,"") ->  | T99: =IF(N12>0,(N12+N12/2)/$BB$25,"") -> 0.155500673 | X99: =IF(X12<0,(X12+X12/2)/$BB$25,"") ->  | AD99: =IF(X12>0,(X12+X12/2)/$BB$25,"") -> 0.3176971074 | AH99: =IF(AH12<0,(AH12+AH12/2)/$BB$25,"") -> -0.02641700881 | AN99: =IF(AH12>0,(AH12+AH12/2)/$BB$25,"") ->  | AR99: =IF(AR12<0,(AR12+AR12/2)/$BB$25,"") -> -0.1910411345 | AX99: =IF(AR12>0,(AR12+AR12/2)/$BB$25,"") -> 
B101: kiriş faydalı yükseklik d = h - d' (m) | H101: =O46-N3 -> 0.57 | R101: =Y46-N3 -> 0.67 | AB101: =AI46-N3 -> 0.67 | AL101: =AS46-N3 -> 0.67
D105: =IF(OR(C19=0,C19="",D36=0,D36=""),0,IF(OR(D17=0,D17="",C34=0,C34=""),1,2)) -> 2 | L105: sol moment M1= | M105: =+I31 -> 27.74410802 | N105: =IF(M110=0,0,IF(M117="durum 1",1,IF(M117="durum 2",2,IF(M117="durum 3",3)))) -> 3 | V105: sol moment M1= | W105: =+S31 -> 25.98232427 | X105: =IF(W110=0,0,IF(W117="durum 1",1,IF(W117="durum 2",2,IF(W117="durum 3",3)))) -> 3 | AF105: sol moment M1= | AG105: =+AC31 -> 18.52446541 | AH105: =IF(AG110=0,0,IF(AG117="durum 1",1,IF(AG117="durum 2",2,IF(AG117="durum 3",3)))) -> 2 | AP105: sol moment M1= | AQ105: =+AM31 -> 18.60428355 | AR105: =IF(AQ110=0,0,IF(AQ117="durum 1",1,IF(AQ117="durum 2",2,IF(AQ117="durum 3",3)))) -> 1 | AY105: =IF(OR(AW36=0,AW36="",AX19=0,AX19=""),0,IF(OR(AX17=0,AX17="",AY34=0,AY34=""),1,2)) -> 2
L106: sağ moment M2= | M106: =-O31 -> 26.70799408 | V106: sağ moment M2= | W106: =-Y31 -> 20.00705192 | AF106: sağ moment M2= | AG106: =-AI31 -> 18.48100418 | AP106: sağ moment M2= | AQ106: =-AS31 -> 22.35847471
L107: tekil yük K= | M107: =+K17 -> 12 | V107: tekil yük K= | W107: =+U17 -> 12 | AF107: tekil yük K= | AG107: =+AE17 -> 12 | AP107: tekil yük K= | AQ107: =+AO17 -> 12
L108: yayılı yük Pd= | M108: =+L19 -> 10 | V108: yayılı yük Pd= | W108: =+V19 -> 10 | AF108: yayılı yük Pd= | AG108: =+AF19 -> 10 | AP108: yayılı yük Pd= | AQ108: =+AP19 -> 10
L109: L= | M109: =+L36 -> 5 | V109: L= | W109: =+V36 -> 4.5 | AF109: L= | AG109: =+AF36 -> 3.87 | AP109: L= | AQ109: =+AP36 -> 4.15
L110: (K=0 ise a=0 alınacak) a= | M110: =IF(OR(K17=0,K17="",I34=0,I34=""),0,I34) -> 1.85 | V110: (K=0 ise a=0 alınacak) a= | W110: =IF(OR(U17=0,U17="",S34=0,S34=""),0,S34) -> 1.65 | AF110: (K=0 ise a=0 alınacak) a= | AG110: =IF(OR(AE17=0,AE17="",AC34=0,AC34=""),0,AC34) -> 2.25 | AP110: (K=0 ise a=0 alınacak) a= | AQ110: =IF(OR(AO17=0,AO17="",AM34=0,AM34=""),0,AM34) -> 2.5
L111: b= | M111: =M109-M110 -> 3.15 | V111: b= | W111: =W109-W110 -> 2.85 | AF111: b= | AG111: =AG109-AG110 -> 1.62 | AP111: b= | AQ111: =AQ109-AQ110 -> 1.65
L112: (sol eksen kesme kuvveti) A= | M112: =IF(M107>0,M108*M109+M107-M113,M108*M109-M113) -> 32.76722279 | V112: (sol eksen kesme kuvveti) A= | W112: =IF(W107>0,W108*W109+W107-W113,W108*W109-W113) -> 31.4278383 | AF112: (sol eksen kesme kuvveti) A= | AG112: =IF(AG107>0,AG108*AG109+AG107-AG113,AG108*AG109-AG113) -> 24.38448611 | AP112: (sol eksen kesme kuvveti) A= | AQ112: =IF(AQ107>0,AQ108*AQ109+AQ107-AQ113,AQ108*AQ109-AQ113) -> 24.61645996
L113: (sağ eksen kesme kuvveti) B= | M113: =IF(M107>0,(M108*M109^2*0.5+M107*M110+M106-M105)/M109,(0.5*M108*M109^2+M106-M105)/M109) -> 29.23277721 | V113: (sağ eksen kesme kuvveti) B= | W113: =IF(W107>0,(W108*W109^2*0.5+W107*W110+W106-W105)/W109,(0.5*W108*W109^2+W106-W105)/W109) -> 25.5721617 | AF113: (sağ eksen kesme kuvveti) B= | AG113: =IF(AG107>0,(AG108*AG109^2*0.5+AG107*AG110+AG106-AG105)/AG109,(0.5*AG108*AG109^2+AG106-AG105)/AG109) -> 26.31551389 | AP113: (sağ eksen kesme kuvveti) B= | AQ113: =IF(AQ107>0,(AQ108*AQ109^2*0.5+AQ107*AQ110+AQ106-AQ105)/AQ109,(0.5*AQ108*AQ109^2+AQ106-AQ105)/AQ109) -> 28.88354004
L114: (max mom yeri A'dan mesafesi) x= | M114: =IF(M108*M110>M112,(M112*M110)/(M110*M108),IF(AND(M108*M110<M112,M107>M112-M108*M110),M110,IF(AND(M108*M110<M112,M107<M112-M108*M110),((M109-M110)*(M112-M108*M110-M107)/(M112-M108*M110-M107+M113))+M110,"HATALI"))) -> 2.076722279 | V114: (max mom yeri A'dan mesafesi) x= | W114: =IF(W108*W110>W112,(W112*W110)/(W110*W108),IF(AND(W108*W110<W112,W107>W112-W108*W110),W110,IF(AND(W108*W110<W112,W107<W112-W108*W110),((W109-W110)*(W112-W108*W110-W107)/(W112-W108*W110-W107+W113))+W110,"HATALI"))) -> 1.94278383 | AF114: (max mom yeri A'dan mesafesi) x= | AG114: =IF(AG108*AG110>AG112,(AG112*AG110)/(AG110*AG108),IF(AND(AG108*AG110<AG112,AG107>AG112-AG108*AG110),AG110,IF(AND(AG108*AG110<AG112,AG107<AG112-AG108*AG110),((AG109-AG110)*(AG112-AG108*AG110-AG107)/(AG112-AG108*AG110-AG107+AG113))+AG110,"HATALI"))) -> 2.25 | AP114: (max mom yeri A'dan mesafesi) x= | AQ114: =IF(AQ108*AQ110>AQ112,(AQ112*AQ110)/(AQ110*AQ108),IF(AND(AQ108*AQ110<AQ112,AQ107>AQ112-AQ108*AQ110),AQ110,IF(AND(AQ108*AQ110<AQ112,AQ107<AQ112-AQ108*AQ110),((AQ109-AQ110)*(AQ112-AQ108*AQ110-AQ107)/(AQ112-AQ108*AQ110-AQ107+AQ113))+AQ110,"HATALI"))) -> 2.461645996
L115: açıklık momenti Mmax= | M115: =IF(M108*M110>M112,(M112*M114/2)-M105,IF(AND(M108*M110<M112,M107>M112-M108*M110),(((M112+M112-M110*M108)/2)*M110)-M105,IF(AND(M108*M110<M112,M107<M112-M108*M110),(((M109-M110)*(M112-M108*M110-M107)/(M112-M108*M110-M107+M113))*(M112-M110*M108-M107)/2+(M112+M112-M110*M108)*M110/2)-M105,"HATALI"))) -> 16.01976909 | V115: açıklık momenti Mmax= | W115: =IF(W108*W110>W112,(W112*W114/2)-W105,IF(AND(W108*W110<W112,W107>W112-W108*W110),(((W112+W112-W110*W108)/2)*W110)-W105,IF(AND(W108*W110<W112,W107<W112-W108*W110),(((W109-W110)*(W112-W108*W110-W107)/(W112-W108*W110-W107+W113))*(W112-W110*W108-W107)/2+(W112+W112-W110*W108)*W110/2)-W105,"HATALI"))) -> 12.68972078 | AF115: açıklık momenti Mmax= | AG115: =IF(AG108*AG110>AG112,(AG112*AG114/2)-AG105,IF(AND(AG108*AG110<AG112,AG107>AG112-AG108*AG110),(((AG112+AG112-AG110*AG108)/2)*AG110)-AG105,IF(AND(AG108*AG110<AG112,AG107<AG112-AG108*AG110),(((AG109-AG110)*(AG112-AG108*AG110-AG107)/(AG112-AG108*AG110-AG107+AG113))*(AG112-AG110*AG108-AG107)/2+(AG112+AG112-AG110*AG108)*AG110/2)-AG105,"HATALI"))) -> 11.02812833 | AP115: açıklık momenti Mmax= | AQ115: =IF(AQ108*AQ110>AQ112,(AQ112*AQ114/2)-AQ105,IF(AND(AQ108*AQ110<AQ112,AQ107>AQ112-AQ108*AQ110),(((AQ112+AQ112-AQ110*AQ108)/2)*AQ110)-AQ105,IF(AND(AQ108*AQ110<AQ112,AQ107<AQ112-AQ108*AQ110),(((AQ109-AQ110)*(AQ112-AQ108*AQ110-AQ107)/(AQ112-AQ108*AQ110-AQ107+AQ113))*(AQ112-AQ110*AQ108-AQ107)/2+(AQ112+AQ112-AQ110*AQ108)*AQ110/2)-AQ105,"HATALI"))) -> 11.6942215
L116: x'den bağımsız hesap Mmax= | M116: =IF(M108*M110>M112,(M112*(IF(M108*M110>M112,(M112*M110)/(M110*M108),IF(AND(M108*M110<M112,M107>M112-M108*M110),M110,IF(AND(M108*M110<M112,M107<M112-M108*M110),((M109-M110)*(M112-M108*M110-M107)/(M112-M108*M110-M107+M113))+M110,"HATALI"))))/2)-M105,IF(AND(M108*M110<M112,M107>M112-M108*M110),(((M112+M112-M110*M108)/2)*M110)-M105,IF(AND(M108*M110<M112,M107<M112-M108*M110),(((M109-M110)*(M112-M108*M110-M107)/(M112-M108*M110-M107+M113))*(M112-M110*M108-M107)/2+(M112+M112-M110*M108)*M110/2)-M105,"HATALI"))) -> 16.01976909 | V116: x'den bağımsız hesap Mmax= | W116: =IF(W108*W110>W112,(W112*(IF(W108*W110>W112,(W112*W110)/(W110*W108),IF(AND(W108*W110<W112,W107>W112-W108*W110),W110,IF(AND(W108*W110<W112,W107<W112-W108*W110),((W109-W110)*(W112-W108*W110-W107)/(W112-W108*W110-W107+W113))+W110,"HATALI"))))/2)-W105,IF(AND(W108*W110<W112,W107>W112-W108*W110),(((W112+W112-W110*W108)/2)*W110)-W105,IF(AND(W108*W110<W112,W107<W112-W108*W110),(((W109-W110)*(W112-W108*W110-W107)/(W112-W108*W110-W107+W113))*(W112-W110*W108-W107)/2+(W112+W112-W110*W108)*W110/2)-W105,"HATALI"))) -> 12.68972078 | AF116: x'den bağımsız hesap Mmax= | AG116: =IF(AG108*AG110>AG112,(AG112*(IF(AG108*AG110>AG112,(AG112*AG110)/(AG110*AG108),IF(AND(AG108*AG110<AG112,AG107>AG112-AG108*AG110),AG110,IF(AND(AG108*AG110<AG112,AG107<AG112-AG108*AG110),((AG109-AG110)*(AG112-AG108*AG110-AG107)/(AG112-AG108*AG110-AG107+AG113))+AG110,"HATALI"))))/2)-AG105,IF(AND(AG108*AG110<AG112,AG107>AG112-AG108*AG110),(((AG112+AG112-AG110*AG108)/2)*AG110)-AG105,IF(AND(AG108*AG110<AG112,AG107<AG112-AG108*AG110),(((AG109-AG110)*(AG112-AG108*AG110-AG107)/(AG112-AG108*AG110-AG107+AG113))*(AG112-AG110*AG108-AG107)/2+(AG112+AG112-AG110*AG108)*AG110/2)-AG105,"HATALI"))) -> 11.02812833 | AP116: x'den bağımsız hesap Mmax= | AQ116: =IF(AQ108*AQ110>AQ112,(AQ112*(IF(AQ108*AQ110>AQ112,(AQ112*AQ110)/(AQ110*AQ108),IF(AND(AQ108*AQ110<AQ112,AQ107>AQ112-AQ108*AQ110),AQ110,IF(AND(AQ108*AQ110<AQ112,AQ107<AQ112-AQ108*AQ110),((AQ109-AQ110)*(AQ112-AQ108*AQ110-AQ107)/(AQ112-AQ108*AQ110-AQ107+AQ113))+AQ110,"HATALI"))))/2)-AQ105,IF(AND(AQ108*AQ110<AQ112,AQ107>AQ112-AQ108*AQ110),(((AQ112+AQ112-AQ110*AQ108)/2)*AQ110)-AQ105,IF(AND(AQ108*AQ110<AQ112,AQ107<AQ112-AQ108*AQ110),(((AQ109-AQ110)*(AQ112-AQ108*AQ110-AQ107)/(AQ112-AQ108*AQ110-AQ107+AQ113))*(AQ112-AQ110*AQ108-AQ107)/2+(AQ112+AQ112-AQ110*AQ108)*AQ110/2)-AQ105,"HATALI"))) -> 11.6942215
L117: durum | M117: =IF(M108*M110>M112,"durum 1",IF(AND(M108*M110<M112,M107>M112-M108*M110),"durum 2",IF(AND(M108*M110<M112,M107<M112-M108*M110),"durum 3","HATALI"))) -> durum 3 | V117: durum | W117: =IF(W108*W110>W112,"durum 1",IF(AND(W108*W110<W112,W107>W112-W108*W110),"durum 2",IF(AND(W108*W110<W112,W107<W112-W108*W110),"durum 3","HATALI"))) -> durum 3 | AF117: durum | AG117: =IF(AG108*AG110>AG112,"durum 1",IF(AND(AG108*AG110<AG112,AG107>AG112-AG108*AG110),"durum 2",IF(AND(AG108*AG110<AG112,AG107<AG112-AG108*AG110),"durum 3","HATALI"))) -> durum 2 | AP117: durum | AQ117: =IF(AQ108*AQ110>AQ112,"durum 1",IF(AND(AQ108*AQ110<AQ112,AQ107>AQ112-AQ108*AQ110),"durum 2",IF(AND(AQ108*AQ110<AQ112,AQ107<AQ112-AQ108*AQ110),"durum 3","HATALI"))) -> durum 1
L118: sol mesnet (kolon genişliği) s1= | M118: =+G38 -> 0.5 | V118: sol mesnet (kolon genişliği) s1= | W118: =+Q38 -> 0.5 | AF118: sol mesnet (kolon genişliği) s1= | AG118: =+AA38 -> 0.5 | AP118: sol mesnet (kolon genişliği) s1= | AQ118: =+AK38 -> 0.5
L119: sağ mesnet (kolon genişliği) s2= | M119: =+Q38 -> 0.5 | V119: sağ mesnet (kolon genişliği) s2= | W119: =+AA38 -> 0.5 | AF119: sağ mesnet (kolon genişliği) s2= | AG119: =+AK38 -> 0.5 | AP119: sağ mesnet (kolon genişliği) s2= | AQ119: =+AU38 -> 0.5
L120: kiriş d yüksekliği= | M120: =+H101 -> 0.57 | V120: kiriş d yüksekliği= | W120: =+R101 -> 0.67 | AF120: kiriş d yüksekliği= | AG120: =+AB101 -> 0.67 | AP120: kiriş d yüksekliği= | AQ120: =+AL101 -> 0.67
L121: kiriş h yüksekliği= | M121: =+O46 -> 0.6 | V121: kiriş h yüksekliği= | W121: =+Y46 -> 0.7 | AF121: kiriş h yüksekliği= | AG121: =+AI46 -> 0.7 | AP121: kiriş h yüksekliği= | AQ121: =+AS46 -> 0.7
L122: sol kolon yüzünden d mesafede kesme kuvveti | V122: sol kolon yüzünden d mesafede kesme kuvveti | AF122: sol kolon yüzünden d mesafede kesme kuvveti | AP122: sol kolon yüzünden d mesafede kesme kuvveti
L123: durum 1 için | M123: =IF(M114>(M120+M118/2),M112-M108*(M118/2+M120),IF(AND(M114<(M120+M118/2),(M120+M118/2)<M110),M108*(M120+M118/2)-M112,IF((M120+M118/2)=M110,M113-M108*M111,M108*M110-M112+M107+(M120+M118/2-M110)*M108))) -> 24.56722279 | V123: durum 1 için | W123: =IF(W114>(W120+W118/2),W112-W108*(W118/2+W120),IF(AND(W114<(W120+W118/2),(W120+W118/2)<W110),W108*(W120+W118/2)-W112,IF((W120+W118/2)=W110,W113-W108*W111,W108*W110-W112+W107+(W120+W118/2-W110)*W108))) -> 22.2278383 | AF123: durum 1 için | AG123: =IF(AG114>(AG120+AG118/2),AG112-AG108*(AG118/2+AG120),IF(AND(AG114<(AG120+AG118/2),(AG120+AG118/2)<AG110),AG108*(AG120+AG118/2)-AG112,IF((AG120+AG118/2)=AG110,AG113-AG108*AG111,AG108*AG110-AG112+AG107+(AG120+AG118/2-AG110)*AG108))) -> 15.18448611 | AP123: durum 1 için | AQ123: =IF(AQ114>(AQ120+AQ118/2),AQ112-AQ108*(AQ118/2+AQ120),IF(AND(AQ114<(AQ120+AQ118/2),(AQ120+AQ118/2)<AQ110),AQ108*(AQ120+AQ118/2)-AQ112,IF((AQ120+AQ118/2)=AQ110,AQ113-AQ108*AQ111,AQ108*AQ110-AQ112+AQ107+(AQ120+AQ118/2-AQ110)*AQ108))) -> 15.41645996
L124: durum 2 için | M124: =IF(M120+M118/2<M110,M112-(M120+M118/2)*M108,IF((M118/2+M120)=M110,M112-M108*M110,IF(M120+M118/2>M110,M107-M112+M108*M110+(M120+M118/2-M110)*M108,0))) -> 24.56722279 | V124: durum 2 için | W124: =IF(W120+W118/2<W110,W112-(W120+W118/2)*W108,IF((W118/2+W120)=W110,W112-W108*W110,IF(W120+W118/2>W110,W107-W112+W108*W110+(W120+W118/2-W110)*W108,0))) -> 22.2278383 | AF124: durum 2 için | AG124: =IF(AG120+AG118/2<AG110,AG112-(AG120+AG118/2)*AG108,IF((AG118/2+AG120)=AG110,AG112-AG108*AG110,IF(AG120+AG118/2>AG110,AG107-AG112+AG108*AG110+(AG120+AG118/2-AG110)*AG108,0))) -> 15.18448611 | AP124: durum 2 için | AQ124: =IF(AQ120+AQ118/2<AQ110,AQ112-(AQ120+AQ118/2)*AQ108,IF((AQ118/2+AQ120)=AQ110,AQ112-AQ108*AQ110,IF(AQ120+AQ118/2>AQ110,AQ107-AQ112+AQ108*AQ110+(AQ120+AQ118/2-AQ110)*AQ108,0))) -> 15.41645996
L125: durum 3 için | M125: =IF((M120+M118/2)<M110,M112-(M120+M118/2)*M108,IF(AND(M110<(M120+M118/2),(M120+M118/2)<M114),M112-M108*M110-M107-(M120+M118/2-M110)*M108,IF((M120+M118/2)>M114,(M120+M118/2-M114)*M108,IF((M120+M118/2)=M110,M112-M108*M110,0)))) -> 24.56722279 | V125: durum 3 için | W125: =IF((W120+W118/2)<W110,W112-(W120+W118/2)*W108,IF(AND(W110<(W120+W118/2),(W120+W118/2)<W114),W112-W108*W110-W107-(W120+W118/2-W110)*W108,IF((W120+W118/2)>W114,(W120+W118/2-W114)*W108,IF((W120+W118/2)=W110,W112-W108*W110,0)))) -> 22.2278383 | AF125: durum 3 için | AG125: =IF((AG120+AG118/2)<AG110,AG112-(AG120+AG118/2)*AG108,IF(AND(AG110<(AG120+AG118/2),(AG120+AG118/2)<AG114),AG112-AG108*AG110-AG107-(AG120+AG118/2-AG110)*AG108,IF((AG120+AG118/2)>AG114,(AG120+AG118/2-AG114)*AG108,IF((AG120+AG118/2)=AG110,AG112-AG108*AG110,0)))) -> 15.18448611 | AP125: durum 3 için | AQ125: =IF((AQ120+AQ118/2)<AQ110,AQ112-(AQ120+AQ118/2)*AQ108,IF(AND(AQ110<(AQ120+AQ118/2),(AQ120+AQ118/2)<AQ114),AQ112-AQ108*AQ110-AQ107-(AQ120+AQ118/2-AQ110)*AQ108,IF((AQ120+AQ118/2)>AQ114,(AQ120+AQ118/2-AQ114)*AQ108,IF((AQ120+AQ118/2)=AQ110,AQ112-AQ108*AQ110,0)))) -> 15.41645996
L126: sağ kolon yüzünden d mesafede kesme kuvveti | V126: sağ kolon yüzünden d mesafede kesme kuvveti | AF126: sağ kolon yüzünden d mesafede kesme kuvveti | AP126: sağ kolon yüzünden d mesafede kesme kuvveti
L127: durum 1 için | M127: =IF((M120+M119/2)<M111,M113-(M120+M119/2)*M108,IF(AND((M120+M119/2)>M111,(M120+M119/2)<(M109-M114)),M113-M111*M108-M107-(M120+M119/2-M111)*M108,IF((M120+M119/2)=(M109-M110),M107+M108*M110-M112,((M120+M119/2)-(M109-M114))*M108))) -> 21.03277721 | V127: durum 1 için | W127: =IF((W120+W119/2)<W111,W113-(W120+W119/2)*W108,IF(AND((W120+W119/2)>W111,(W120+W119/2)<(W109-W114)),W113-W111*W108-W107-(W120+W119/2-W111)*W108,IF((W120+W119/2)=(W109-W110),W107+W108*W110-W112,((W120+W119/2)-(W109-W114))*W108))) -> 16.3721617 | AF127: durum 1 için | AG127: =IF((AG120+AG119/2)<AG111,AG113-(AG120+AG119/2)*AG108,IF(AND((AG120+AG119/2)>AG111,(AG120+AG119/2)<(AG109-AG114)),AG113-AG111*AG108-AG107-(AG120+AG119/2-AG111)*AG108,IF((AG120+AG119/2)=(AG109-AG110),AG107+AG108*AG110-AG112,((AG120+AG119/2)-(AG109-AG114))*AG108))) -> 17.11551389 | AP127: durum 1 için | AQ127: =IF((AQ120+AQ119/2)<AQ111,AQ113-(AQ120+AQ119/2)*AQ108,IF(AND((AQ120+AQ119/2)>AQ111,(AQ120+AQ119/2)<(AQ109-AQ114)),AQ113-AQ111*AQ108-AQ107-(AQ120+AQ119/2-AQ111)*AQ108,IF((AQ120+AQ119/2)=(AQ109-AQ110),AQ107+AQ108*AQ110-AQ112,((AQ120+AQ119/2)-(AQ109-AQ114))*AQ108))) -> 19.68354004
L128: durum 2 için | M128: =IF((M120+M119/2)<M111,M113-(M120+M119/2)*M108,IF((M120+M119/2)=M111,M107-M112+M108*M110,IF((M120+M119/2)>M111,M112-(M109-(M120+M119/2))*M108,0))) -> 21.03277721 | V128: durum 2 için | W128: =IF((W120+W119/2)<W111,W113-(W120+W119/2)*W108,IF((W120+W119/2)=W111,W107-W112+W108*W110,IF((W120+W119/2)>W111,W112-(W109-(W120+W119/2))*W108,0))) -> 16.3721617 | AF128: durum 2 için | AG128: =IF((AG120+AG119/2)<AG111,AG113-(AG120+AG119/2)*AG108,IF((AG120+AG119/2)=AG111,AG107-AG112+AG108*AG110,IF((AG120+AG119/2)>AG111,AG112-(AG109-(AG120+AG119/2))*AG108,0))) -> 17.11551389 | AP128: durum 2 için | AQ128: =IF((AQ120+AQ119/2)<AQ111,AQ113-(AQ120+AQ119/2)*AQ108,IF((AQ120+AQ119/2)=AQ111,AQ107-AQ112+AQ108*AQ110,IF((AQ120+AQ119/2)>AQ111,AQ112-(AQ109-(AQ120+AQ119/2))*AQ108,0))) -> 19.68354004
L129: durum 3 için | M129: =IF((M109-M114)>(M120+M119/2),M113-(M120+M119/2)*M108,IF(AND((M120+M119/2)>(M109-M114),(M109-M110)>(M120+M119/2)),((M120+M119/2)-(M109-M114))*M108,IF(M120+M119/2>(M109-M110),M112-(M109-(M120+M119/2))*M108,IF((M120+M119/2)=(M109-M110),M112-M108*M110-M107,0)))) -> 21.03277721 | V129: durum 3 için | W129: =IF((W109-W114)>(W120+W119/2),W113-(W120+W119/2)*W108,IF(AND((W120+W119/2)>(W109-W114),(W109-W110)>(W120+W119/2)),((W120+W119/2)-(W109-W114))*W108,IF(W120+W119/2>(W109-W110),W112-(W109-(W120+W119/2))*W108,IF((W120+W119/2)=(W109-W110),W112-W108*W110-W107,0)))) -> 16.3721617 | AF129: durum 3 için | AG129: =IF((AG109-AG114)>(AG120+AG119/2),AG113-(AG120+AG119/2)*AG108,IF(AND((AG120+AG119/2)>(AG109-AG114),(AG109-AG110)>(AG120+AG119/2)),((AG120+AG119/2)-(AG109-AG114))*AG108,IF(AG120+AG119/2>(AG109-AG110),AG112-(AG109-(AG120+AG119/2))*AG108,IF((AG120+AG119/2)=(AG109-AG110),AG112-AG108*AG110-AG107,0)))) -> 17.11551389 | AP129: durum 3 için | AQ129: =IF((AQ109-AQ114)>(AQ120+AQ119/2),AQ113-(AQ120+AQ119/2)*AQ108,IF(AND((AQ120+AQ119/2)>(AQ109-AQ114),(AQ109-AQ110)>(AQ120+AQ119/2)),((AQ120+AQ119/2)-(AQ109-AQ114))*AQ108,IF(AQ120+AQ119/2>(AQ109-AQ110),AQ112-(AQ109-(AQ120+AQ119/2))*AQ108,IF((AQ120+AQ119/2)=(AQ109-AQ110),AQ112-AQ108*AQ110-AQ107,0)))) -> 19.68354004
L130: sol kolon yüzünden 2h mesafede kesme kuvveti | V130: sol kolon yüzünden 2h mesafede kesme kuvveti | AF130: sol kolon yüzünden 2h mesafede kesme kuvveti | AP130: sol kolon yüzünden 2h mesafede kesme kuvveti
L131: durum 1 için | M131: =IF(M114>(M121*2+M118/2),M112-M108*(M118/2+M121*2),IF(AND(M114<(M121*2+M118/2),(M121*2+M118/2)<M110),M108*(M121*2+M118/2)-M112,IF((M121*2+M118/2)=M110,M113-M108*M111,M108*M110-M112+M107+(M121*2+M118/2-M110)*M108))) -> 18.26722279 | V131: durum 1 için | W131: =IF(W114>(W121*2+W118/2),W112-W108*(W118/2+W121*2),IF(AND(W114<(W121*2+W118/2),(W121*2+W118/2)<W110),W108*(W121*2+W118/2)-W112,IF((W121*2+W118/2)=W110,W113-W108*W111,W108*W110-W112+W107+(W121*2+W118/2-W110)*W108))) -> 14.9278383 | AF131: durum 1 için | AG131: =IF(AG114>(AG121*2+AG118/2),AG112-AG108*(AG118/2+AG121*2),IF(AND(AG114<(AG121*2+AG118/2),(AG121*2+AG118/2)<AG110),AG108*(AG121*2+AG118/2)-AG112,IF((AG121*2+AG118/2)=AG110,AG113-AG108*AG111,AG108*AG110-AG112+AG107+(AG121*2+AG118/2-AG110)*AG108))) -> 7.884486107 | AP131: durum 1 için | AQ131: =IF(AQ114>(AQ121*2+AQ118/2),AQ112-AQ108*(AQ118/2+AQ121*2),IF(AND(AQ114<(AQ121*2+AQ118/2),(AQ121*2+AQ118/2)<AQ110),AQ108*(AQ121*2+AQ118/2)-AQ112,IF((AQ121*2+AQ118/2)=AQ110,AQ113-AQ108*AQ111,AQ108*AQ110-AQ112+AQ107+(AQ121*2+AQ118/2-AQ110)*AQ108))) -> 8.116459963
L132: durum 2 için | M132: =IF(M121*2+M118/2<M110,M112-(M121*2+M118/2)*M108,IF((M118/2+M121*2)=M110,M112-M108*M110,IF(M121*2+M118/2>M110,M107-M112+M108*M110+(M121*2+M118/2-M110)*M108,0))) -> 18.26722279 | V132: durum 2 için | W132: =IF(W121*2+W118/2<W110,W112-(W121*2+W118/2)*W108,IF((W118/2+W121*2)=W110,W112-W108*W110,IF(W121*2+W118/2>W110,W107-W112+W108*W110+(W121*2+W118/2-W110)*W108,0))) -> 14.9278383 | AF132: durum 2 için | AG132: =IF(AG121*2+AG118/2<AG110,AG112-(AG121*2+AG118/2)*AG108,IF((AG118/2+AG121*2)=AG110,AG112-AG108*AG110,IF(AG121*2+AG118/2>AG110,AG107-AG112+AG108*AG110+(AG121*2+AG118/2-AG110)*AG108,0))) -> 7.884486107 | AP132: durum 2 için | AQ132: =IF(AQ121*2+AQ118/2<AQ110,AQ112-(AQ121*2+AQ118/2)*AQ108,IF((AQ118/2+AQ121*2)=AQ110,AQ112-AQ108*AQ110,IF(AQ121*2+AQ118/2>AQ110,AQ107-AQ112+AQ108*AQ110+(AQ121*2+AQ118/2-AQ110)*AQ108,0))) -> 8.116459963
L133: durum 3 için | M133: =IF((M121*2+M118/2)<M110,M112-(M121*2+M118/2)*M108,IF(AND(M110<(M121*2+M118/2),(M121*2+M118/2)<M114),M112-M108*M110-M107-(M121*2+M118/2-M110)*M108,IF((M121*2+M118/2)>M114,(M121*2+M118/2-M114)*M108,IF((M121*2+M118/2)=M110,M112-M108*M110,0)))) -> 18.26722279 | V133: durum 3 için | W133: =IF((W121*2+W118/2)<W110,W112-(W121*2+W118/2)*W108,IF(AND(W110<(W121*2+W118/2),(W121*2+W118/2)<W114),W112-W108*W110-W107-(W121*2+W118/2-W110)*W108,IF((W121*2+W118/2)>W114,(W121*2+W118/2-W114)*W108,IF((W121*2+W118/2)=W110,W112-W108*W110,0)))) -> 14.9278383 | AF133: durum 3 için | AG133: =IF((AG121*2+AG118/2)<AG110,AG112-(AG121*2+AG118/2)*AG108,IF(AND(AG110<(AG121*2+AG118/2),(AG121*2+AG118/2)<AG114),AG112-AG108*AG110-AG107-(AG121*2+AG118/2-AG110)*AG108,IF((AG121*2+AG118/2)>AG114,(AG121*2+AG118/2-AG114)*AG108,IF((AG121*2+AG118/2)=AG110,AG112-AG108*AG110,0)))) -> 7.884486107 | AP133: durum 3 için | AQ133: =IF((AQ121*2+AQ118/2)<AQ110,AQ112-(AQ121*2+AQ118/2)*AQ108,IF(AND(AQ110<(AQ121*2+AQ118/2),(AQ121*2+AQ118/2)<AQ114),AQ112-AQ108*AQ110-AQ107-(AQ121*2+AQ118/2-AQ110)*AQ108,IF((AQ121*2+AQ118/2)>AQ114,(AQ121*2+AQ118/2-AQ114)*AQ108,IF((AQ121*2+AQ118/2)=AQ110,AQ112-AQ108*AQ110,0)))) -> 8.116459963
L134: sağ kolon yüzünden 2h mesafede kesme kuvveti | V134: sağ kolon yüzünden 2h mesafede kesme kuvveti | AF134: sağ kolon yüzünden 2h mesafede kesme kuvveti | AP134: sağ kolon yüzünden 2h mesafede kesme kuvveti
L135: durum 1 için | M135: =IF((M121*2+M119/2)<M111,M113-(M121*2+M119/2)*M108,IF(AND((M121*2+M119/2)>M111,(M121*2+M119/2)<(M109-M114)),M113-M111*M108-M107-(M121*2+M119/2-M111)*M108,IF((M121*2+M119/2)=(M109-M110),M107+M108*M110-M112,((M121*2+M119/2)-(M109-M114))*M108))) -> 14.73277721 | V135: durum 1 için | W135: =IF((W121*2+W119/2)<W111,W113-(W121*2+W119/2)*W108,IF(AND((W121*2+W119/2)>W111,(W121*2+W119/2)<(W109-W114)),W113-W111*W108-W107-(W121*2+W119/2-W111)*W108,IF((W121*2+W119/2)=(W109-W110),W107+W108*W110-W112,((W121*2+W119/2)-(W109-W114))*W108))) -> 9.072161698 | AF135: durum 1 için | AG135: =IF((AG121*2+AG119/2)<AG111,AG113-(AG121*2+AG119/2)*AG108,IF(AND((AG121*2+AG119/2)>AG111,(AG121*2+AG119/2)<(AG109-AG114)),AG113-AG111*AG108-AG107-(AG121*2+AG119/2-AG111)*AG108,IF((AG121*2+AG119/2)=(AG109-AG110),AG107+AG108*AG110-AG112,((AG121*2+AG119/2)-(AG109-AG114))*AG108))) -> 0.3 | AP135: durum 1 için | AQ135: =IF((AQ121*2+AQ119/2)<AQ111,AQ113-(AQ121*2+AQ119/2)*AQ108,IF(AND((AQ121*2+AQ119/2)>AQ111,(AQ121*2+AQ119/2)<(AQ109-AQ114)),AQ113-AQ111*AQ108-AQ107-(AQ121*2+AQ119/2-AQ111)*AQ108,IF((AQ121*2+AQ119/2)=(AQ109-AQ110),AQ107+AQ108*AQ110-AQ112,((AQ121*2+AQ119/2)-(AQ109-AQ114))*AQ108))) -> 12.38354004
L136: durum 2 için | M136: =IF((M121*2+M119/2)<M111,M113-(M121*2+M119/2)*M108,IF((M121*2+M119/2)=M111,M107-M112+M108*M110,IF((M121*2+M119/2)>M111,M112-(M109-(M121*2+M119/2))*M108,0))) -> 14.73277721 | V136: durum 2 için | W136: =IF((W121*2+W119/2)<W111,W113-(W121*2+W119/2)*W108,IF((W121*2+W119/2)=W111,W107-W112+W108*W110,IF((W121*2+W119/2)>W111,W112-(W109-(W121*2+W119/2))*W108,0))) -> 9.072161698 | AF136: durum 2 için | AG136: =IF((AG121*2+AG119/2)<AG111,AG113-(AG121*2+AG119/2)*AG108,IF((AG121*2+AG119/2)=AG111,AG107-AG112+AG108*AG110,IF((AG121*2+AG119/2)>AG111,AG112-(AG109-(AG121*2+AG119/2))*AG108,0))) -> 2.184486107 | AP136: durum 2 için | AQ136: =IF((AQ121*2+AQ119/2)<AQ111,AQ113-(AQ121*2+AQ119/2)*AQ108,IF((AQ121*2+AQ119/2)=AQ111,AQ107-AQ112+AQ108*AQ110,IF((AQ121*2+AQ119/2)>AQ111,AQ112-(AQ109-(AQ121*2+AQ119/2))*AQ108,0))) -> 12.38354004
L137: durum 3 için | M137: =IF((M109-M114)>(M121*2+M119/2),M113-(M121*2+M119/2)*M108,IF(AND((M121*2+M119/2)>(M109-M114),(M109-M110)>(M121*2+M119/2)),((M121*2+M119/2)-(M109-M114))*M108,IF(M121*2+M119/2>(M109-M110),M112-(M109-(M121*2+M119/2))*M108,IF((M121*2+M119/2)=(M109-M110),M112-M108*M110,0)))) -> 14.73277721 | V137: durum 3 için | W137: =IF((W109-W114)>(W121*2+W119/2),W113-(W121*2+W119/2)*W108,IF(AND((W121*2+W119/2)>(W109-W114),(W109-W110)>(W121*2+W119/2)),((W121*2+W119/2)-(W109-W114))*W108,IF(W121*2+W119/2>(W109-W110),W112-(W109-(W121*2+W119/2))*W108,IF((W121*2+W119/2)=(W109-W110),W112-W108*W110,0)))) -> 9.072161698 | AF137: durum 3 için | AG137: =IF((AG109-AG114)>(AG121*2+AG119/2),AG113-(AG121*2+AG119/2)*AG108,IF(AND((AG121*2+AG119/2)>(AG109-AG114),(AG109-AG110)>(AG121*2+AG119/2)),((AG121*2+AG119/2)-(AG109-AG114))*AG108,IF(AG121*2+AG119/2>(AG109-AG110),AG112-(AG109-(AG121*2+AG119/2))*AG108,IF((AG121*2+AG119/2)=(AG109-AG110),AG112-AG108*AG110,0)))) -> 2.184486107 | AP137: durum 3 için | AQ137: =IF((AQ109-AQ114)>(AQ121*2+AQ119/2),AQ113-(AQ121*2+AQ119/2)*AQ108,IF(AND((AQ121*2+AQ119/2)>(AQ109-AQ114),(AQ109-AQ110)>(AQ121*2+AQ119/2)),((AQ121*2+AQ119/2)-(AQ109-AQ114))*AQ108,IF(AQ121*2+AQ119/2>(AQ109-AQ110),AQ112-(AQ109-(AQ121*2+AQ119/2))*AQ108,IF((AQ121*2+AQ119/2)=(AQ109-AQ110),AQ112-AQ108*AQ110,0)))) -> 12.38354004
L138: sol kolon yüzünden d mesafede kesme kuvveti= | M138: =IF(M117="durum 1",M123,IF(M117="durum 2",M124,IF(M117="durum 3",M125,"hatalı"))) -> 24.56722279 | V138: sol kolon yüzünden d mesafede kesme kuvveti= | W138: =IF(W117="durum 1",W123,IF(W117="durum 2",W124,IF(W117="durum 3",W125,"hatalı"))) -> 22.2278383 | AF138: sol kolon yüzünden d mesafede kesme kuvveti= | AG138: =IF(AG117="durum 1",AG123,IF(AG117="durum 2",AG124,IF(AG117="durum 3",AG125,"hatalı"))) -> 15.18448611 | AP138: sol kolon yüzünden d mesafede kesme kuvveti= | AQ138: =IF(AQ117="durum 1",AQ123,IF(AQ117="durum 2",AQ124,IF(AQ117="durum 3",AQ125,"hatalı"))) -> 15.41645996
L139: sağ kolon yüzünden d mesafede kesme kuvveti= | M139: =IF(M117="durum 1",M127,IF(M117="durum 2",M128,IF(M117="durum 3",M129,"hatalı"))) -> 21.03277721 | V139: sağ kolon yüzünden d mesafede kesme kuvveti= | W139: =IF(W117="durum 1",W127,IF(W117="durum 2",W128,IF(W117="durum 3",W129,"hatalı"))) -> 16.3721617 | AF139: sağ kolon yüzünden d mesafede kesme kuvveti= | AG139: =IF(AG117="durum 1",AG127,IF(AG117="durum 2",AG128,IF(AG117="durum 3",AG129,"hatalı"))) -> 17.11551389 | AP139: sağ kolon yüzünden d mesafede kesme kuvveti= | AQ139: =IF(AQ117="durum 1",AQ127,IF(AQ117="durum 2",AQ128,IF(AQ117="durum 3",AQ129,"hatalı"))) -> 19.68354004
L140: sol kolon yüzünden 2h mesafede kesme kuvveti= | M140: =IF(M117="durum 1",M131,IF(M117="durum 2",M132,IF(M117="durum 3",M133,"hatalı"))) -> 18.26722279 | V140: sol kolon yüzünden 2h mesafede kesme kuvveti= | W140: =IF(W117="durum 1",W131,IF(W117="durum 2",W132,IF(W117="durum 3",W133,"hatalı"))) -> 14.9278383 | AF140: sol kolon yüzünden 2h mesafede kesme kuvveti= | AG140: =IF(AG117="durum 1",AG131,IF(AG117="durum 2",AG132,IF(AG117="durum 3",AG133,"hatalı"))) -> 7.884486107 | AP140: sol kolon yüzünden 2h mesafede kesme kuvveti= | AQ140: =IF(AQ117="durum 1",AQ131,IF(AQ117="durum 2",AQ132,IF(AQ117="durum 3",AQ133,"hatalı"))) -> 8.116459963
L141: sağ kolon yüzünden 2h mesafede kesme kuvveti= | M141: =IF(M117="durum 1",M135,IF(M117="durum 2",M136,IF(M117="durum 3",M137,"hatalı"))) -> 14.73277721 | V141: sağ kolon yüzünden 2h mesafede kesme kuvveti= | W141: =IF(W117="durum 1",W135,IF(W117="durum 2",W136,IF(W117="durum 3",W137,"hatalı"))) -> 9.072161698 | AF141: sağ kolon yüzünden 2h mesafede kesme kuvveti= | AG141: =IF(AG117="durum 1",AG135,IF(AG117="durum 2",AG136,IF(AG117="durum 3",AG137,"hatalı"))) -> 2.184486107 | AP141: sağ kolon yüzünden 2h mesafede kesme kuvveti= | AQ141: =IF(AQ117="durum 1",AQ135,IF(AQ117="durum 2",AQ136,IF(AQ117="durum 3",AQ137,"hatalı"))) -> 12.38354004
B142: kiriş kolon yüzünden d mesafede kesme kuvveti (KN) | H142: =+M138 -> 24.56722279 | O142: =+M139 -> 21.03277721 | R142: =+W138 -> 22.2278383 | Y142: =+W139 -> 16.3721617 | AB142: =+AG138 -> 15.18448611 | AI142: =+AG139 -> 17.11551389 | AL142: =+AQ138 -> 15.41645996 | AS142: =+AQ139 -> 19.68354004
B147: kiriş kolon yüzünden 2*h mesafede kesme kuvveti (KN) | H147: =+M140 -> 18.26722279 | O147: =+M141 -> 14.73277721 | R147: =+W140 -> 14.9278383 | Y147: =+W141 -> 9.072161698 | AB147: =+AG140 -> 7.884486107 | AI147: =+AG141 -> 2.184486107 | AL147: =+AQ140 -> 8.116459963 | AS147: =+AQ141 -> 12.38354004
B152: kiriş kolon yüzü kesme kuvveti (KN) | H152: =+M112-L19*G38/2 -> 30.26722279 | O152: =+M113-Q38/2*L19 -> 26.73277721 | R152: =+W112-V19*Q38/2 -> 28.9278383 | Y152: =+W113-AA38/2*V19 -> 23.0721617 | AB152: =+AG112-AF19*AA38/2 -> 21.88448611 | AI152: =+AG113-AK38/2*AF19 -> 23.81551389 | AL152: =+AQ112-AP19*AK38/2 -> 22.11645996 | AS152: =+AQ113-AU38/2*AP19 -> 26.38354004
B155: kiriş kolon yüzü moment (KNm) | H155: =+M105-(M112+H152)/2*G38/2 -> 19.86480233 | O155: =+M106-(O152+M113)/2*Q38/2 -> 19.71229978 | R155: =+W105-(W112+R152)/2*Q38/2 -> 18.4378647 | Y155: =+W106-(Y152+W113)/2*AA38/2 -> 13.92651149 | AB155: =+AG105-(AG112+AB152)/2*AA38/2 -> 12.74084389 | AI155: =+AG106-(AI152+AG113)/2*AK38/2 -> 12.21462571 | AL155: =+AQ105-(AQ112+AL152)/2*AK38/2 -> 12.76266856 | AS155: =+AQ106-(AS152+AQ113)/2*AU38/2 -> 15.4500897

Sheet 5_aciklikli
B2: SAPLAMA KİRİŞLİ ÇERÇEVE CROSS (5 AÇIKLIKLI) (inş.müh. Gürcan BERBEROĞLU tel: 0532 366 02 04 www.betoncelik.com )
I3: pas payı d ' = | N3: 0.03 | P3: m | V3: dikkat sadece sarı hücrelere rakam giriniz.
G4: 0.5 | I4: m | Q4: 0.5 | S4: m | AA4: 0.5 | AC4: m | AK4: 0.5 | AM4: m | AU4: 0.5 | AW4: m | BE4: 0.5 | BG4: m
I5: m | S5: m | AC5: m | AM5: m | AW5: m | BG5: m
I6: 0.6 | S6: 0.6 | AC6: 0.6 | AM6: 0.6 | AW6: 0.6 | BG6: 0.6
D10: =SUM(D11:E15) -> -3.723442321 | G10: dm4 | Q10: dm4 | AA10: dm4 | AK10: dm4 | AU10: dm4 | BE10: dm4 | BG10: =SUM(BG11:BH15) -> 10.04679378
D11: =-I29*G21 -> -4.946691864e-05
D12: =-I27*G21 -> 0.0002423311746 | G12: =I6*G4^3/12*10000 -> 62.5 | I12: =SUM(I13:J17) -> -3.723442321 | N12: =SUM(N13:O17) -> -0.9666792703 | Q12: =S6*Q4^3/12*10000 -> 62.5 | S12: =SUM(S13:T17) -> -0.9666792703 | X12: =SUM(X13:Y17) -> 4.676420539 | AA12: =AC6*AA4^3/12*10000 -> 62.5 | AC12: =SUM(AC13:AD17) -> 4.676420539 | AH12: =SUM(AH13:AI17) -> -0.8337880371 | AK12: =AM6*AK4^3/12*10000 -> 62.5 | AM12: =SUM(AM13:AN17) -> -0.8337880371 | AR12: =SUM(AR13:AS17) -> -5.399661011 | AU12: =AW6*AU4^3/12*10000 -> 62.5 | AW12: =SUM(AW13:AX17) -> -5.399661011 | BB12: =SUM(BB13:BC17) -> 10.04679378 | BE12: =BG6*BE4^3/12*10000 -> 62.5 | BG12: =-BC28*BE17 -> 0.0006755766439
D13: =-I25*G21 -> 0.01711288922 | I13: =-I29*G17 -> -4.946691864e-05 | X13: =-(Y29+AC29)*AA21 -> -0.0001947969616 | AC13: =-(Y29+AC29)*AA17 -> -0.0001947969616 | AR13: =-(AS29+AW29)*AU21 -> -0.0002344656417 | AW13: =-(AS29+AW29)*AU17 -> -0.0002344656417 | BG13: =-BC26*BE17 -> 0.01099318094 | BL13: m
D14: =-I23*G21 -> 0.2065169914 | I14: =-I27*G17 -> 0.0002423311746 | N14: =-(O28+S28)*Q21 -> 0.000213645154 | S14: =-(O28+S28)*Q17 -> 0.000213645154 | X14: =-(Y27+AC27)*AA21 -> -0.001980695558 | AC14: =-(Y27+AC27)*AA17 -> -0.001980695558 | AH14: =-(AI28+AM28)*AK21 -> 0.0008435719339 | AM14: =-(AI28+AM28)*AK17 -> 0.0008435719339 | AR14: =-(AS27+AW27)*AU21 -> -0.0032659215 | AW14: =-(AS27+AW27)*AU17 -> -0.0032659215 | BB14: =-BC28*BE21 -> 0.0006755766439 | BG14: =-BC24*BE17 -> 0.2448446157 | BL14: 3.8
D15: =-(E21+I21)*G21 -> -3.947265066 | G15: I = | I15: =-I25*G17 -> 0.01711288922 | N15: =-(O26+S26)*Q21 -> -0.001046616255 | Q15: I = | S15: =-(O26+S26)*Q17 -> -0.001046616255 | X15: =-(Y25+AC25)*AA21 -> -0.01469690858 | AA15: I = | AC15: =-(Y25+AC25)*AA17 -> -0.01469690858 | AH15: =-(AI26+AM26)*AK21 -> 0.01045516646 | AK15: I = | AM15: =-(AI26+AM26)*AK17 -> 0.01045516646 | AR15: =-(AS25+AW25)*AU21 -> -0.05314403082 | AU15: I = | AW15: =-(AS25+AW25)*AU17 -> -0.05314403082 | BB15: =-BC26*BE21 -> 0.01099318094 | BE15: I = | BG15: =-(BC21+BG21+BC22)*BE17 -> 9.790280402
I16: =-I23*G17 -> 0.2065169914 | N16: =-(O24+S24)*Q21 -> -0.07390971489 | S16: =-(O24+S24)*Q17 -> -0.07390971489 | X16: =-(Y23+AC23)*AA21 -> 0.2980799368 | AC16: =-(Y23+AC23)*AA17 -> 0.2980799368 | AH16: =-(AI24+AM24)*AK21 -> 0.1161619648 | AM16: =-(AI24+AM24)*AK17 -> 0.1161619648 | AR16: =-(AS23+AW23)*AU21 -> -1.18364556 | AW16: =-(AS23+AW23)*AU17 -> -1.18364556 | BB16: =-BC24*BE21 -> 0.2448446157
D17: 12 | F17: KN | G17: =(4*G12/BL14)/((4*G12/BL14)+(4*L20/L36)+(4*G26/BL25)) -> 0.2684622482 | I17: =-(E21+I21)*G17 -> -3.947265066 | K17: 12 | M17: KN | N17: =-(O21+O22+S21+S22)*Q21 -> -0.8919365843 | Q17: =(4*Q12/BL14)/((4*Q12/BL14)+(4*V20/V36)+(4*Q26/BL25)+(4*L20/L36)) -> 0.1992584633 | S17: =-(O21+O22+S21+S22)*Q17 -> -0.8919365843 | U17: 12 | W17: KN | X17: =-(Y21+AC21)*AA21 -> 4.395213003 | AA17: =(4*AA12/BL14)/((4*AA12/BL14)+(4*AA26/BL25)+(4*V20/V36)+(4*AF20/AF36)) -> 0.1814407432 | AC17: =-(Y21+AC21)*AA17 -> 4.395213003 | AE17: 12 | AG17: KN | AH17: =-(AI21+AM21+AI22+AM22)*AK21 -> -0.9612487403 | AK17: =(4*AK12/BL14)/((4*AK12/BL14)+(4*AK26/BL25)+(4*AF20/AF36)+(4*AP20/AP36)) -> 0.1682745043 | AM17: =-(AI21+AM21+AI22+AM22)*AK17 -> -0.9612487403 | AO17: 12 | AQ17: KN | AR17: =-(AS21+AW21)*AU21 -> -4.159371034 | AU17: =(4*AU12/BL14)/((4*AU12/BL14)+(4*AU26/BL25)+(4*AP20/AP36)+(4*AZ20/AZ36)) -> 0.1946958811 | AW17: =-(AS21+AW21)*AU17 -> -4.159371034 | AY17: 12 | BA17: KN | BB17: =-(BC21+BG21+BC22)*BE21 -> 9.790280402 | BE17: =(4*BE12/BL14)/((4*BE12/BL14)+(4*BE26/BL25)+(4*AZ20/AZ36)) -> 0.2931436368 | BH17: 12 | BJ17: KN
B19: q = | C19: 10 | E19: KN/m | K19: q = | L19: 15 | N19: KN/m | U19: q = | V19: 10 | X19: KN/m | AE19: q = | AF19: 10 | AH19: KN/m | AO19: q = | AP19: 10 | AR19: KN/m | AY19: q = | AZ19: 15 | BB19: KN/m | BG19: q = | BH19: 10 | BJ19: KN/m
F20: 0 | H20: =(4*L20/L36)/((4*G12/BL14)+(4*L20/L36)+(4*G26/BL25)) -> 0.4630755035 | K20: I = | L20: =(L43*H45^3/12+H45*L43*(((H45*L43*H45/2+L50*(O46-H45)*((O46-H45)/2+H45))/(L43*H45+(O46-H45)*L50))-H45/2)^2+L50*(O46-H45)^3/12+L50*(O46-H45)*(O46-((H45*L43*H45/2+L50*(O46-H45)*((O46-H45)/2+H45))/(L43*H45+(O46-H45)*L50))-(O46-H45)/2)^2)*10000 -> 127.6666667 | N20: dm4 | P20: =(4*L20/L36)/((4*Q12/BL14)+(4*V20/V36)+(4*Q26/BL25)+(4*L20/L36)) -> 0.3437046134 | R20: =(4*V20/V36)/((4*Q12/BL14)+(4*V20/V36)+(4*Q26/BL25)+(4*L20/L36)) -> 0.25777846 | U20: I = | V20: =(V43*R45^3/12+R45*V43*(((R45*V43*R45/2+V50*(Y46-R45)*((Y46-R45)/2+R45))/(V43*R45+(Y46-R45)*V50))-R45/2)^2+V50*(Y46-R45)^3/12+V50*(Y46-R45)*(Y46-((R45*V43*R45/2+V50*(Y46-R45)*((Y46-R45)/2+R45))/(V43*R45+(Y46-R45)*V50))-(Y46-R45)/2)^2)*10000 -> 127.6666667 | X20: dm4 | Z20: =(4*V20/V36)/((4*AA12/BL14)+(4*AA26/BL25)+(4*V20/V36)+(4*AF20/AF36)) -> 0.2347278734 | AB20: =(4*AF20/AF36)/((4*AA12/BL14)+(4*AA26/BL25)+(4*V20/V36)+(4*AF20/AF36)) -> 0.4023906402 | AE20: I = | AF20: =(AF43*AB45^3/12+AB45*AF43*(((AB45*AF43*AB45/2+AF50*(AI46-AB45)*((AI46-AB45)/2+AB45))/(AF43*AB45+(AI46-AB45)*AF50))-AB45/2)^2+AF50*(AI46-AB45)^3/12+AF50*(AI46-AB45)*(AI46-((AB45*AF43*AB45/2+AF50*(AI46-AB45)*((AI46-AB45)/2+AB45))/(AF43*AB45+(AI46-AB45)*AF50))-(AI46-AB45)/2)^2)*10000 -> 127.6666667 | AH20: dm4 | AJ20: =(4*AF20/AF36)/((4*AK12/BL14)+(4*AK26/BL25)+(4*AF20/AF36)+(4*AP20/AP36)) -> 0.3731911826 | AL20: =(4*AP20/AP36)/((4*AK12/BL14)+(4*AK26/BL25)+(4*AF20/AF36)+(4*AP20/AP36)) -> 0.2902598087 | AO20: I = | AP20: =(AP43*AL45^3/12+AL45*AP43*(((AL45*AP43*AL45/2+AP50*(AS46-AL45)*((AS46-AL45)/2+AL45))/(AP43*AL45+(AS46-AL45)*AP50))-AL45/2)^2+AP50*(AS46-AL45)^3/12+AP50*(AS46-AL45)*(AS46-((AL45*AP43*AL45/2+AP50*(AS46-AL45)*((AS46-AL45)/2+AL45))/(AP43*AL45+(AS46-AL45)*AP50))-(AS46-AL45)/2)^2)*10000 -> 127.6666667 | AR20: dm4 | AT20: =(4*AP20/AP36)/((4*AU12/BL14)+(4*AU26/BL25)+(4*AP20/AP36)+(4*AZ20/AZ36)) -> 0.3358345308 | AV20: =(4*AZ20/AZ36)/((4*AU12/BL14)+(4*AU26/BL25)+(4*AP20/AP36)+(4*AZ20/AZ36)) -> 0.274773707 | AY20: I = | AZ20: =(AZ43*AV45^3/12+AV45*AZ43*(((AV45*AZ43*AV45/2+AZ50*(BC46-AV45)*((BC46-AV45)/2+AV45))/(AZ43*AV45+(BC46-AV45)*AZ50))-AV45/2)^2+AZ50*(BC46-AV45)^3/12+AZ50*(BC46-AV45)*(BC46-((AV45*AZ43*AV45/2+AZ50*(BC46-AV45)*((BC46-AV45)/2+AV45))/(AZ43*AV45+(BC46-AV45)*AZ50))-(BC46-AV45)/2)^2)*10000 -> 127.6666667 | BB20: dm4 | BD20: =(4*AZ20/AZ36)/((4*BE12/BL14)+(4*BE26/BL25)+(4*AZ20/AZ36)) -> 0.4137127263 | BF20: 0
E21: =IF(OR(D36=0,D36=""),0,-C19*D36*D36/2-D17*F34) -> -15.6 | G21: =(4*G26/BL25)/((4*G12/BL14)+(4*L20/L36)+(4*G26/BL25)) -> 0.2684622482 | I21: =L19*L36^2/12+K17*I34*N34^2/L36^2 -> 30.30324074 | O21: =-L19*L36^2/12-K17*N34*I34^2/L36^2 -> -33.15509259 | Q21: =(4*Q26/BL25)/((4*Q12/BL14)+(4*V20/V36)+(4*Q26/BL25)+(4*L20/L36)) -> 0.1992584633 | S21: =V19*V36^2/12+U17*S34*X34^2/V36^2 -> 38.19270833 | Y21: =-V19*V36^2/12-U17*X34*S34^2/V36^2 -> -39.68229167 | AA21: =(4*AA26/BL25)/((4*AA12/BL14)+(4*AA26/BL25)+(4*V20/V36)+(4*AF20/AF36)) -> 0.1814407432 | AC21: =AF19*AF36^2/12+AE17*AC34*AH34^2/AF36^2 -> 15.45833333 | AI21: =-AF19*AF36^2/12-AE17*AH34*AC34^2/AF36^2 -> -15.45833333 | AK21: =(4*AK26/BL25)/((4*AK12/BL14)+(4*AK26/BL25)+(4*AF20/AF36)+(4*AP20/AP36)) -> 0.1682745043 | AM21: =AP19*AP36^2/12+AO17*AM34*AR34^2/AP36^2 -> 19.88425926 | AS21: =-AP19*AP36^2/12-AO17*AR34*AM34^2/AP36^2 -> -24.69907407 | AU21: =(4*AU26/BL25)/((4*AU12/BL14)+(4*AU26/BL25)+(4*AP20/AP36)+(4*AZ20/AZ36)) -> 0.1946958811 | AW21: =AZ19*AZ36^2/12+AY17*AW34*BB34^2/AZ36^2 -> 46.0625 | BC21: =-AZ19*AZ36^2/12-AY17*BB34*AW34^2/AZ36^2 -> -46.0625 | BE21: =(4*BE26/BL25)/((4*BE12/BL14)+(4*BE26/BL25)+(4*AZ20/AZ36)) -> 0.2931436368 | BG21: =IF(OR(BG36=0,BG36=""),0,BH19*BG36*BG36/2+BH17*BF34) -> 15.6
I22: =-(E21+I21)*H20 -> -6.808710609 | O22: =+I22/2 -> -3.404355305 | S22: =+Y22/2 -> 2.843019113 | Y22: =-(Y21+AC21)*Z20 -> 5.686038226 | AC22: =-(Y21+AC21)*AB20 -> 9.747494102 | AI22: =+AC22/2 -> 4.873747051 | AM22: =+AS22/2 -> -3.587288061 | AS22: =-(AS21+AW21)*AT20 -> -7.174576122 | AW22: =-(AS21+AW21)*AV20 -> -5.870107736 | BC22: =+AW22/2 -> -2.935053868
I23: =+O23/2 -> -0.7692589658 | O23: =-(O21+O22+S21+S22)*P20 -> -1.538517932 | S23: =-(O21+O22+S21+S22)*R20 -> -1.153888449 | Y23: =+S23/2 -> -0.5769442244 | AC23: =+AI23/2 -> -1.065905841 | AI23: =-(AI21+AM21+AI22+AM22)*AJ20 -> -2.131811682 | AM23: =-(AI21+AI22+AM21+AM22)*AL20 -> -1.658075753 | AS23: =+AM23/2 -> -0.8290378765 | AW23: =+BC23/2 -> 6.908496532 | BC23: =-(BC21+BG21+BC22)*BD20 -> 13.81699306
G24: dm4 | I24: =-I23*H20 -> 0.3562249829 | O24: =+I24/2 -> 0.1781124915 | Q24: dm4 | S24: =+Y24/2 -> 0.1928113511 | Y24: =-(Y23+AC23)*Z20 -> 0.3856227023 | AA24: dm4 | AC24: =-(Y23+AC23)*AB20 -> 0.6610674896 | AI24: =+AC24/2 -> 0.3305337448 | AK24: dm4 | AM24: =+AS24/2 -> -1.020846073 | AS24: =-(AS23+AW23)*AT20 -> -2.041692145 | AU24: dm4 | AW24: =-(AS23+AW23)*AV20 -> -1.670475391 | BC24: =+AW24/2 -> -0.8352376957 | BE24: dm4 | BL24: m
I25: =+O25/2 -> -0.06374411795 | O25: =-(O24+S24)*P20 -> -0.1274882359 | S25: =-(O24+S24)*R20 -> -0.09561617693 | Y25: =+S25/2 -> -0.04780808846 | AC25: =+AI25/2 -> 0.128809237 | AI25: =-(AI24+AM24)*AJ20 -> 0.257618474 | AM25: =-(AI24+AM24)*AL20 -> 0.2003699242 | AS25: =+AM25/2 -> 0.1001849621 | AW25: =+BC25/2 -> 0.1727742321 | BC25: =-BC24*BD20 -> 0.3455484642 | BL25: 3.8
G26: =I40*G38^3/12*10000 -> 62.5 | I26: =-I25*H20 -> 0.02951833952 | O26: =+I26/2 -> 0.01475916976 | Q26: =S40*Q38^3/12*10000 -> 62.5 | S26: =+Y26/2 -> -0.009506613669 | Y26: =-(Y25+AC25)*Z20 -> -0.01901322734 | AA26: =AC40*AA38^3/12*10000 -> 62.5 | AC26: =-(Y25+AC25)*AB20 -> -0.03259410401 | AI26: =+AC26/2 -> -0.016297052 | AK26: =AM40*AK38^3/12*10000 -> 62.5 | AM26: =+AS26/2 -> -0.04583456146 | AS26: =-(AS25+AW25)*AT20 -> -0.09166912291 | AU26: =AW40*AU38^3/12*10000 -> 62.5 | AW26: =-(AS25+AW25)*AV20 -> -0.07500200965 | BC26: =+AW26/2 -> -0.03750100483 | BE26: =BG40*BE38^3/12*10000 -> 62.5
I27: =+O27/2 -> -0.00090266388 | O27: =-(O26+S26)*P20 -> -0.00180532776 | S27: =-(O26+S26)*R20 -> -0.00135399582 | Y27: =+S27/2 -> -0.00067699791 | AC27: =+AI27/2 -> 0.01159348515 | AI27: =-(AI26+AM26)*AJ20 -> 0.02318697031 | AM27: =-(AI26+AM26)*AL20 -> 0.01803431024 | AS27: =+AM27/2 -> 0.009017155119 | AW27: =+BC27/2 -> 0.007757321474 | BC27: =-BC26*BD20 -> 0.01551464295
I28: =-I27*H20 -> 0.0004180015307 | O28: =+I28/2 -> 0.0002090007654 | S28: =+Y28/2 -> -0.001281201918 | Y28: =-(Y27+AC27)*Z20 -> -0.002562403836 | AC28: =-(Y27+AC27)*AB20 -> -0.00439269229 | AI28: =+AC28/2 -> -0.002196346145 | AM28: =+AS28/2 -> -0.002816724238 | AS28: =-(AS27+AW27)*AT20 -> -0.005633448476 | AW28: =-(AS27+AW27)*AV20 -> -0.004609185117 | BC28: =+AW28/2 -> -0.002304592558
G29: I = | I29: =+O29/2 -> 0.0001842602413 | O29: =-(O28+S28)*P20 -> 0.0003685204826 | Q29: I = | S29: =-(O28+S28)*R20 -> 0.0002763903619 | Y29: =+S29/2 -> 0.000138195181 | AA29: I = | AC29: =+AI29/2 -> 0.0009354168324 | AI29: =-(AI28+AM28)*AJ20 -> 0.001870833665 | AK29: I = | AM29: =-(AI28+AM28)*AL20 -> 0.00145509285 | AS29: =+AM29/2 -> 0.0007275464252 | AU29: I = | AW29: =+BC29/2 -> 0.0004767196352 | BC29: =-BC28*BD20 -> 0.0009534392704 | BE29: I =
I30: =-I29*H20 -> -8.532640402e-05 | Y30: =-(Y29+AC29)*Z20 -> -0.0002520066648 | AC30: =-(Y29+AC29)*AB20 -> -0.0004320114254 | AS30: =-(AS29+AW29)*AT20 -> -0.0004044341273 | AW30: =-(AS29+AW29)*AV20 -> -0.0003309006496
I31: =SUM(I21:J30) -> 23.04688464 | O31: =SUM(O21:P30) -> -38.03381021 | S31: =SUM(S21:T30) -> 39.96716875 | Y31: =SUM(Y21:Z30) -> -34.25774949 | AC31: =SUM(AC21:AD30) -> 24.90490841 | AI31: =SUM(AI21:AJ30) -> -12.12168134 | AM31: =SUM(AM21:AN30) -> 13.78925741 | AS31: =SUM(AS21:AT30) -> -34.73215756 | AW31: =SUM(AW21:AX30) -> 45.53147958 | BC31: =SUM(BC21:BD30) -> -35.69358755
C34: 0.5 | E34: m | F34: =+D36-C34 -> 0.7 | H34: m | I34: 2.75 | K34: m | N34: =+L36-I34 -> 1.75 | P34: m | S34: 3.25 | U34: m | X34: =+V36-S34 -> 2.75 | Z34: m | AC34: 1.75 | AE34: m | AH34: =+AF36-AC34 -> 1.75 | AJ34: m | AM34: 3.25 | AO34: m | AR34: =+AP36-AM34 -> 1.25 | AT34: m | AW34: 2.75 | AY34: m | BB34: =+AZ36-AW34 -> 2.75 | BD34: m | BF34: =+BG36-BI34 -> 0.7 | BH34: m | BI34: 0.5 | BK34: m
D36: 1.2 | F36: m | L36: 4.5 | N36: m | V36: 6 | X36: m | AF36: 3.5 | AH36: m | AP36: 4.5 | AR36: m | AZ36: 5.5 | BB36: m | BG36: 1.2 | BI36: m
G38: 0.5 | I38: m | Q38: 0.5 | S38: m | AA38: 0.5 | AC38: m | AK38: 0.5 | AM38: m | AU38: 0.5 | AW38: m | BE38: 0.5 | BG38: m
I39: m | S39: m | AC39: m | AM39: m | AW39: m | BG39: m
I40: 0.6 | S40: 0.6 | AC40: 0.6 | AM40: 0.6 | AW40: 0.6 | BG40: 0.6
L43: 1.2 | N43: m | V43: 1.2 | X43: m | AF43: 1.2 | AH43: m | AP43: 1.2 | AR43: m | AZ43: 1.2 | BB43: m
H45: 0.1 | J45: m | O45: m | R45: 0.1 | T45: m | Y45: m | AB45: 0.1 | AD45: m | AI45: m | AL45: 0.1 | AN45: m | AS45: m | AV45: 0.1 | AX45: m | BC45: m
O46: 0.7 | Y46: 0.7 | AI46: 0.7 | AS46: 0.7 | BC46: 0.7
L50: 0.25 | N50: m | V50: 0.25 | X50: m | AF50: 0.25 | AH50: m | AP50: 0.25 | AR50: m | AZ50: 0.25 | BB50: m
D52: =IF(I12<0,I12/2,"") -> -1.86172116 | J52: =IF(I12>0,I12/2,"") ->  | N52: =IF(S12<0,S12/2,"") -> -0.4833396352 | T52: =IF(S12>0,S12/2,"") ->  | X52: =IF(AC12<0,AC12/2,"") ->  | AD52: =IF(AC12>0,AC12/2,"") -> 2.338210269 | AH52: =IF(AM12<0,AM12/2,"") -> -0.4168940185 | AN52: =IF(AM12>0,AM12/2,"") ->  | AR52: =IF(AW12<0,AW12/2,"") -> -2.699830506 | AX52: =IF(AW12>0,AW12/2,"") ->  | BB52: =IF(BG10<0,BG10/2,"") ->  | BH52: =IF(BG10>0,BG10/2,"") -> 5.023396888
J55: moment diyagramı (KNm)
R56: =-S31 -> -39.96716875
H57: =-I31 -> -23.04688464 | Z57: =Y31 -> -34.25774949 | AB57: =-AC31 -> -24.90490841 | AJ57: =AI31 -> -12.12168134 | AL57: =-+AM31 -> -13.78925741 | AT57: =AS31 -> -34.73215756 | AV57: =-AW31 -> -45.53147958 | BD57: =BC31 -> -35.69358755
P58: =O31 -> -38.03381021
F59: =IF(E21=0,"",+E21) -> -15.6 | BF59: =IF(BG21=0,"",-BG21) -> -15.6
E61: =IF(I12>0,-I12,"") ->  | I61: =IF(I12<0,-I12,"") -> 3.723442321 | O61: =IF(S12>0,-S12,"") ->  | S61: =IF(S12<0,-S12,"") -> 0.9666792703 | Y61: =IF(AC12>0,-AC12,"") -> -4.676420539 | AC61: =IF(AC12<0,-AC12,"") ->  | AI61: =IF(AM12>0,-AM12,"") ->  | AM61: =IF(AM12<0,-AM12,"") -> 0.8337880371 | AS61: =IF(AW12>0,-AW12,"") ->  | AW61: =IF(AW12<0,-AW12,"") -> 5.399661011 | BC61: =IF(BG10>0,-BG10,"") -> -10.04679378 | BG61: =IF(BG10<0,-BG10,"") -> 
E62: =IF(D10<0,D10,"") -> -3.723442321 | I62: =IF(D10>0,D10,"") ->  | O62: =IF(N12<0,N12,"") -> -0.9666792703 | S62: =IF(N12>0,N12,"") ->  | Y62: =IF(X12<0,X12,"") ->  | AC62: =IF(X12>0,X12,"") -> 4.676420539 | AI62: =IF(AH12<0,AH12,"") -> -0.8337880371 | AM62: =IF(AH12>0,AH12,"") ->  | AS62: =IF(AR12<0,AR12,"") -> -5.399661011 | AW62: =IF(AR12>0,AR12,"") ->  | BC62: =IF(BB12<0,BB12,"") ->  | BG62: =IF(BB12>0,BB12,"") -> 10.04679378
L65: =+M116 -> 17.98792038 | V65: =+W116 -> 25.68793335 | AF65: =+AG116 -> 7.299205123 | AP65: =+AQ116 -> 8.638997605 | AZ65: =+BA116 -> 32.60621643
D74: =IF(D10>0,-D10/2,"") ->  | J74: =IF(D10<0,-D10/2,"") -> 1.86172116 | N74: =IF(N12>0,-N12/2,"") ->  | T74: =IF(N12<0,-N12/2,"") -> 0.4833396352 | X74: =IF(X12>0,-X12/2,"") -> -2.338210269 | AD74: =IF(X12<0,-X12/2,"") ->  | AH74: =IF(AH12>0,-AH12/2,"") ->  | AN74: =IF(AH12<0,-AH12/2,"") -> 0.4168940185 | AR74: =IF(AR12>0,-AR12/2,"") ->  | AX74: =IF(AR12<0,-AR12/2,"") -> 2.699830506 | BB74: =IF(BB12>0,-BB12/2,"") -> -5.023396888 | BH74: =IF(BB12<0,-BB12/2,"") -> 
D77: =IF(I12<0,(I12+I12/2)/$BL$14,"") -> -1.469779863 | J77: =IF(I12>0,(I12+I12/2)/$BL$14,"") ->  | N77: =IF(S12<0,(S12+S12/2)/$BL$14,"") -> -0.3815839225 | T77: =IF(S12>0,(S12+S12/2)/$BL$14,"") ->  | X77: =IF(AC12<0,(AC12+AC12/2)/$BL$14,"") ->  | AD77: =IF(AC12>0,(AC12+AC12/2)/$BL$14,"") -> 1.845955476 | AH77: =IF(AM12<0,(AM12+AM12/2)/$BL$14,"") -> -0.3291268567 | AN77: =IF(AM12>0,(AM12+AM12/2)/$BL$14,"") ->  | AR77: =IF(AW12<0,(AW12+AW12/2)/$BL$14,"") -> -2.131445136 | AX77: =IF(AW12>0,(AW12+AW12/2)/$BL$14,"") ->  | BB77: =IF(BG10<0,(BG10+BG10/2)/$BL$14,"") ->  | BH77: =IF(BG10>0,(BG10+BG10/2)/$BL$14,"") -> 3.965839648
J80: kesme kuvveti diyagramı (KN)
H84: =+M112 -> 35.08623876 | R84: =+W112 -> 36.45156988 | AB84: =+AG112 -> 27.15235059 | AL84: =+AQ112 -> 21.17935552 | AV84: =+BA112 -> 49.03870764 | BF84: =IF(BG21=0,"",BH19*BG36+BH17) -> 24
D86: =IF(D77<0,D77,"") -> -1.469779863 | J86: =IF(J77>0,J77,"") ->  | N86: =IF(N77<0,N77,"") -> -0.3815839225 | T86: =IF(T77>0,T77,"") ->  | X86: =IF(X77<0,X77,"") ->  | AD86: =IF(AD77>0,AD77,"") -> 1.845955476 | AH86: =IF(AH77<0,AH77,"") -> -0.3291268567 | AN86: =IF(AN77>0,AN77,"") ->  | AR86: =IF(AR77<0,AR77,"") -> -2.131445136 | AX86: =IF(AX77>0,AX77,"") ->  | BB86: =IF(BB77<0,BB77,"") ->  | BH86: =IF(BH77>0,BH77,"") -> 3.965839648
D87: =IF(D99<0,D99,"") -> -1.469779863 | J87: =IF(J99>0,J99,"") ->  | N87: =IF(N99<0,N99,"") -> -0.3815839225 | T87: =IF(T99>0,T99,"") ->  | X87: =IF(X99<0,X99,"") ->  | AD87: =IF(AD99>0,AD99,"") -> 1.845955476 | AH87: =IF(AH99<0,AH99,"") -> -0.3291268567 | AN87: =IF(AN99>0,AN99,"") ->  | AR87: =IF(AR99<0,AR99,"") -> -2.131445136 | AX87: =IF(AX99>0,AX99,"") ->  | BB87: =IF(BB99<0,BB99,"") ->  | BH87: =IF(BH99>0,BH99,"") -> 3.965839648
P89: =-M113 -> -44.41376124 | Z89: =-W113 -> -35.54843012 | AJ89: =-AG113 -> -19.84764941 | AT89: =-AQ113 -> -35.82064448 | BD89: =-BA113 -> -45.46129236
F90: =IF(E21=0,"",-C19*D36-D17) -> -24
I91: =+M114 -> 2.339082584 | K91: m | S91: =+W114 -> 3.25 | U91: m | AC91: =+AG114 -> 1.75 | AE91: m | AM91: =+AQ114 -> 2.117935552 | AO91: m | AW91: =+BA114 -> 2.75 | AY91: m
D99: =IF(D10<0,(D10+D10/2)/$BL$25,"") -> -1.469779863 | J99: =IF(D10>0,(D10+D10/2)/$BL$25,"") ->  | N99: =IF(N12<0,(N12+N12/2)/$BL$25,"") -> -0.3815839225 | T99: =IF(N12>0,(N12+N12/2)/$BL$25,"") ->  | X99: =IF(X12<0,(X12+X12/2)/$BL$25,"") ->  | AD99: =IF(X12>0,(X12+X12/2)/$BL$25,"") -> 1.845955476 | AH99: =IF(AH12<0,(AH12+AH12/2)/$BL$25,"") -> -0.3291268567 | AN99: =IF(AH12>0,(AH12+AH12/2)/$BL$25,"") ->  | AR99: =IF(AR12<0,(AR12+AR12/2)/$BL$25,"") -> -2.131445136 | AX99: =IF(AR12>0,(AR12+AR12/2)/$BL$25,"") ->  | BB99: =IF(BB12<0,(BB12+BB12/2)/$BL$25,"") ->  | BH99: =IF(BB12>0,(BB12+BB12/2)/$BL$25,"") -> 3.965839648
B101: kiriş faydalı yükseklik d = h - d' (m) | H101: =O46-N3 -> 0.67 | R101: =Y46-N3 -> 0.67 | AB101: =AI46-N3 -> 0.67 | AL101: =AS46-N3 -> 0.67 | AV101: =BC46-N3 -> 0.67
D105: =IF(OR(C19=0,C19="",D36=0,D36=""),0,IF(OR(D17=0,D17="",C34=0,C34=""),1,2)) -> 2 | L105: sol moment M1= | M105: =+I31 -> 23.04688464 | N105: =IF(M110=0,0,IF(M117="durum 1",1,IF(M117="durum 2",2,IF(M117="durum 3",3)))) -> 1 | V105: sol moment M1= | W105: =+S31 -> 39.96716875 | X105: =IF(W110=0,0,IF(W117="durum 1",1,IF(W117="durum 2",2,IF(W117="durum 3",3)))) -> 2 | AF105: sol moment M1= | AG105: =+AC31 -> 24.90490841 | AH105: =IF(AG110=0,0,IF(AG117="durum 1",1,IF(AG117="durum 2",2,IF(AG117="durum 3",3)))) -> 2 | AP105: sol moment M1= | AQ105: =+AM31 -> 13.78925741 | AR105: =IF(AQ110=0,0,IF(AQ117="durum 1",1,IF(AQ117="durum 2",2,IF(AQ117="durum 3",3)))) -> 1 | AZ105: sol moment M1= | BA105: =+AW31 -> 45.53147958 | BB105: =IF(BA110=0,0,IF(BA117="durum 1",1,IF(BA117="durum 2",2,IF(BA117="durum 3",3)))) -> 2 | BI105: =IF(OR(BG36=0,BG36="",BH19=0,BH19=""),0,IF(OR(BH17=0,BH17="",BI34=0,BI34=""),1,2)) -> 2
L106: sağ moment M2= | M106: =-O31 -> 38.03381021 | V106: sağ moment M2= | W106: =-Y31 -> 34.25774949 | AF106: sağ moment M2= | AG106: =-AI31 -> 12.12168134 | AP106: sağ moment M2= | AQ106: =-AS31 -> 34.73215756 | AZ106: sağ moment M2= | BA106: =-BC31 -> 35.69358755
L107: tekil yük K= | M107: =+K17 -> 12 | V107: tekil yük K= | W107: =+U17 -> 12 | AF107: tekil yük K= | AG107: =+AE17 -> 12 | AP107: tekil yük K= | AQ107: =+AO17 -> 12 | AZ107: tekil yük K= | BA107: =+AY17 -> 12
L108: yayılı yük Pd= | M108: =+L19 -> 15 | V108: yayılı yük Pd= | W108: =+V19 -> 10 | AF108: yayılı yük Pd= | AG108: =+AF19 -> 10 | AP108: yayılı yük Pd= | AQ108: =+AP19 -> 10 | AZ108: yayılı yük Pd= | BA108: =+AZ19 -> 15
L109: L= | M109: =+L36 -> 4.5 | V109: L= | W109: =+V36 -> 6 | AF109: L= | AG109: =+AF36 -> 3.5 | AP109: L= | AQ109: =+AP36 -> 4.5 | AZ109: L= | BA109: =+AZ36 -> 5.5
L110: (K=0 ise a=0 alınacak) a= | M110: =IF(OR(K17=0,K17="",I34=0,I34=""),0,I34) -> 2.75 | V110: (K=0 ise a=0 alınacak) a= | W110: =IF(OR(U17=0,U17="",S34=0,S34=""),0,S34) -> 3.25 | AF110: (K=0 ise a=0 alınacak) a= | AG110: =IF(OR(AE17=0,AE17="",AC34=0,AC34=""),0,AC34) -> 1.75 | AP110: (K=0 ise a=0 alınacak) a= | AQ110: =IF(OR(AO17=0,AO17="",AM34=0,AM34=""),0,AM34) -> 3.25 | AZ110: (K=0 ise a=0 alınacak) a= | BA110: =IF(OR(AY17=0,AY17="",AW34=0,AW34=""),0,AW34) -> 2.75
L111: b= | M111: =M109-M110 -> 1.75 | V111: b= | W111: =W109-W110 -> 2.75 | AF111: b= | AG111: =AG109-AG110 -> 1.75 | AP111: b= | AQ111: =AQ109-AQ110 -> 1.25 | AZ111: b= | BA111: =BA109-BA110 -> 2.75
L112: (sol eksen kesme kuvveti) A= | M112: =IF(M107>0,M108*M109+M107-M113,M108*M109-M113) -> 35.08623876 | V112: (sol eksen kesme kuvveti) A= | W112: =IF(W107>0,W108*W109+W107-W113,W108*W109-W113) -> 36.45156988 | AF112: (sol eksen kesme kuvveti) A= | AG112: =IF(AG107>0,AG108*AG109+AG107-AG113,AG108*AG109-AG113) -> 27.15235059 | AP112: (sol eksen kesme kuvveti) A= | AQ112: =IF(AQ107>0,AQ108*AQ109+AQ107-AQ113,AQ108*AQ109-AQ113) -> 21.17935552 | AZ112: (sol eksen kesme kuvveti) A= | BA112: =IF(BA107>0,BA108*BA109+BA107-BA113,BA108*BA109-BA113) -> 49.03870764
L113: (sağ eksen kesme kuvveti) B= | M113: =IF(M107>0,(M108*M109^2*0.5+M107*M110+M106-M105)/M109,(0.5*M108*M109^2+M106-M105)/M109) -> 44.41376124 | V113: (sağ eksen kesme kuvveti) B= | W113: =IF(W107>0,(W108*W109^2*0.5+W107*W110+W106-W105)/W109,(0.5*W108*W109^2+W106-W105)/W109) -> 35.54843012 | AF113: (sağ eksen kesme kuvveti) B= | AG113: =IF(AG107>0,(AG108*AG109^2*0.5+AG107*AG110+AG106-AG105)/AG109,(0.5*AG108*AG109^2+AG106-AG105)/AG109) -> 19.84764941 | AP113: (sağ eksen kesme kuvveti) B= | AQ113: =IF(AQ107>0,(AQ108*AQ109^2*0.5+AQ107*AQ110+AQ106-AQ105)/AQ109,(0.5*AQ108*AQ109^2+AQ106-AQ105)/AQ109) -> 35.82064448 | AZ113: (sağ eksen kesme kuvveti) B= | BA113: =IF(BA107>0,(BA108*BA109^2*0.5+BA107*BA110+BA106-BA105)/BA109,(0.5*BA108*BA109^2+BA106-BA105)/BA109) -> 45.46129236
L114: (max mom yeri A'dan mesafesi) x= | M114: =IF(M108*M110>M112,(M112*M110)/(M110*M108),IF(AND(M108*M110<M112,M107>M112-M108*M110),M110,IF(AND(M108*M110<M112,M107<M112-M108*M110),((M109-M110)*(M112-M108*M110-M107)/(M112-M108*M110-M107+M113))+M110,"HATALI"))) -> 2.339082584 | V114: (max mom yeri A'dan mesafesi) x= | W114: =IF(W108*W110>W112,(W112*W110)/(W110*W108),IF(AND(W108*W110<W112,W107>W112-W108*W110),W110,IF(AND(W108*W110<W112,W107<W112-W108*W110),((W109-W110)*(W112-W108*W110-W107)/(W112-W108*W110-W107+W113))+W110,"HATALI"))) -> 3.25 | AF114: (max mom yeri A'dan mesafesi) x= | AG114: =IF(AG108*AG110>AG112,(AG112*AG110)/(AG110*AG108),IF(AND(AG108*AG110<AG112,AG107>AG112-AG108*AG110),AG110,IF(AND(AG108*AG110<AG112,AG107<AG112-AG108*AG110),((AG109-AG110)*(AG112-AG108*AG110-AG107)/(AG112-AG108*AG110-AG107+AG113))+AG110,"HATALI"))) -> 1.75 | AP114: (max mom yeri A'dan mesafesi) x= | AQ114: =IF(AQ108*AQ110>AQ112,(AQ112*AQ110)/(AQ110*AQ108),IF(AND(AQ108*AQ110<AQ112,AQ107>AQ112-AQ108*AQ110),AQ110,IF(AND(AQ108*AQ110<AQ112,AQ107<AQ112-AQ108*AQ110),((AQ109-AQ110)*(AQ112-AQ108*AQ110-AQ107)/(AQ112-AQ108*AQ110-AQ107+AQ113))+AQ110,"HATALI"))) -> 2.117935552 | AZ114: (max mom yeri A'dan mesafesi) x= | BA114: =IF(BA108*BA110>BA112,(BA112*BA110)/(BA110*BA108),IF(AND(BA108*BA110<BA112,BA107>BA112-BA108*BA110),BA110,IF(AND(BA108*BA110<BA112,BA107<BA112-BA108*BA110),((BA109-BA110)*(BA112-BA108*BA110-BA107)/(BA112-BA108*BA110-BA107+BA113))+BA110,"HATALI"))) -> 2.75
L115: açıklık momenti Mmax= | M115: =IF(M108*M110>M112,(M112*M114/2)-M105,IF(AND(M108*M110<M112,M107>M112-M108*M110),(((M112+M112-M110*M108)/2)*M110)-M105,IF(AND(M108*M110<M112,M107<M112-M108*M110),(((M109-M110)*(M112-M108*M110-M107)/(M112-M108*M110-M107+M113))*(M112-M110*M108-M107)/2+(M112+M112-M110*M108)*M110/2)-M105,"HATALI"))) -> 17.98792038 | V115: açıklık momenti Mmax= | W115: =IF(W108*W110>W112,(W112*W114/2)-W105,IF(AND(W108*W110<W112,W107>W112-W108*W110),(((W112+W112-W110*W108)/2)*W110)-W105,IF(AND(W108*W110<W112,W107<W112-W108*W110),(((W109-W110)*(W112-W108*W110-W107)/(W112-W108*W110-W107+W113))*(W112-W110*W108-W107)/2+(W112+W112-W110*W108)*W110/2)-W105,"HATALI"))) -> 25.68793335 | AF115: açıklık momenti Mmax= | AG115: =IF(AG108*AG110>AG112,(AG112*AG114/2)-AG105,IF(AND(AG108*AG110<AG112,AG107>AG112-AG108*AG110),(((AG112+AG112-AG110*AG108)/2)*AG110)-AG105,IF(AND(AG108*AG110<AG112,AG107<AG112-AG108*AG110),(((AG109-AG110)*(AG112-AG108*AG110-AG107)/(AG112-AG108*AG110-AG107+AG113))*(AG112-AG110*AG108-AG107)/2+(AG112+AG112-AG110*AG108)*AG110/2)-AG105,"HATALI"))) -> 7.299205123 | AP115: açıklık momenti Mmax= | AQ115: =IF(AQ108*AQ110>AQ112,(AQ112*AQ114/2)-AQ105,IF(AND(AQ108*AQ110<AQ112,AQ107>AQ112-AQ108*AQ110),(((AQ112+AQ112-AQ110*AQ108)/2)*AQ110)-AQ105,IF(AND(AQ108*AQ110<AQ112,AQ107<AQ112-AQ108*AQ110),(((AQ109-AQ110)*(AQ112-AQ108*AQ110-AQ107)/(AQ112-AQ108*AQ110-AQ107+AQ113))*(AQ112-AQ110*AQ108-AQ107)/2+(AQ112+AQ112-AQ110*AQ108)*AQ110/2)-AQ105,"HATALI"))) -> 8.638997605 | AZ115: açıklık momenti Mmax= | BA115: =IF(BA108*BA110>BA112,(BA112*BA114/2)-BA105,IF(AND(BA108*BA110<BA112,BA107>BA112-BA108*BA110),(((BA112+BA112-BA110*BA108)/2)*BA110)-BA105,IF(AND(BA108*BA110<BA112,BA107<BA112-BA108*BA110),(((BA109-BA110)*(BA112-BA108*BA110-BA107)/(BA112-BA108*BA110-BA107+BA113))*(BA112-BA110*BA108-BA107)/2+(BA112+BA112-BA110*BA108)*BA110/2)-BA105,"HATALI"))) -> 32.60621643
L116: x'den bağımsız hesap Mmax= | M116: =IF(M108*M110>M112,(M112*(IF(M108*M110>M112,(M112*M110)/(M110*M108),IF(AND(M108*M110<M112,M107>M112-M108*M110),M110,IF(AND(M108*M110<M112,M107<M112-M108*M110),((M109-M110)*(M112-M108*M110-M107)/(M112-M108*M110-M107+M113))+M110,"HATALI"))))/2)-M105,IF(AND(M108*M110<M112,M107>M112-M108*M110),(((M112+M112-M110*M108)/2)*M110)-M105,IF(AND(M108*M110<M112,M107<M112-M108*M110),(((M109-M110)*(M112-M108*M110-M107)/(M112-M108*M110-M107+M113))*(M112-M110*M108-M107)/2+(M112+M112-M110*M108)*M110/2)-M105,"HATALI"))) -> 17.98792038 | V116: x'den bağımsız hesap Mmax= | W116: =IF(W108*W110>W112,(W112*(IF(W108*W110>W112,(W112*W110)/(W110*W108),IF(AND(W108*W110<W112,W107>W112-W108*W110),W110,IF(AND(W108*W110<W112,W107<W112-W108*W110),((W109-W110)*(W112-W108*W110-W107)/(W112-W108*W110-W107+W113))+W110,"HATALI"))))/2)-W105,IF(AND(W108*W110<W112,W107>W112-W108*W110),(((W112+W112-W110*W108)/2)*W110)-W105,IF(AND(W108*W110<W112,W107<W112-W108*W110),(((W109-W110)*(W112-W108*W110-W107)/(W112-W108*W110-W107+W113))*(W112-W110*W108-W107)/2+(W112+W112-W110*W108)*W110/2)-W105,"HATALI"))) -> 25.68793335 | AF116: x'den bağımsız hesap Mmax= | AG116: =IF(AG108*AG110>AG112,(AG112*(IF(AG108*AG110>AG112,(AG112*AG110)/(AG110*AG108),IF(AND(AG108*AG110<AG112,AG107>AG112-AG108*AG110),AG110,IF(AND(AG108*AG110<AG112,AG107<AG112-AG108*AG110),((AG109-AG110)*(AG112-AG108*AG110-AG107)/(AG112-AG108*AG110-AG107+AG113))+AG110,"HATALI"))))/2)-AG105,IF(AND(AG108*AG110<AG112,AG107>AG112-AG108*AG110),(((AG112+AG112-AG110*AG108)/2)*AG110)-AG105,IF(AND(AG108*AG110<AG112,AG107<AG112-AG108*AG110),(((AG109-AG110)*(AG112-AG108*AG110-AG107)/(AG112-AG108*AG110-AG107+AG113))*(AG112-AG110*AG108-AG107)/2+(AG112+AG112-AG110*AG108)*AG110/2)-AG105,"HATALI"))) -> 7.299205123 | AP116: x'den bağımsız hesap Mmax= | AQ116: =IF(AQ108*AQ110>AQ112,(AQ112*(IF(AQ108*AQ110>AQ112,(AQ112*AQ110)/(AQ110*AQ108),IF(AND(AQ108*AQ110<AQ112,AQ107>AQ112-AQ108*AQ110),AQ110,IF(AND(AQ108*AQ110<AQ112,AQ107<AQ112-AQ108*AQ110),((AQ109-AQ110)*(AQ112-AQ108*AQ110-AQ107)/(AQ112-AQ108*AQ110-AQ107+AQ113))+AQ110,"HATALI"))))/2)-AQ105,IF(AND(AQ108*AQ110<AQ112,AQ107>AQ112-AQ108*AQ110),(((AQ112+AQ112-AQ110*AQ108)/2)*AQ110)-AQ105,IF(AND(AQ108*AQ110<AQ112,AQ107<AQ112-AQ108*AQ110),(((AQ109-AQ110)*(AQ112-AQ108*AQ110-AQ107)/(AQ112-AQ108*AQ110-AQ107+AQ113))*(AQ112-AQ110*AQ108-AQ107)/2+(AQ112+AQ112-AQ110*AQ108)*AQ110/2)-AQ105,"HATALI"))) -> 8.638997605 | AZ116: x'den bağımsız hesap Mmax= | BA116: =IF(BA108*BA110>BA112,(BA112*(IF(BA108*BA110>BA112,(BA112*BA110)/(BA110*BA108),IF(AND(BA108*BA110<BA112,BA107>BA112-BA108*BA110),BA110,IF(AND(BA108*BA110<BA112,BA107<BA112-BA108*BA110),((BA109-BA110)*(BA112-BA108*BA110-BA107)/(BA112-BA108*BA110-BA107+BA113))+BA110,"HATALI"))))/2)-BA105,IF(AND(BA108*BA110<BA112,BA107>BA112-BA108*BA110),(((BA112+BA112-BA110*BA108)/2)*BA110)-BA105,IF(AND(BA108*BA110<BA112,BA107<BA112-BA108*BA110),(((BA109-BA110)*(BA112-BA108*BA110-BA107)/(BA112-BA108*BA110-BA107+BA113))*(BA112-BA110*BA108-BA107)/2+(BA112+BA112-BA110*BA108)*BA110/2)-BA105,"HATALI"))) -> 32.60621643
L117: durum | M117: =IF(M108*M110>M112,"durum 1",IF(AND(M108*M110<M112,M107>M112-M108*M110),"durum 2",IF(AND(M108*M110<M112,M107<M112-M108*M110),"durum 3","HATALI"))) -> durum 1 | V117: durum | W117: =IF(W108*W110>W112,"durum 1",IF(AND(W108*W110<W112,W107>W112-W108*W110),"durum 2",IF(AND(W108*W110<W112,W107<W112-W108*W110),"durum 3","HATALI"))) -> durum 2 | AF117: durum | AG117: =IF(AG108*AG110>AG112,"durum 1",IF(AND(AG108*AG110<AG112,AG107>AG112-AG108*AG110),"durum 2",IF(AND(AG108*AG110<AG112,AG107<AG112-AG108*AG110),"durum 3","HATALI"))) -> durum 2 | AP117: durum | AQ117: =IF(AQ108*AQ110>AQ112,"durum 1",IF(AND(AQ108*AQ110<AQ112,AQ107>AQ112-AQ108*AQ110),"durum 2",IF(AND(AQ108*AQ110<AQ112,AQ107<AQ112-AQ108*AQ110),"durum 3","HATALI"))) -> durum 1 | AZ117: durum | BA117: =IF(BA108*BA110>BA112,"durum 1",IF(AND(BA108*BA110<BA112,BA107>BA112-BA108*BA110),"durum 2",IF(AND(BA108*BA110<BA112,BA107<BA112-BA108*BA110),"durum 3","HATALI"))) -> durum 2
L118: sol mesnet (kolon genişliği) s1= | M118: =+G38 -> 0.5 | V118: sol mesnet (kolon genişliği) s1= | W118: =+Q38 -> 0.5 | AF118: sol mesnet (kolon genişliği) s1= | AG118: =+AA38 -> 0.5 | AP118: sol mesnet (kolon genişliği) s1= | AQ118: =+AK38 -> 0.5 | AZ118: sol mesnet (kolon genişliği) s1= | BA118: =+AU38 -> 0.5
L119: sağ mesnet (kolon genişliği) s2= | M119: =+Q38 -> 0.5 | V119: sağ mesnet (kolon genişliği) s2= | W119: =+AA38 -> 0.5 | AF119: sağ mesnet (kolon genişliği) s2= | AG119: =+AK38 -> 0.5 | AP119: sağ mesnet (kolon genişliği) s2= | AQ119: =+AU38 -> 0.5 | AZ119: sağ mesnet (kolon genişliği) s2= | BA119: =+BE38 -> 0.5
L120: kiriş d yüksekliği= | M120: =+H101 -> 0.67 | V120: kiriş d yüksekliği= | W120: =+R101 -> 0.67 | AF120: kiriş d yüksekliği= | AG120: =+AB101 -> 0.67 | AP120: kiriş d yüksekliği= | AQ120: =+AL101 -> 0.67 | AZ120: kiriş d yüksekliği= | BA120: =+AV101 -> 0.67
L121: kiriş h yüksekliği= | M121: =+O46 -> 0.7 | V121: kiriş h yüksekliği= | W121: =+Y46 -> 0.7 | AF121: kiriş h yüksekliği= | AG121: =+AI46 -> 0.7 | AP121: kiriş h yüksekliği= | AQ121: =+AS46 -> 0.7 | AZ121: kiriş h yüksekliği= | BA121: =+BC46 -> 0.7
L122: sol kolon yüzünden d mesafede kesme kuvveti | V122: sol kolon yüzünden d mesafede kesme kuvveti | AF122: sol kolon yüzünden d mesafede kesme kuvveti | AP122: sol kolon yüzünden d mesafede kesme kuvveti | AZ122: sol kolon yüzünden d mesafede kesme kuvveti
L123: durum 1 için | M123: =IF(M114>(M120+M118/2),M112-M108*(M118/2+M120),IF(AND(M114<(M120+M118/2),(M120+M118/2)<M110),M108*(M120+M118/2)-M112,IF((M120+M118/2)=M110,M113-M108*M111,M108*M110-M112+M107+(M120+M118/2-M110)*M108))) -> 21.28623876 | V123: durum 1 için | W123: =IF(W114>(W120+W118/2),W112-W108*(W118/2+W120),IF(AND(W114<(W120+W118/2),(W120+W118/2)<W110),W108*(W120+W118/2)-W112,IF((W120+W118/2)=W110,W113-W108*W111,W108*W110-W112+W107+(W120+W118/2-W110)*W108))) -> 27.25156988 | AF123: durum 1 için | AG123: =IF(AG114>(AG120+AG118/2),AG112-AG108*(AG118/2+AG120),IF(AND(AG114<(AG120+AG118/2),(AG120+AG118/2)<AG110),AG108*(AG120+AG118/2)-AG112,IF((AG120+AG118/2)=AG110,AG113-AG108*AG111,AG108*AG110-AG112+AG107+(AG120+AG118/2-AG110)*AG108))) -> 17.95235059 | AP123: durum 1 için | AQ123: =IF(AQ114>(AQ120+AQ118/2),AQ112-AQ108*(AQ118/2+AQ120),IF(AND(AQ114<(AQ120+AQ118/2),(AQ120+AQ118/2)<AQ110),AQ108*(AQ120+AQ118/2)-AQ112,IF((AQ120+AQ118/2)=AQ110,AQ113-AQ108*AQ111,AQ108*AQ110-AQ112+AQ107+(AQ120+AQ118/2-AQ110)*AQ108))) -> 11.97935552 | AZ123: durum 1 için | BA123: =IF(BA114>(BA120+BA118/2),BA112-BA108*(BA118/2+BA120),IF(AND(BA114<(BA120+BA118/2),(BA120+BA118/2)<BA110),BA108*(BA120+BA118/2)-BA112,IF((BA120+BA118/2)=BA110,BA113-BA108*BA111,BA108*BA110-BA112+BA107+(BA120+BA118/2-BA110)*BA108))) -> 35.23870764
L124: durum 2 için | M124: =IF(M120+M118/2<M110,M112-(M120+M118/2)*M108,IF((M118/2+M120)=M110,M112-M108*M110,IF(M120+M118/2>M110,M107-M112+M108*M110+(M120+M118/2-M110)*M108,0))) -> 21.28623876 | V124: durum 2 için | W124: =IF(W120+W118/2<W110,W112-(W120+W118/2)*W108,IF((W118/2+W120)=W110,W112-W108*W110,IF(W120+W118/2>W110,W107-W112+W108*W110+(W120+W118/2-W110)*W108,0))) -> 27.25156988 | AF124: durum 2 için | AG124: =IF(AG120+AG118/2<AG110,AG112-(AG120+AG118/2)*AG108,IF((AG118/2+AG120)=AG110,AG112-AG108*AG110,IF(AG120+AG118/2>AG110,AG107-AG112+AG108*AG110+(AG120+AG118/2-AG110)*AG108,0))) -> 17.95235059 | AP124: durum 2 için | AQ124: =IF(AQ120+AQ118/2<AQ110,AQ112-(AQ120+AQ118/2)*AQ108,IF((AQ118/2+AQ120)=AQ110,AQ112-AQ108*AQ110,IF(AQ120+AQ118/2>AQ110,AQ107-AQ112+AQ108*AQ110+(AQ120+AQ118/2-AQ110)*AQ108,0))) -> 11.97935552 | AZ124: durum 2 için | BA124: =IF(BA120+BA118/2<BA110,BA112-(BA120+BA118/2)*BA108,IF((BA118/2+BA120)=BA110,BA112-BA108*BA110,IF(BA120+BA118/2>BA110,BA107-BA112+BA108*BA110+(BA120+BA118/2-BA110)*BA108,0))) -> 35.23870764
L125: durum 3 için | M125: =IF((M120+M118/2)<M110,M112-(M120+M118/2)*M108,IF(AND(M110<(M120+M118/2),(M120+M118/2)<M114),M112-M108*M110-M107-(M120+M118/2-M110)*M108,IF((M120+M118/2)>M114,(M120+M118/2-M114)*M108,IF((M120+M118/2)=M110,M112-M108*M110,0)))) -> 21.28623876 | V125: durum 3 için | W125: =IF((W120+W118/2)<W110,W112-(W120+W118/2)*W108,IF(AND(W110<(W120+W118/2),(W120+W118/2)<W114),W112-W108*W110-W107-(W120+W118/2-W110)*W108,IF((W120+W118/2)>W114,(W120+W118/2-W114)*W108,IF((W120+W118/2)=W110,W112-W108*W110,0)))) -> 27.25156988 | AF125: durum 3 için | AG125: =IF((AG120+AG118/2)<AG110,AG112-(AG120+AG118/2)*AG108,IF(AND(AG110<(AG120+AG118/2),(AG120+AG118/2)<AG114),AG112-AG108*AG110-AG107-(AG120+AG118/2-AG110)*AG108,IF((AG120+AG118/2)>AG114,(AG120+AG118/2-AG114)*AG108,IF((AG120+AG118/2)=AG110,AG112-AG108*AG110,0)))) -> 17.95235059 | AP125: durum 3 için | AQ125: =IF((AQ120+AQ118/2)<AQ110,AQ112-(AQ120+AQ118/2)*AQ108,IF(AND(AQ110<(AQ120+AQ118/2),(AQ120+AQ118/2)<AQ114),AQ112-AQ108*AQ110-AQ107-(AQ120+AQ118/2-AQ110)*AQ108,IF((AQ120+AQ118/2)>AQ114,(AQ120+AQ118/2-AQ114)*AQ108,IF((AQ120+AQ118/2)=AQ110,AQ112-AQ108*AQ110,0)))) -> 11.97935552 | AZ125: durum 3 için | BA125: =IF((BA120+BA118/2)<BA110,BA112-(BA120+BA118/2)*BA108,IF(AND(BA110<(BA120+BA118/2),(BA120+BA118/2)<BA114),BA112-BA108*BA110-BA107-(BA120+BA118/2-BA110)*BA108,IF((BA120+BA118/2)>BA114,(BA120+BA118/2-BA114)*BA108,IF((BA120+BA118/2)=BA110,BA112-BA108*BA110,0)))) -> 35.23870764
L126: sağ kolon yüzünden d mesafede kesme kuvveti | V126: sağ kolon yüzünden d mesafede kesme kuvveti | AF126: sağ kolon yüzünden d mesafede kesme kuvveti | AP126: sağ kolon yüzünden d mesafede kesme kuvveti | AZ126: sağ kolon yüzünden d mesafede kesme kuvveti
L127: durum 1 için | M127: =IF((M120+M119/2)<M111,M113-(M120+M119/2)*M108,IF(AND((M120+M119/2)>M111,(M120+M119/2)<(M109-M114)),M113-M111*M108-M107-(M120+M119/2-M111)*M108,IF((M120+M119/2)=(M109-M110),M107+M108*M110-M112,((M120+M119/2)-(M109-M114))*M108))) -> 30.61376124 | V127: durum 1 için | W127: =IF((W120+W119/2)<W111,W113-(W120+W119/2)*W108,IF(AND((W120+W119/2)>W111,(W120+W119/2)<(W109-W114)),W113-W111*W108-W107-(W120+W119/2-W111)*W108,IF((W120+W119/2)=(W109-W110),W107+W108*W110-W112,((W120+W119/2)-(W109-W114))*W108))) -> 26.34843012 | AF127: durum 1 için | AG127: =IF((AG120+AG119/2)<AG111,AG113-(AG120+AG119/2)*AG108,IF(AND((AG120+AG119/2)>AG111,(AG120+AG119/2)<(AG109-AG114)),AG113-AG111*AG108-AG107-(AG120+AG119/2-AG111)*AG108,IF((AG120+AG119/2)=(AG109-AG110),AG107+AG108*AG110-AG112,((AG120+AG119/2)-(AG109-AG114))*AG108))) -> 10.64764941 | AP127: durum 1 için | AQ127: =IF((AQ120+AQ119/2)<AQ111,AQ113-(AQ120+AQ119/2)*AQ108,IF(AND((AQ120+AQ119/2)>AQ111,(AQ120+AQ119/2)<(AQ109-AQ114)),AQ113-AQ111*AQ108-AQ107-(AQ120+AQ119/2-AQ111)*AQ108,IF((AQ120+AQ119/2)=(AQ109-AQ110),AQ107+AQ108*AQ110-AQ112,((AQ120+AQ119/2)-(AQ109-AQ114))*AQ108))) -> 26.62064448 | AZ127: durum 1 için | BA127: =IF((BA120+BA119/2)<BA111,BA113-(BA120+BA119/2)*BA108,IF(AND((BA120+BA119/2)>BA111,(BA120+BA119/2)<(BA109-BA114)),BA113-BA111*BA108-BA107-(BA120+BA119/2-BA111)*BA108,IF((BA120+BA119/2)=(BA109-BA110),BA107+BA108*BA110-BA112,((BA120+BA119/2)-(BA109-BA114))*BA108))) -> 31.66129236
L128: durum 2 için | M128: =IF((M120+M119/2)<M111,M113-(M120+M119/2)*M108,IF((M120+M119/2)=M111,M107-M112+M108*M110,IF((M120+M119/2)>M111,M112-(M109-(M120+M119/2))*M108,0))) -> 30.61376124 | V128: durum 2 için | W128: =IF((W120+W119/2)<W111,W113-(W120+W119/2)*W108,IF((W120+W119/2)=W111,W107-W112+W108*W110,IF((W120+W119/2)>W111,W112-(W109-(W120+W119/2))*W108,0))) -> 26.34843012 | AF128: durum 2 için | AG128: =IF((AG120+AG119/2)<AG111,AG113-(AG120+AG119/2)*AG108,IF((AG120+AG119/2)=AG111,AG107-AG112+AG108*AG110,IF((AG120+AG119/2)>AG111,AG112-(AG109-(AG120+AG119/2))*AG108,0))) -> 10.64764941 | AP128: durum 2 için | AQ128: =IF((AQ120+AQ119/2)<AQ111,AQ113-(AQ120+AQ119/2)*AQ108,IF((AQ120+AQ119/2)=AQ111,AQ107-AQ112+AQ108*AQ110,IF((AQ120+AQ119/2)>AQ111,AQ112-(AQ109-(AQ120+AQ119/2))*AQ108,0))) -> 26.62064448 | AZ128: durum 2 için | BA128: =IF((BA120+BA119/2)<BA111,BA113-(BA120+BA119/2)*BA108,IF((BA120+BA119/2)=BA111,BA107-BA112+BA108*BA110,IF((BA120+BA119/2)>BA111,BA112-(BA109-(BA120+BA119/2))*BA108,0))) -> 31.66129236
L129: durum 3 için | M129: =IF((M109-M114)>(M120+M119/2),M113-(M120+M119/2)*M108,IF(AND((M120+M119/2)>(M109-M114),(M109-M110)>(M120+M119/2)),((M120+M119/2)-(M109-M114))*M108,IF(M120+M119/2>(M109-M110),M112-(M109-(M120+M119/2))*M108,IF((M120+M119/2)=(M109-M110),M112-M108*M110-M107,0)))) -> 30.61376124 | V129: durum 3 için | W129: =IF((W109-W114)>(W120+W119/2),W113-(W120+W119/2)*W108,IF(AND((W120+W119/2)>(W109-W114),(W109-W110)>(W120+W119/2)),((W120+W119/2)-(W109-W114))*W108,IF(W120+W119/2>(W109-W110),W112-(W109-(W120+W119/2))*W108,IF((W120+W119/2)=(W109-W110),W112-W108*W110-W107,0)))) -> 26.34843012 | AF129: durum 3 için | AG129: =IF((AG109-AG114)>(AG120+AG119/2),AG113-(AG120+AG119/2)*AG108,IF(AND((AG120+AG119/2)>(AG109-AG114),(AG109-AG110)>(AG120+AG119/2)),((AG120+AG119/2)-(AG109-AG114))*AG108,IF(AG120+AG119/2>(AG109-AG110),AG112-(AG109-(AG120+AG119/2))*AG108,IF((AG120+AG119/2)=(AG109-AG110),AG112-AG108*AG110-AG107,0)))) -> 10.64764941 | AP129: durum 3 için | AQ129: =IF((AQ109-AQ114)>(AQ120+AQ119/2),AQ113-(AQ120+AQ119/2)*AQ108,IF(AND((AQ120+AQ119/2)>(AQ109-AQ114),(AQ109-AQ110)>(AQ120+AQ119/2)),((AQ120+AQ119/2)-(AQ109-AQ114))*AQ108,IF(AQ120+AQ119/2>(AQ109-AQ110),AQ112-(AQ109-(AQ120+AQ119/2))*AQ108,IF((AQ120+AQ119/2)=(AQ109-AQ110),AQ112-AQ108*AQ110-AQ107,0)))) -> 26.62064448 | AZ129: durum 3 için | BA129: =IF((BA109-BA114)>(BA120+BA119/2),BA113-(BA120+BA119/2)*BA108,IF(AND((BA120+BA119/2)>(BA109-BA114),(BA109-BA110)>(BA120+BA119/2)),((BA120+BA119/2)-(BA109-BA114))*BA108,IF(BA120+BA119/2>(BA109-BA110),BA112-(BA109-(BA120+BA119/2))*BA108,IF((BA120+BA119/2)=(BA109-BA110),BA112-BA108*BA110-BA107,0)))) -> 31.66129236
L130: sol kolon yüzünden 2h mesafede kesme kuvveti | V130: sol kolon yüzünden 2h mesafede kesme kuvveti | AF130: sol kolon yüzünden 2h mesafede kesme kuvveti | AP130: sol kolon yüzünden 2h mesafede kesme kuvveti | AZ130: sol kolon yüzünden 2h mesafede kesme kuvveti
L131: durum 1 için | M131: =IF(M114>(M121*2+M118/2),M112-M108*(M118/2+M121*2),IF(AND(M114<(M121*2+M118/2),(M121*2+M118/2)<M110),M108*(M121*2+M118/2)-M112,IF((M121*2+M118/2)=M110,M113-M108*M111,M108*M110-M112+M107+(M121*2+M118/2-M110)*M108))) -> 10.33623876 | V131: durum 1 için | W131: =IF(W114>(W121*2+W118/2),W112-W108*(W118/2+W121*2),IF(AND(W114<(W121*2+W118/2),(W121*2+W118/2)<W110),W108*(W121*2+W118/2)-W112,IF((W121*2+W118/2)=W110,W113-W108*W111,W108*W110-W112+W107+(W121*2+W118/2-W110)*W108))) -> 19.95156988 | AF131: durum 1 için | AG131: =IF(AG114>(AG121*2+AG118/2),AG112-AG108*(AG118/2+AG121*2),IF(AND(AG114<(AG121*2+AG118/2),(AG121*2+AG118/2)<AG110),AG108*(AG121*2+AG118/2)-AG112,IF((AG121*2+AG118/2)=AG110,AG113-AG108*AG111,AG108*AG110-AG112+AG107+(AG121*2+AG118/2-AG110)*AG108))) -> 10.65235059 | AP131: durum 1 için | AQ131: =IF(AQ114>(AQ121*2+AQ118/2),AQ112-AQ108*(AQ118/2+AQ121*2),IF(AND(AQ114<(AQ121*2+AQ118/2),(AQ121*2+AQ118/2)<AQ110),AQ108*(AQ121*2+AQ118/2)-AQ112,IF((AQ121*2+AQ118/2)=AQ110,AQ113-AQ108*AQ111,AQ108*AQ110-AQ112+AQ107+(AQ121*2+AQ118/2-AQ110)*AQ108))) -> 4.679355523 | AZ131: durum 1 için | BA131: =IF(BA114>(BA121*2+BA118/2),BA112-BA108*(BA118/2+BA121*2),IF(AND(BA114<(BA121*2+BA118/2),(BA121*2+BA118/2)<BA110),BA108*(BA121*2+BA118/2)-BA112,IF((BA121*2+BA118/2)=BA110,BA113-BA108*BA111,BA108*BA110-BA112+BA107+(BA121*2+BA118/2-BA110)*BA108))) -> 24.28870764
L132: durum 2 için | M132: =IF(M121*2+M118/2<M110,M112-(M121*2+M118/2)*M108,IF((M118/2+M121*2)=M110,M112-M108*M110,IF(M121*2+M118/2>M110,M107-M112+M108*M110+(M121*2+M118/2-M110)*M108,0))) -> 10.33623876 | V132: durum 2 için | W132: =IF(W121*2+W118/2<W110,W112-(W121*2+W118/2)*W108,IF((W118/2+W121*2)=W110,W112-W108*W110,IF(W121*2+W118/2>W110,W107-W112+W108*W110+(W121*2+W118/2-W110)*W108,0))) -> 19.95156988 | AF132: durum 2 için | AG132: =IF(AG121*2+AG118/2<AG110,AG112-(AG121*2+AG118/2)*AG108,IF((AG118/2+AG121*2)=AG110,AG112-AG108*AG110,IF(AG121*2+AG118/2>AG110,AG107-AG112+AG108*AG110+(AG121*2+AG118/2-AG110)*AG108,0))) -> 10.65235059 | AP132: durum 2 için | AQ132: =IF(AQ121*2+AQ118/2<AQ110,AQ112-(AQ121*2+AQ118/2)*AQ108,IF((AQ118/2+AQ121*2)=AQ110,AQ112-AQ108*AQ110,IF(AQ121*2+AQ118/2>AQ110,AQ107-AQ112+AQ108*AQ110+(AQ121*2+AQ118/2-AQ110)*AQ108,0))) -> 4.679355523 | AZ132: durum 2 için | BA132: =IF(BA121*2+BA118/2<BA110,BA112-(BA121*2+BA118/2)*BA108,IF((BA118/2+BA121*2)=BA110,BA112-BA108*BA110,IF(BA121*2+BA118/2>BA110,BA107-BA112+BA108*BA110+(BA121*2+BA118/2-BA110)*BA108,0))) -> 24.28870764
L133: durum 3 için | M133: =IF((M121*2+M118/2)<M110,M112-(M121*2+M118/2)*M108,IF(AND(M110<(M121*2+M118/2),(M121*2+M118/2)<M114),M112-M108*M110-M107-(M121*2+M118/2-M110)*M108,IF((M121*2+M118/2)>M114,(M121*2+M118/2-M114)*M108,IF((M121*2+M118/2)=M110,M112-M108*M110,0)))) -> 10.33623876 | V133: durum 3 için | W133: =IF((W121*2+W118/2)<W110,W112-(W121*2+W118/2)*W108,IF(AND(W110<(W121*2+W118/2),(W121*2+W118/2)<W114),W112-W108*W110-W107-(W121*2+W118/2-W110)*W108,IF((W121*2+W118/2)>W114,(W121*2+W118/2-W114)*W108,IF((W121*2+W118/2)=W110,W112-W108*W110,0)))) -> 19.95156988 | AF133: durum 3 için | AG133: =IF((AG121*2+AG118/2)<AG110,AG112-(AG121*2+AG118/2)*AG108,IF(AND(AG110<(AG121*2+AG118/2),(AG121*2+AG118/2)<AG114),AG112-AG108*AG110-AG107-(AG121*2+AG118/2-AG110)*AG108,IF((AG121*2+AG118/2)>AG114,(AG121*2+AG118/2-AG114)*AG108,IF((AG121*2+AG118/2)=AG110,AG112-AG108*AG110,0)))) -> 10.65235059 | AP133: durum 3 için | AQ133: =IF((AQ121*2+AQ118/2)<AQ110,AQ112-(AQ121*2+AQ118/2)*AQ108,IF(AND(AQ110<(AQ121*2+AQ118/2),(AQ121*2+AQ118/2)<AQ114),AQ112-AQ108*AQ110-AQ107-(AQ121*2+AQ118/2-AQ110)*AQ108,IF((AQ121*2+AQ118/2)>AQ114,(AQ121*2+AQ118/2-AQ114)*AQ108,IF((AQ121*2+AQ118/2)=AQ110,AQ112-AQ108*AQ110,0)))) -> 4.679355523 | AZ133: durum 3 için | BA133: =IF((BA121*2+BA118/2)<BA110,BA112-(BA121*2+BA118/2)*BA108,IF(AND(BA110<(BA121*2+BA118/2),(BA121*2+BA118/2)<BA114),BA112-BA108*BA110-BA107-(BA121*2+BA118/2-BA110)*BA108,IF((BA121*2+BA118/2)>BA114,(BA121*2+BA118/2-BA114)*BA108,IF((BA121*2+BA118/2)=BA110,BA112-BA108*BA110,0)))) -> 24.28870764
L134: sağ kolon yüzünden 2h mesafede kesme kuvveti | V134: sağ kolon yüzünden 2h mesafede kesme kuvveti | AF134: sağ kolon yüzünden 2h mesafede kesme kuvveti | AP134: sağ kolon yüzünden 2h mesafede kesme kuvveti | AZ134: sağ kolon yüzünden 2h mesafede kesme kuvveti
L135: durum 1 için | M135: =IF((M121*2+M119/2)<M111,M113-(M121*2+M119/2)*M108,IF(AND((M121*2+M119/2)>M111,(M121*2+M119/2)<(M109-M114)),M113-M111*M108-M107-(M121*2+M119/2-M111)*M108,IF((M121*2+M119/2)=(M109-M110),M107+M108*M110-M112,((M121*2+M119/2)-(M109-M114))*M108))) -> 19.66376124 | V135: durum 1 için | W135: =IF((W121*2+W119/2)<W111,W113-(W121*2+W119/2)*W108,IF(AND((W121*2+W119/2)>W111,(W121*2+W119/2)<(W109-W114)),W113-W111*W108-W107-(W121*2+W119/2-W111)*W108,IF((W121*2+W119/2)=(W109-W110),W107+W108*W110-W112,((W121*2+W119/2)-(W109-W114))*W108))) -> 19.04843012 | AF135: durum 1 için | AG135: =IF((AG121*2+AG119/2)<AG111,AG113-(AG121*2+AG119/2)*AG108,IF(AND((AG121*2+AG119/2)>AG111,(AG121*2+AG119/2)<(AG109-AG114)),AG113-AG111*AG108-AG107-(AG121*2+AG119/2-AG111)*AG108,IF((AG121*2+AG119/2)=(AG109-AG110),AG107+AG108*AG110-AG112,((AG121*2+AG119/2)-(AG109-AG114))*AG108))) -> 3.347649407 | AP135: durum 1 için | AQ135: =IF((AQ121*2+AQ119/2)<AQ111,AQ113-(AQ121*2+AQ119/2)*AQ108,IF(AND((AQ121*2+AQ119/2)>AQ111,(AQ121*2+AQ119/2)<(AQ109-AQ114)),AQ113-AQ111*AQ108-AQ107-(AQ121*2+AQ119/2-AQ111)*AQ108,IF((AQ121*2+AQ119/2)=(AQ109-AQ110),AQ107+AQ108*AQ110-AQ112,((AQ121*2+AQ119/2)-(AQ109-AQ114))*AQ108))) -> 7.320644477 | AZ135: durum 1 için | BA135: =IF((BA121*2+BA119/2)<BA111,BA113-(BA121*2+BA119/2)*BA108,IF(AND((BA121*2+BA119/2)>BA111,(BA121*2+BA119/2)<(BA109-BA114)),BA113-BA111*BA108-BA107-(BA121*2+BA119/2-BA111)*BA108,IF((BA121*2+BA119/2)=(BA109-BA110),BA107+BA108*BA110-BA112,((BA121*2+BA119/2)-(BA109-BA114))*BA108))) -> 20.71129236
L136: durum 2 için | M136: =IF((M121*2+M119/2)<M111,M113-(M121*2+M119/2)*M108,IF((M121*2+M119/2)=M111,M107-M112+M108*M110,IF((M121*2+M119/2)>M111,M112-(M109-(M121*2+M119/2))*M108,0))) -> 19.66376124 | V136: durum 2 için | W136: =IF((W121*2+W119/2)<W111,W113-(W121*2+W119/2)*W108,IF((W121*2+W119/2)=W111,W107-W112+W108*W110,IF((W121*2+W119/2)>W111,W112-(W109-(W121*2+W119/2))*W108,0))) -> 19.04843012 | AF136: durum 2 için | AG136: =IF((AG121*2+AG119/2)<AG111,AG113-(AG121*2+AG119/2)*AG108,IF((AG121*2+AG119/2)=AG111,AG107-AG112+AG108*AG110,IF((AG121*2+AG119/2)>AG111,AG112-(AG109-(AG121*2+AG119/2))*AG108,0))) -> 3.347649407 | AP136: durum 2 için | AQ136: =IF((AQ121*2+AQ119/2)<AQ111,AQ113-(AQ121*2+AQ119/2)*AQ108,IF((AQ121*2+AQ119/2)=AQ111,AQ107-AQ112+AQ108*AQ110,IF((AQ121*2+AQ119/2)>AQ111,AQ112-(AQ109-(AQ121*2+AQ119/2))*AQ108,0))) -> -7.320644477 | AZ136: durum 2 için | BA136: =IF((BA121*2+BA119/2)<BA111,BA113-(BA121*2+BA119/2)*BA108,IF((BA121*2+BA119/2)=BA111,BA107-BA112+BA108*BA110,IF((BA121*2+BA119/2)>BA111,BA112-(BA109-(BA121*2+BA119/2))*BA108,0))) -> 20.71129236
L137: durum 3 için | M137: =IF((M109-M114)>(M121*2+M119/2),M113-(M121*2+M119/2)*M108,IF(AND((M121*2+M119/2)>(M109-M114),(M109-M110)>(M121*2+M119/2)),((M121*2+M119/2)-(M109-M114))*M108,IF(M121*2+M119/2>(M109-M110),M112-(M109-(M121*2+M119/2))*M108,IF((M121*2+M119/2)=(M109-M110),M112-M108*M110,0)))) -> 19.66376124 | V137: durum 3 için | W137: =IF((W109-W114)>(W121*2+W119/2),W113-(W121*2+W119/2)*W108,IF(AND((W121*2+W119/2)>(W109-W114),(W109-W110)>(W121*2+W119/2)),((W121*2+W119/2)-(W109-W114))*W108,IF(W121*2+W119/2>(W109-W110),W112-(W109-(W121*2+W119/2))*W108,IF((W121*2+W119/2)=(W109-W110),W112-W108*W110,0)))) -> 19.04843012 | AF137: durum 3 için | AG137: =IF((AG109-AG114)>(AG121*2+AG119/2),AG113-(AG121*2+AG119/2)*AG108,IF(AND((AG121*2+AG119/2)>(AG109-AG114),(AG109-AG110)>(AG121*2+AG119/2)),((AG121*2+AG119/2)-(AG109-AG114))*AG108,IF(AG121*2+AG119/2>(AG109-AG110),AG112-(AG109-(AG121*2+AG119/2))*AG108,IF((AG121*2+AG119/2)=(AG109-AG110),AG112-AG108*AG110,0)))) -> 3.347649407 | AP137: durum 3 için | AQ137: =IF((AQ109-AQ114)>(AQ121*2+AQ119/2),AQ113-(AQ121*2+AQ119/2)*AQ108,IF(AND((AQ121*2+AQ119/2)>(AQ109-AQ114),(AQ109-AQ110)>(AQ121*2+AQ119/2)),((AQ121*2+AQ119/2)-(AQ109-AQ114))*AQ108,IF(AQ121*2+AQ119/2>(AQ109-AQ110),AQ112-(AQ109-(AQ121*2+AQ119/2))*AQ108,IF((AQ121*2+AQ119/2)=(AQ109-AQ110),AQ112-AQ108*AQ110,0)))) -> 19.32064448 | AZ137: durum 3 için | BA137: =IF((BA109-BA114)>(BA121*2+BA119/2),BA113-(BA121*2+BA119/2)*BA108,IF(AND((BA121*2+BA119/2)>(BA109-BA114),(BA109-BA110)>(BA121*2+BA119/2)),((BA121*2+BA119/2)-(BA109-BA114))*BA108,IF(BA121*2+BA119/2>(BA109-BA110),BA112-(BA109-(BA121*2+BA119/2))*BA108,IF((BA121*2+BA119/2)=(BA109-BA110),BA112-BA108*BA110,0)))) -> 20.71129236
L138: sol kolon yüzünden d mesafede kesme kuvveti= | M138: =IF(M117="durum 1",M123,IF(M117="durum 2",M124,IF(M117="durum 3",M125,"hatalı"))) -> 21.28623876 | V138: sol kolon yüzünden d mesafede kesme kuvveti= | W138: =IF(W117="durum 1",W123,IF(W117="durum 2",W124,IF(W117="durum 3",W125,"hatalı"))) -> 27.25156988 | AF138: sol kolon yüzünden d mesafede kesme kuvveti= | AG138: =IF(AG117="durum 1",AG123,IF(AG117="durum 2",AG124,IF(AG117="durum 3",AG125,"hatalı"))) -> 17.95235059 | AP138: sol kolon yüzünden d mesafede kesme kuvveti= | AQ138: =IF(AQ117="durum 1",AQ123,IF(AQ117="durum 2",AQ124,IF(AQ117="durum 3",AQ125,"hatalı"))) -> 11.97935552 | AZ138: sol kolon yüzünden d mesafede kesme kuvveti= | BA138: =IF(BA117="durum 1",BA123,IF(BA117="durum 2",BA124,IF(BA117="durum 3",BA125,"hatalı"))) -> 35.23870764
L139: sağ kolon yüzünden d mesafede kesme kuvveti= | M139: =IF(M117="durum 1",M127,IF(M117="durum 2",M128,IF(M117="durum 3",M129,"hatalı"))) -> 30.61376124 | V139: sağ kolon yüzünden d mesafede kesme kuvveti= | W139: =IF(W117="durum 1",W127,IF(W117="durum 2",W128,IF(W117="durum 3",W129,"hatalı"))) -> 26.34843012 | AF139: sağ kolon yüzünden d mesafede kesme kuvveti= | AG139: =IF(AG117="durum 1",AG127,IF(AG117="durum 2",AG128,IF(AG117="durum 3",AG129,"hatalı"))) -> 10.64764941 | AP139: sağ kolon yüzünden d mesafede kesme kuvveti= | AQ139: =IF(AQ117="durum 1",AQ127,IF(AQ117="durum 2",AQ128,IF(AQ117="durum 3",AQ129,"hatalı"))) -> 26.62064448 | AZ139: sağ kolon yüzünden d mesafede kesme kuvveti= | BA139: =IF(BA117="durum 1",BA127,IF(BA117="durum 2",BA128,IF(BA117="durum 3",BA129,"hatalı"))) -> 31.66129236
L140: sol kolon yüzünden 2h mesafede kesme kuvveti= | M140: =IF(M117="durum 1",M131,IF(M117="durum 2",M132,IF(M117="durum 3",M133,"hatalı"))) -> 10.33623876 | V140: sol kolon yüzünden 2h mesafede kesme kuvveti= | W140: =IF(W117="durum 1",W131,IF(W117="durum 2",W132,IF(W117="durum 3",W133,"hatalı"))) -> 19.95156988 | AF140: sol kolon yüzünden 2h mesafede kesme kuvveti= | AG140: =IF(AG117="durum 1",AG131,IF(AG117="durum 2",AG132,IF(AG117="durum 3",AG133,"hatalı"))) -> 10.65235059 | AP140: sol kolon yüzünden 2h mesafede kesme kuvveti= | AQ140: =IF(AQ117="durum 1",AQ131,IF(AQ117="durum 2",AQ132,IF(AQ117="durum 3",AQ133,"hatalı"))) -> 4.679355523 | AZ140: sol kolon yüzünden 2h mesafede kesme kuvveti= | BA140: =IF(BA117="durum 1",BA131,IF(BA117="durum 2",BA132,IF(BA117="durum 3",BA133,"hatalı"))) -> 24.28870764
L141: sağ kolon yüzünden 2h mesafede kesme kuvveti= | M141: =IF(M117="durum 1",M135,IF(M117="durum 2",M136,IF(M117="durum 3",M137,"hatalı"))) -> 19.66376124 | V141: sağ kolon yüzünden 2h mesafede kesme kuvveti= | W141: =IF(W117="durum 1",W135,IF(W117="durum 2",W136,IF(W117="durum 3",W137,"hatalı"))) -> 19.04843012 | AF141: sağ kolon yüzünden 2h mesafede kesme kuvveti= | AG141: =IF(AG117="durum 1",AG135,IF(AG117="durum 2",AG136,IF(AG117="durum 3",AG137,"hatalı"))) -> 3.347649407 | AP141: sağ kolon yüzünden 2h mesafede kesme kuvveti= | AQ141: =IF(AQ117="durum 1",AQ135,IF(AQ117="durum 2",AQ136,IF(AQ117="durum 3",AQ137,"hatalı"))) -> 7.320644477 | AZ141: sağ kolon yüzünden 2h mesafede kesme kuvveti= | BA141: =IF(BA117="durum 1",BA135,IF(BA117="durum 2",BA136,IF(BA117="durum 3",BA137,"hatalı"))) -> 20.71129236
B142: kiriş kolon yüzünden d mesafede kesme kuvveti (KN) | H142: =+M138 -> 21.28623876 | O142: =+M139 -> 30.61376124 | R142: =+W138 -> 27.25156988 | Y142: =+W139 -> 26.34843012 | AB142: =+AG138 -> 17.95235059 | AI142: =+AG139 -> 10.64764941 | AL142: =+AQ138 -> 11.97935552 | AS142: =+AQ139 -> 26.62064448 | AV142: =+BA138 -> 35.23870764 | BC142: =+BA139 -> 31.66129236
B147: kiriş kolon yüzünden 2*h mesafede kesme kuvveti (KN) | H147: =+M140 -> 10.33623876 | O147: =+M141 -> 19.66376124 | R147: =+W140 -> 19.95156988 | Y147: =+W141 -> 19.04843012 | AB147: =+AG140 -> 10.65235059 | AI147: =+AG141 -> 3.347649407 | AL147: =+AQ140 -> 4.679355523 | AS147: =+AQ141 -> 7.320644477 | AV147: =+BA140 -> 24.28870764 | BC147: =+BA141 -> 20.71129236
B152: kiriş kolon yüzü kesme kuvveti (KN) | H152: =+M112-L19*G38/2 -> 31.33623876 | O152: =+M113-Q38/2*L19 -> 40.66376124 | R152: =+W112-V19*Q38/2 -> 33.95156988 | Y152: =+W113-AA38/2*V19 -> 33.04843012 | AB152: =+AG112-AF19*AA38/2 -> 24.65235059 | AI152: =+AG113-AK38/2*AF19 -> 17.34764941 | AL152: =+AQ112-AP19*AK38/2 -> 18.67935552 | AS152: =+AQ113-AU38/2*AP19 -> 33.32064448 | AV152: =+BA112-AZ19*AU38/2 -> 45.28870764 | BC152: =+BA113-BE38/2*AZ19 -> 41.71129236
B155: kiriş kolon yüzü moment (KNm) | H155: =+M105-(M112+H152)/2*G38/2 -> 14.74407495 | O155: =+M106-(O152+M113)/2*Q38/2 -> 27.3991199 | R155: =+W105-(W112+R152)/2*Q38/2 -> 31.16677628 | Y155: =+W106-(Y152+W113)/2*AA38/2 -> 25.68314196 | AB155: =+AG105-(AG112+AB152)/2*AA38/2 -> 18.42932077 | AI155: =+AG106-(AI152+AG113)/2*AK38/2 -> 7.472268988 | AL155: =+AQ105-(AQ112+AL152)/2*AK38/2 -> 8.806918534 | AS155: =+AQ106-(AS152+AQ113)/2*AU38/2 -> 26.08949644 | AV155: =+BA105-(BA112+AV152)/2*AU38/2 -> 33.74055267 | BC155: =+BA106-(BC152+BA113)/2*BE38/2 -> 24.79701446
